Workbook

Sheet Profit & Loss
A1: ='Data Sheet'!B1 -> AVANTI FEEDS LTD | H1: =UPDATE ->  | M1: SCREENER.IN
A3: Narration | B3: ='Data Sheet'!B16 -> 2008-03-31 | C3: ='Data Sheet'!C16 -> 2009-03-31 | D3: ='Data Sheet'!D16 -> 2010-03-31 | E3: ='Data Sheet'!E16 -> 2011-03-31 | F3: ='Data Sheet'!F16 -> 2012-03-31 | G3: ='Data Sheet'!G16 -> 2013-03-31 | H3: ='Data Sheet'!H16 -> 2014-03-31 | I3: ='Data Sheet'!I16 -> 2015-03-31 | J3: ='Data Sheet'!J16 -> 2016-03-31 | K3: ='Data Sheet'!K16 -> 2017-03-31 | L3: Trailing | M3: Best Case | N3: Worst Case
A4: Sales | B4: ='Data Sheet'!B17 -> 98.01 | C4: ='Data Sheet'!C17 -> 69.31 | D4: ='Data Sheet'!D17 -> 91.54 | E4: ='Data Sheet'!E17 -> 207.75 | F4: ='Data Sheet'!F17 -> 393.41 | G4: ='Data Sheet'!G17 -> 648.04 | H4: ='Data Sheet'!H17 -> 1131.61 | I4: ='Data Sheet'!I17 -> 1780.66 | J4: ='Data Sheet'!J17 -> 2018.29 | K4: ='Data Sheet'!K17 -> 2732.66 | L4: =SUM(Quarters!H4:K4) -> 2974.29 | M4: =$K4+M27*K4 -> 3699.879936 | N4: =$K4+N27*L4 -> 3748.73772
A5: Expenses | B5: =SUM('Data Sheet'!B18,'Data Sheet'!B20:B24, -1*'Data Sheet'!B19) -> 96.57 | C5: =SUM('Data Sheet'!C18,'Data Sheet'!C20:C24, -1*'Data Sheet'!C19) -> 73.08 | D5: =SUM('Data Sheet'!D18,'Data Sheet'!D20:D24, -1*'Data Sheet'!D19) -> 98.61 | E5: =SUM('Data Sheet'!E18,'Data Sheet'!E20:E24, -1*'Data Sheet'!E19) -> 199.97 | F5: =SUM('Data Sheet'!F18,'Data Sheet'!F20:F24, -1*'Data Sheet'!F19) -> 348.68 | G5: =SUM('Data Sheet'!G18,'Data Sheet'!G20:G24, -1*'Data Sheet'!G19) -> 597.58 | H5: =SUM('Data Sheet'!H18,'Data Sheet'!H20:H24, -1*'Data Sheet'!H19) -> 1020.18 | I5: =SUM('Data Sheet'!I18,'Data Sheet'!I20:I24, -1*'Data Sheet'!I19) -> 1598.37 | J5: =SUM('Data Sheet'!J18,'Data Sheet'!J20:J24, -1*'Data Sheet'!J19) -> 1787.99 | K5: =SUM('Data Sheet'!K18,'Data Sheet'!K20:K24, -1*'Data Sheet'!K19) -> 2400.8 | L5: =SUM(Quarters!H5:K5) -> 2495.9 | M5: =M4-M6 -> 3104.784783 | N5: 3356.221589
A6: Operating Profit | B6: =B4-B5 -> 1.44 | C6: =C4-C5 -> -3.77 | D6: -7.07 | E6: 7.78 | F6: 44.73 | G6: 50.46 | H6: 111.43 | I6: 182.29 | J6: 230.3 | K6: 331.86 | L6: =SUM(Quarters!H6:K6) -> 478.39 | M6: =M4*M28 -> 595.095153 | N6: =N4*N28 -> 392.5161314
A7: Other Income | B7: ='Data Sheet'!B25 -> 8.76 | C7: ='Data Sheet'!C25 -> 4.27 | D7: ='Data Sheet'!D25 -> 10.69 | E7: ='Data Sheet'!E25 -> 4.14 | F7: ='Data Sheet'!F25 -> 3.35 | G7: ='Data Sheet'!G25 -> 2.58 | H7: ='Data Sheet'!H25 -> 3.68 | I7: ='Data Sheet'!I25 -> 9.02 | J7: ='Data Sheet'!J25 -> 21.49 | K7: ='Data Sheet'!K25 -> 21.87 | L7: =SUM(Quarters!H7:K7) -> 24.76 | M7: 0 | N7: 0
A8: Depreciation | B8: ='Data Sheet'!B26 -> 3.88 | C8: ='Data Sheet'!C26 -> 3.34 | D8: ='Data Sheet'!D26 -> 2.78 | E8: ='Data Sheet'!E26 -> 2.9 | F8: ='Data Sheet'!F26 -> 4 | G8: ='Data Sheet'!G26 -> 4.98 | H8: ='Data Sheet'!H26 -> 5.54 | I8: ='Data Sheet'!I26 -> 8.8 | J8: ='Data Sheet'!J26 -> 10.23 | K8: ='Data Sheet'!K26 -> 13.69 | L8: =SUM(Quarters!H8:K8) -> 15.05 | M8: =+$L8 -> 15.05 | N8: =+$L8 -> 15.05
A9: Interest | B9: ='Data Sheet'!B27 -> 5 | C9: ='Data Sheet'!C27 -> 7.09 | D9: ='Data Sheet'!D27 -> 3.13 | E9: ='Data Sheet'!E27 -> 4.6 | F9: ='Data Sheet'!F27 -> 4.07 | G9: ='Data Sheet'!G27 -> 3.92 | H9: ='Data Sheet'!H27 -> 4.39 | I9: ='Data Sheet'!I27 -> 2.67 | J9: ='Data Sheet'!J27 -> 3.38 | K9: ='Data Sheet'!K27 -> 4.85 | L9: =SUM(Quarters!H9:K9) -> 3.26 | M9: =+$L9 -> 3.26 | N9: =+$L9 -> 3.26
A10: Profit before tax | B10: ='Data Sheet'!B28 -> 1.32 | C10: ='Data Sheet'!C28 -> -9.93 | D10: ='Data Sheet'!D28 -> -2.29 | E10: ='Data Sheet'!E28 -> 5.29 | F10: ='Data Sheet'!F28 -> 40.01 | G10: ='Data Sheet'!G28 -> 44.14 | H10: ='Data Sheet'!H28 -> 105.17 | I10: ='Data Sheet'!I28 -> 179.84 | J10: ='Data Sheet'!J28 -> 238.18 | K10: ='Data Sheet'!K28 -> 335.18 | L10: =SUM(Quarters!H10:K10) -> 484.82 | M10: =M6+M7-SUM(M8:M9) -> 576.785153 | N10: =N6+N7-SUM(N8:N9) -> 374.2061314
A11: Tax | B11: ='Data Sheet'!B29 -> 0.43 | C11: ='Data Sheet'!C29 -> -2.93 | D11: ='Data Sheet'!D29 -> -1.08 | E11: ='Data Sheet'!E29 -> 1.76 | F11: ='Data Sheet'!F29 -> 11.96 | G11: ='Data Sheet'!G29 -> 13.96 | H11: ='Data Sheet'!H29 -> 35.42 | I11: ='Data Sheet'!I29 -> 63.27 | J11: ='Data Sheet'!J29 -> 79.2 | K11: ='Data Sheet'!K29 -> 108.43 | L11: =SUM(Quarters!H11:K11) -> 159.69 | M11: =IF($L10>0,$L11/$L10,0) -> 0.3293799761 | N11: =IF($L10>0,$L11/$L10,0) -> 0.3293799761
A12: Net profit | B12: ='Data Sheet'!B30 -> 0.89 | C12: ='Data Sheet'!C30 -> -7 | D12: ='Data Sheet'!D30 -> -1.21 | E12: ='Data Sheet'!E30 -> 3.4 | F12: ='Data Sheet'!F30 -> 28.05 | G12: ='Data Sheet'!G30 -> 30.05 | H12: ='Data Sheet'!H30 -> 70.41 | I12: ='Data Sheet'!I30 -> 115.92 | J12: ='Data Sheet'!J30 -> 157.5 | K12: ='Data Sheet'!K30 -> 214.35 | L12: =SUM(Quarters!H12:K12) -> 311.17 | M12: =M10-M11*M10 -> 386.8036731 | N12: =N10-N11*N10 -> 250.9501248
A13: EPS | B13: =IF('Data Sheet'!B93>0,B12/'Data Sheet'!B93,0) -> 0.2721712538 | C13: =IF('Data Sheet'!C93>0,C12/'Data Sheet'!C93,0) -> -1.75 | D13: =IF('Data Sheet'!D93>0,D12/'Data Sheet'!D93,0) -> -0.3025 | E13: =IF('Data Sheet'!E93>0,E12/'Data Sheet'!E93,0) -> 0.85 | F13: =IF('Data Sheet'!F93>0,F12/'Data Sheet'!F93,0) -> 7.0125 | G13: =IF('Data Sheet'!G93>0,G12/'Data Sheet'!G93,0) -> 6.616725982 | H13: =IF('Data Sheet'!H93>0,H12/'Data Sheet'!H93,0) -> 15.50361652 | I13: =IF('Data Sheet'!I93>0,I12/'Data Sheet'!I93,0) -> 25.52448838 | J13: =IF('Data Sheet'!J93>0,J12/'Data Sheet'!J93,0) -> 34.68001139 | K13: =IF('Data Sheet'!K93>0,K12/'Data Sheet'!K93,0) -> 47.19784407 | L13: =IF('Data Sheet'!$B6>0,'Profit & Loss'!L12/'Data Sheet'!$B6,0) -> 68.51667921 | M13: =IF('Data Sheet'!$B6>0,'Profit & Loss'!M12/'Data Sheet'!$B6,0) -> 85.17049582 | N13: =IF('Data Sheet'!$B6>0,'Profit & Loss'!N12/'Data Sheet'!$B6,0) -> 55.25683452
A14: Price to earning | B14: =IF(B15>0,B15/B13,"") -> 23.14719101 | C14: =IF(C15>0,C15/C13,"") -> -1.874285714 | D14: -16.0661157 | E14: 9.317647059 | F14: 2.863458111 | G14: 3.161684503 | H14: 7.684013588 | I14: 12.86176612 | J14: 12.53834652 | K14: 18.06459631 | L14: =IF(L13>0,L15/L13,0) -> 28.35732879 | M14: =M29 -> 28.35732879 | N14: =N29 -> 11.85610513
A15: Price | B15: ='Data Sheet'!B90 -> 6.3 | C15: ='Data Sheet'!C90 -> 3.28 | D15: ='Data Sheet'!D90 -> 4.86 | E15: ='Data Sheet'!E90 -> 7.92 | F15: ='Data Sheet'!F90 -> 20.08 | G15: ='Data Sheet'!G90 -> 20.92 | H15: ='Data Sheet'!H90 -> 119.13 | I15: ='Data Sheet'!I90 -> 328.29 | J15: ='Data Sheet'!J90 -> 434.83 | K15: ='Data Sheet'!K90 -> 852.61 | L15: ='Data Sheet'!B8 -> 1942.95 | M15: =M13*M14 -> 2415.207753 | N15: =N13*N14 -> 655.130839
A17: EBIT | B17: =B10+B9 -> 6.32 | C17: =C10+C9 -> -2.84 | D17: 0.84 | E17: 9.89 | F17: 44.08 | G17: 48.06 | H17: 109.56 | I17: 182.51 | J17: 241.56 | K17: 340.03 | L17: 488.08
A18: EBITDA | B18: =B17+B8 -> 10.2 | C18: =C17+C8 -> 0.5 | D18: 3.62 | E18: 12.79 | F18: 48.08 | G18: 53.04 | H18: 115.1 | I18: 191.31 | J18: 251.79 | K18: 353.72 | L18: 503.13
A19: Operating Profit (excl Other Income) | B19: =B18-B7 -> 1.44 | C19: =C18-C7 -> -3.77 | D19: -7.07 | E19: 8.65 | F19: 44.73 | G19: 50.46 | H19: 111.42 | I19: 182.29 | J19: 230.3 | K19: 331.85 | L19: 478.37
A21: RATIOS:
A22: DPS | B22: =IF('Data Sheet'!B93>0,'Data Sheet'!B31/'Data Sheet'!B93,0) -> 0.1987767584 | C22: =IF('Data Sheet'!C93>0,'Data Sheet'!C31/'Data Sheet'!C93,0) -> 0 | D22: =IF('Data Sheet'!D93>0,'Data Sheet'!D31/'Data Sheet'!D93,0) -> 0 | E22: =IF('Data Sheet'!E93>0,'Data Sheet'!E31/'Data Sheet'!E93,0) -> 0.2 | F22: =IF('Data Sheet'!F93>0,'Data Sheet'!F31/'Data Sheet'!F93,0) -> 1.475 | G22: =IF('Data Sheet'!G93>0,'Data Sheet'!G31/'Data Sheet'!G93,0) -> 1.299124236 | H22: =IF('Data Sheet'!H93>0,'Data Sheet'!H31/'Data Sheet'!H93,0) -> 2.998995271 | I22: =IF('Data Sheet'!I93>0,'Data Sheet'!I31/'Data Sheet'!I93,0) -> 5.500359901 | J22: =IF('Data Sheet'!J93>0,'Data Sheet'!J31/'Data Sheet'!J93,0) -> 5.500359901 | K22: =IF('Data Sheet'!K93>0,'Data Sheet'!K31/'Data Sheet'!K93,0) -> 6.999857537
A23: Dividend Payout | B23: =IF('Data Sheet'!B30>0, 'Data Sheet'!B31/'Data Sheet'!B30, 0) -> 0.7303370787 | C23: =IF('Data Sheet'!C30>0, 'Data Sheet'!C31/'Data Sheet'!C30, 0) -> 0 | D23: =IF('Data Sheet'!D30>0, 'Data Sheet'!D31/'Data Sheet'!D30, 0) -> 0 | E23: =IF('Data Sheet'!E30>0, 'Data Sheet'!E31/'Data Sheet'!E30, 0) -> 0.2352941176 | F23: =IF('Data Sheet'!F30>0, 'Data Sheet'!F31/'Data Sheet'!F30, 0) -> 0.2103386809 | G23: =IF('Data Sheet'!G30>0, 'Data Sheet'!G31/'Data Sheet'!G30, 0) -> 0.1963394343 | H23: =IF('Data Sheet'!H30>0, 'Data Sheet'!H31/'Data Sheet'!H30, 0) -> 0.193438432 | I23: =IF('Data Sheet'!I30>0, 'Data Sheet'!I31/'Data Sheet'!I30, 0) -> 0.2154934438 | J23: =IF('Data Sheet'!J30>0, 'Data Sheet'!J31/'Data Sheet'!J30, 0) -> 0.1586031746 | K23: =IF('Data Sheet'!K30>0, 'Data Sheet'!K31/'Data Sheet'!K30, 0) -> 0.1483088407
A24: OPM | B24: =IF(B6>0,B6/B4,0) -> 0.01469237833 | C24: =IF(C6>0,C6/C4,0) -> 0 | D24: 0 | E24: 0.0374488568 | F24: 0.1136981775 | G24: 0.07786556385 | H24: 0.09847032105 | I24: 0.1023721541 | J24: 0.1141064961 | K24: 0.1214421113 | L24: 0.1608417471
G26: TRENDS: | H26: 10 YEARS | I26: 7 YEARS | J26: 5 YEARS | K26: 3 YEARS | L26: RECENT | M26: BEST | N26: WORST
G27: Sales Growth | H27: =IF(B4=0,"",POWER($K4/B4,1/9)-1) -> 0.4474067011 | I27: =IF(D4=0,"",POWER($K4/D4,1/7)-1) -> 0.6244661654 | J27: =IF(F4=0,"",POWER($K4/F4,1/5)-1) -> 0.4734928776 | K27: =IF(H4=0,"",POWER($K4/H4, 1/3)-1) -> 0.3416202591 | L27: =IF(ISERROR(MAX(IF(J4=0,"",(K4-J4)/J4),IF(K4=0,"",(L4-K4)/K4))),"",MAX(IF(J4=0,"",(K4-J4)/J4),IF(K4=0,"",(L4-K4)/K4))) -> 0.3539481442 | M27: =MAX(K27:L27) -> 0.3539481442 | N27: =MIN(H27:L27) -> 0.3416202591
G28: OPM | H28: =IF(SUM(B4:$K$4)=0,"",SUMPRODUCT(B24:$K$24,B4:$K$4)/SUM(B4:$K$4)) -> 0.1047062133 | I28: =IF(SUM(E4:$K$4)=0,"",SUMPRODUCT(E24:$K$24,E4:$K$4)/SUM(E4:$K$4)) -> 0.1075858184 | J28: =IF(SUM(G4:$K$4)=0,"",SUMPRODUCT(G24:$K$24,G4:$K$4)/SUM(G4:$K$4)) -> 0.1090496507 | K28: =IF(SUM(I4:$K$4)=0, "", SUMPRODUCT(I24:$K$24,I4:$K$4)/SUM(I4:$K$4)) -> 0.1139764928 | L28: =L24 -> 0.1608417471 | M28: =MAX(K28:L28) -> 0.1608417471 | N28: =MIN(H28:L28) -> 0.1047062133
G29: Price to Earning | H29: =IF(ISERROR(AVERAGEIF(B14:$L14,">0")),"",AVERAGEIF(B14:$L14,">0")) -> 13.11067022 | I29: =IF(ISERROR(AVERAGEIF(E14:$L14,">0")),"",AVERAGEIF(E14:$L14,">0")) -> 11.85610513 | J29: =IF(ISERROR(AVERAGEIF(G14:$L14,">0")),"",AVERAGEIF(G14:$L14,">0")) -> 13.77795597 | K29: =IF(ISERROR(AVERAGEIF(I14:$L14,">0")),"",AVERAGEIF(I14:$L14,">0")) -> 17.95550944 | L29: =L14 -> 28.35732879 | M29: =MAX(K29:L29) -> 28.35732879 | N29: =MIN(H29:L29) -> 11.85610513
A31: Year on Year Sales Growth | C31: =(C4-B4)/B4 -> -0.2928272625 | D31: =(D4-C4)/C4 -> 0.320732939 | E31: 1.269499672 | F31: 0.8936702768 | G31: 0.6472382502 | H31: 0.746203938 | I31: 0.5735633301 | J31: 0.1334505183 | K31: 0.3539481442 | L31: 0.08842300176

Sheet Quarters
A1: ='Profit & Loss'!A1 -> AVANTI FEEDS LTD | E1: =UPDATE ->  | J1: SCREENER.IN
A3: Narration | B3: ='Data Sheet'!B41 -> 2015-03-31 | C3: ='Data Sheet'!C41 -> 2015-06-30 | D3: ='Data Sheet'!D41 -> 2015-09-30 | E3: ='Data Sheet'!E41 -> 2015-12-31 | F3: ='Data Sheet'!F41 -> 2016-03-31 | G3: ='Data Sheet'!G41 -> 2016-06-30 | H3: ='Data Sheet'!H41 -> 2016-09-30 | I3: ='Data Sheet'!I41 -> 2016-12-31 | J3: ='Data Sheet'!J41 -> 2017-03-31 | K3: ='Data Sheet'!K41 -> 2017-06-30
A4: Sales | B4: ='Data Sheet'!B42 -> 381.45 | C4: ='Data Sheet'!C42 -> 603.4 | D4: ='Data Sheet'!D42 -> 532.95 | E4: ='Data Sheet'!E42 -> 413.11 | F4: ='Data Sheet'!F42 -> 468.83 | G4: ='Data Sheet'!G42 -> 724.38 | H4: ='Data Sheet'!H42 -> 713.06 | I4: ='Data Sheet'!I42 -> 558.63 | J4: ='Data Sheet'!J42 -> 704.43 | K4: ='Data Sheet'!K42 -> 998.17
A5: Expenses | B5: ='Data Sheet'!B43 -> 344.57 | C5: ='Data Sheet'!C43 -> 539.25 | D5: ='Data Sheet'!D43 -> 470.5 | E5: ='Data Sheet'!E43 -> 357.62 | F5: ='Data Sheet'!F43 -> 422.44 | G5: ='Data Sheet'!G43 -> 648.34 | H5: ='Data Sheet'!H43 -> 656.63 | I5: ='Data Sheet'!I43 -> 489.73 | J5: ='Data Sheet'!J43 -> 576.34 | K5: ='Data Sheet'!K43 -> 773.2
A6: Operating Profit | B6: ='Data Sheet'!B50 -> 36.88 | C6: ='Data Sheet'!C50 -> 64.15 | D6: ='Data Sheet'!D50 -> 62.45 | E6: ='Data Sheet'!E50 -> 55.49 | F6: ='Data Sheet'!F50 -> 46.39 | G6: ='Data Sheet'!G50 -> 76.04 | H6: ='Data Sheet'!H50 -> 56.43 | I6: ='Data Sheet'!I50 -> 68.9 | J6: ='Data Sheet'!J50 -> 128.09 | K6: ='Data Sheet'!K50 -> 224.97
A7: Other Income | B7: ='Data Sheet'!B44 -> 1.52 | C7: ='Data Sheet'!C44 -> 7.53 | D7: ='Data Sheet'!D44 -> 5.84 | E7: ='Data Sheet'!E44 -> 3.5 | F7: ='Data Sheet'!F44 -> 4.62 | G7: ='Data Sheet'!G44 -> 1.85 | H7: ='Data Sheet'!H44 -> 7 | I7: ='Data Sheet'!I44 -> 3.59 | J7: ='Data Sheet'!J44 -> 7.99 | K7: ='Data Sheet'!K44 -> 6.18
A8: Depreciation | B8: ='Data Sheet'!B45 -> 2.24 | C8: ='Data Sheet'!C45 -> 2.6 | D8: ='Data Sheet'!D45 -> 2.53 | E8: ='Data Sheet'!E45 -> 2.58 | F8: ='Data Sheet'!F45 -> 2.52 | G8: ='Data Sheet'!G45 -> 2.71 | H8: ='Data Sheet'!H45 -> 3.24 | I8: ='Data Sheet'!I45 -> 3.93 | J8: ='Data Sheet'!J45 -> 3.81 | K8: ='Data Sheet'!K45 -> 4.07
A9: Interest | B9: ='Data Sheet'!B46 -> 0.49 | C9: ='Data Sheet'!C46 -> 0.29 | D9: ='Data Sheet'!D46 -> 0.3 | E9: ='Data Sheet'!E46 -> 0.19 | F9: ='Data Sheet'!F46 -> 0.78 | G9: ='Data Sheet'!G46 -> 0.2 | H9: ='Data Sheet'!H46 -> 0.22 | I9: ='Data Sheet'!I46 -> 0.24 | J9: ='Data Sheet'!J46 -> 2.18 | K9: ='Data Sheet'!K46 -> 0.62
A10: Profit before tax | B10: ='Data Sheet'!B47 -> 35.67 | C10: ='Data Sheet'!C47 -> 68.79 | D10: ='Data Sheet'!D47 -> 65.47 | E10: ='Data Sheet'!E47 -> 56.22 | F10: ='Data Sheet'!F47 -> 47.7 | G10: ='Data Sheet'!G47 -> 74.98 | H10: ='Data Sheet'!H47 -> 59.96 | I10: ='Data Sheet'!I47 -> 68.31 | J10: ='Data Sheet'!J47 -> 130.09 | K10: ='Data Sheet'!K47 -> 226.46
A11: Tax | B11: ='Data Sheet'!B48 -> 13.39 | C11: ='Data Sheet'!C48 -> 23.08 | D11: ='Data Sheet'!D48 -> 21.5 | E11: ='Data Sheet'!E48 -> 19.04 | F11: ='Data Sheet'!F48 -> 15.58 | G11: ='Data Sheet'!G48 -> 25.76 | H11: ='Data Sheet'!H48 -> 19.77 | I11: ='Data Sheet'!I48 -> 21.84 | J11: ='Data Sheet'!J48 -> 40.41 | K11: ='Data Sheet'!K48 -> 77.67
A12: Net profit | B12: ='Data Sheet'!B49 -> 21.79 | C12: ='Data Sheet'!C49 -> 45.4 | D12: ='Data Sheet'!D49 -> 43.96 | E12: ='Data Sheet'!E49 -> 36.54 | F12: ='Data Sheet'!F49 -> 31.23 | G12: ='Data Sheet'!G49 -> 49.03 | H12: ='Data Sheet'!H49 -> 37.34 | I12: ='Data Sheet'!I49 -> 41.11 | J12: ='Data Sheet'!J49 -> 83.88 | K12: ='Data Sheet'!K49 -> 148.84
A14: OPM | B14: =IF(B4>0,B6/B4,"") -> 0.09668370691 | C14: =IF(C4>0,C6/C4,"") -> 0.1063142194 | D14: 0.1171779717 | E14: 0.1343225775 | F14: 0.09894844613 | G14: 0.1049725282 | H14: 0.07913780047 | I14: 0.1233374505 | J14: 0.1818349588 | K14: 0.2253824499
A16: EBIT | B16: =B10+B9 -> 36.16 | C16: =C10+C9 -> 69.08 | D16: 65.77 | E16: 56.41 | F16: 48.48 | G16: 75.18 | H16: 60.18 | I16: 68.55 | J16: 132.27 | K16: 227.08
A17: EBITDA | B17: =B16+B8 -> 38.4 | C17: =C16+C8 -> 71.68 | D17: 68.3 | E17: 58.99 | F17: 51 | G17: 77.89 | H17: 63.42 | I17: 72.48 | J17: 136.08 | K17: 231.15

Sheet Balance Sheet
A1: ='Profit & Loss'!A1 -> AVANTI FEEDS LTD | E1: =UPDATE ->  | J1: SCREENER.IN
A3: Narration | B3: ='Data Sheet'!B56 -> 2008-03-31 | C3: ='Data Sheet'!C56 -> 2009-03-31 | D3: ='Data Sheet'!D56 -> 2010-03-31 | E3: ='Data Sheet'!E56 -> 2011-03-31 | F3: ='Data Sheet'!F56 -> 2012-03-31 | G3: ='Data Sheet'!G56 -> 2013-03-31 | H3: ='Data Sheet'!H56 -> 2014-03-31 | I3: ='Data Sheet'!I56 -> 2015-03-31 | J3: ='Data Sheet'!J56 -> 2016-03-31 | K3: ='Data Sheet'!K56 -> 2017-03-31 | L3: 1HFY17 | M3: Input data from 2QFY BS
A4: Equity Share Capital | B4: ='Data Sheet'!B57 -> 6.54 | C4: ='Data Sheet'!C57 -> 8 | D4: ='Data Sheet'!D57 -> 8 | E4: ='Data Sheet'!E57 -> 8 | F4: ='Data Sheet'!F57 -> 8 | G4: ='Data Sheet'!G57 -> 9.08 | H4: ='Data Sheet'!H57 -> 9.08 | I4: ='Data Sheet'!I57 -> 9.08 | J4: ='Data Sheet'!J57 -> 9.08 | K4: ='Data Sheet'!K57 -> 9.08
A5: Reserves | B5: ='Data Sheet'!B58 -> 62.72 | C5: ='Data Sheet'!C58 -> 60.1 | D5: ='Data Sheet'!D58 -> 58.9 | E5: ='Data Sheet'!E58 -> 61.52 | F5: ='Data Sheet'!F58 -> 85.61 | G5: ='Data Sheet'!G58 -> 116.02 | H5: ='Data Sheet'!H58 -> 170.49 | I5: ='Data Sheet'!I58 -> 256.21 | J5: ='Data Sheet'!J58 -> 413.71 | K5: ='Data Sheet'!K58 -> 631.38
A6: Borrowings | B6: ='Data Sheet'!B59 -> 40.66 | C6: ='Data Sheet'!C59 -> 38.02 | D6: ='Data Sheet'!D59 -> 34.13 | E6: ='Data Sheet'!E59 -> 54.46 | F6: ='Data Sheet'!F59 -> 49.57 | G6: ='Data Sheet'!G59 -> 61.08 | H6: ='Data Sheet'!H59 -> 56.12 | I6: ='Data Sheet'!I59 -> 58.4 | J6: ='Data Sheet'!J59 -> 10.71 | K6: ='Data Sheet'!K59 -> 19.43 | L6: =L8-(L7+L5+L4) -> 0
A7: Other Liabilities | B7: ='Data Sheet'!B60 -> 9.67 | C7: ='Data Sheet'!C60 -> 11.99 | D7: ='Data Sheet'!D60 -> 13.64 | E7: ='Data Sheet'!E60 -> 28.32 | F7: ='Data Sheet'!F60 -> 40.04 | G7: ='Data Sheet'!G60 -> 62.7 | H7: ='Data Sheet'!H60 -> 163.72 | I7: ='Data Sheet'!I60 -> 154.1 | J7: ='Data Sheet'!J60 -> 189.1 | K7: ='Data Sheet'!K60 -> 396.58 | M7: def tax liab+oth long term liab+other current liab
A8: Total | B8: ='Data Sheet'!B61 -> 119.59 | C8: ='Data Sheet'!C61 -> 118.11 | D8: ='Data Sheet'!D61 -> 114.67 | E8: ='Data Sheet'!E61 -> 152.3 | F8: ='Data Sheet'!F61 -> 183.22 | G8: ='Data Sheet'!G61 -> 248.88 | H8: ='Data Sheet'!H61 -> 399.41 | I8: ='Data Sheet'!I61 -> 477.79 | J8: ='Data Sheet'!J61 -> 622.6 | K8: ='Data Sheet'!K61 -> 1056.47
A10: Net Block | B10: ='Data Sheet'!B62 -> 33.43 | C10: ='Data Sheet'!C62 -> 30.05 | D10: ='Data Sheet'!D62 -> 27.86 | E10: ='Data Sheet'!E62 -> 26.78 | F10: ='Data Sheet'!F62 -> 43.09 | G10: ='Data Sheet'!G62 -> 50.85 | H10: ='Data Sheet'!H62 -> 77.51 | I10: ='Data Sheet'!I62 -> 89.57 | J10: ='Data Sheet'!J62 -> 103.99 | K10: ='Data Sheet'!K62 -> 160.47
A11: Capital Work in Progress | B11: ='Data Sheet'!B63 -> 0.14 | C11: ='Data Sheet'!C63 -> 0 | D11: ='Data Sheet'!D63 -> 0 | E11: ='Data Sheet'!E63 -> 11.12 | F11: ='Data Sheet'!F63 -> 1.67 | G11: ='Data Sheet'!G63 -> 1.59 | H11: ='Data Sheet'!H63 -> 4.81 | I11: ='Data Sheet'!I63 -> 0 | J11: ='Data Sheet'!J63 -> 41.62 | K11: ='Data Sheet'!K63 -> 78.47
A12: Investments | B12: ='Data Sheet'!B64 -> 27.83 | C12: ='Data Sheet'!C64 -> 27.5 | D12: ='Data Sheet'!D64 -> 31.33 | E12: ='Data Sheet'!E64 -> 34.49 | F12: ='Data Sheet'!F64 -> 44.77 | G12: ='Data Sheet'!G64 -> 34.87 | H12: ='Data Sheet'!H64 -> 40.31 | I12: ='Data Sheet'!I64 -> 111.09 | J12: ='Data Sheet'!J64 -> 33.15 | K12: ='Data Sheet'!K64 -> 357.51
A13: Other Assets | B13: ='Data Sheet'!B65 -> 58.19 | C13: ='Data Sheet'!C65 -> 60.56 | D13: ='Data Sheet'!D65 -> 55.48 | E13: ='Data Sheet'!E65 -> 79.91 | F13: ='Data Sheet'!F65 -> 93.69 | G13: ='Data Sheet'!G65 -> 161.57 | H13: ='Data Sheet'!H65 -> 276.78 | I13: ='Data Sheet'!I65 -> 277.13 | J13: ='Data Sheet'!J65 -> 443.84 | K13: ='Data Sheet'!K65 -> 460.02 | M13: total current assets+long term loans and advances+other non current assets
A14: Total | B14: ='Data Sheet'!B66 -> 119.59 | C14: ='Data Sheet'!C66 -> 118.11 | D14: ='Data Sheet'!D66 -> 114.67 | E14: ='Data Sheet'!E66 -> 152.3 | F14: ='Data Sheet'!F66 -> 183.22 | G14: ='Data Sheet'!G66 -> 248.88 | H14: ='Data Sheet'!H66 -> 399.41 | I14: ='Data Sheet'!I66 -> 477.79 | J14: ='Data Sheet'!J66 -> 622.6 | K14: ='Data Sheet'!K66 -> 1056.47 | L14: =L8 -> 0 | M14: =L10+L11+L12+L13 -> 0 | N14: check TA matching
A16: Working Capital | B16: =B13-B7 -> 48.52 | C16: 48.57 | D16: 41.84 | E16: 51.59 | F16: 53.65 | G16: 98.87 | H16: 113.06 | I16: 123.03 | J16: 254.74 | K16: 63.44 | L16: =L13-L7 -> 0
A17: Debtors | B17: ='Data Sheet'!B67 -> 13.54 | C17: ='Data Sheet'!C67 -> 15.86 | D17: ='Data Sheet'!D67 -> 8.93 | E17: ='Data Sheet'!E67 -> 22.81 | F17: ='Data Sheet'!F67 -> 15.51 | G17: ='Data Sheet'!G67 -> 39.73 | H17: ='Data Sheet'!H67 -> 45.02 | I17: ='Data Sheet'!I67 -> 33.56 | J17: ='Data Sheet'!J67 -> 34.97 | K17: ='Data Sheet'!K67 -> 23.51
A18: Inventory | B18: ='Data Sheet'!B68 -> 26.7 | C18: ='Data Sheet'!C68 -> 20.38 | D18: ='Data Sheet'!D68 -> 27.27 | E18: ='Data Sheet'!E68 -> 39.05 | F18: ='Data Sheet'!F68 -> 42.15 | G18: ='Data Sheet'!G68 -> 97.16 | H18: ='Data Sheet'!H68 -> 199.15 | I18: ='Data Sheet'!I68 -> 222.02 | J18: ='Data Sheet'!J68 -> 285.55 | K18: ='Data Sheet'!K68 -> 355.7
A19: Payables (Creditors) | M19: input Creditors (Payables) data from Annual Reports
A21: Inventory Turnover | B21: =IF('Balance Sheet'!B18>0,'Profit & Loss'!B4/'Balance Sheet'!B18,0) -> 3.670786517 | C21: =IF('Balance Sheet'!C18>0,'Profit & Loss'!C4/'Balance Sheet'!C18,0) -> 3.400883219 | D21: =IF('Balance Sheet'!D18>0,'Profit & Loss'!D4/'Balance Sheet'!D18,0) -> 3.356802347 | E21: =IF('Balance Sheet'!E18>0,'Profit & Loss'!E4/'Balance Sheet'!E18,0) -> 5.320102433 | F21: =IF('Balance Sheet'!F18>0,'Profit & Loss'!F4/'Balance Sheet'!F18,0) -> 9.333570581 | G21: =IF('Balance Sheet'!G18>0,'Profit & Loss'!G4/'Balance Sheet'!G18,0) -> 6.669822972 | H21: =IF('Balance Sheet'!H18>0,'Profit & Loss'!H4/'Balance Sheet'!H18,0) -> 5.682199347 | I21: =IF('Balance Sheet'!I18>0,'Profit & Loss'!I4/'Balance Sheet'!I18,0) -> 8.020268444 | J21: =IF('Balance Sheet'!J18>0,'Profit & Loss'!J4/'Balance Sheet'!J18,0) -> 7.068079146 | K21: =IF('Balance Sheet'!K18>0,'Profit & Loss'!K4/'Balance Sheet'!K18,0) -> 7.68248524 | L21: =IF('Balance Sheet'!L18>0,'Profit & Loss'!L4/'Balance Sheet'!L18,0) -> 0
A22: Inventory Days | B22: =IF('Profit & Loss'!B4>0,'Balance Sheet'!B18/('Profit & Loss'!B4/365),0) -> 99.43373125 | C22: =IF('Profit & Loss'!C4>0,'Balance Sheet'!C18/('Profit & Loss'!C4/365),0) -> 107.3250613 | D22: =IF('Profit & Loss'!D4>0,'Balance Sheet'!D18/('Profit & Loss'!D4/365),0) -> 108.734433 | E22: =IF('Profit & Loss'!E4>0,'Balance Sheet'!E18/('Profit & Loss'!E4/365),0) -> 68.60770156 | F22: =IF('Profit & Loss'!F4>0,'Balance Sheet'!F18/('Profit & Loss'!F4/365),0) -> 39.1061488 | G22: =IF('Profit & Loss'!G4>0,'Balance Sheet'!G18/('Profit & Loss'!G4/365),0) -> 54.72409111 | H22: =IF('Profit & Loss'!H4>0,'Balance Sheet'!H18/('Profit & Loss'!H4/365),0) -> 64.23569074 | I22: =IF('Profit & Loss'!I4>0,'Balance Sheet'!I18/('Profit & Loss'!I4/365),0) -> 45.50969865 | J22: =IF('Profit & Loss'!J4>0,'Balance Sheet'!J18/('Profit & Loss'!J4/365),0) -> 51.64062152 | K22: =IF('Profit & Loss'!K4>0,'Balance Sheet'!K18/('Profit & Loss'!K4/365),0) -> 47.51066726 | L22: =IF('Profit & Loss'!L4>0,L18/('Profit & Loss'!L4/365),0) -> 0
A23: Debtor Days | B23: =IF('Profit & Loss'!B4>0,'Balance Sheet'!B17/('Profit & Loss'!B4/365),0) -> 50.42444649 | C23: =IF('Profit & Loss'!C4>0,'Balance Sheet'!C17/('Profit & Loss'!C4/365),0) -> 83.52185832 | D23: =IF('Profit & Loss'!D4>0,'Balance Sheet'!D17/('Profit & Loss'!D4/365),0) -> 35.60683854 | E23: =IF('Profit & Loss'!E4>0,'Balance Sheet'!E17/('Profit & Loss'!E4/365),0) -> 40.07533093 | F23: =IF('Profit & Loss'!F4>0,'Balance Sheet'!F17/('Profit & Loss'!F4/365),0) -> 14.38994942 | G23: =IF('Profit & Loss'!G4>0,'Balance Sheet'!G17/('Profit & Loss'!G4/365),0) -> 22.37739954 | H23: =IF('Profit & Loss'!H4>0,'Balance Sheet'!H17/('Profit & Loss'!H4/365),0) -> 14.52116895 | I23: =IF('Profit & Loss'!I4>0,'Balance Sheet'!I17/('Profit & Loss'!I4/365),0) -> 6.879134703 | J23: =IF('Profit & Loss'!J4>0,'Balance Sheet'!J17/('Profit & Loss'!J4/365),0) -> 6.32419028 | K23: =IF('Profit & Loss'!K4>0,'Balance Sheet'!K17/('Profit & Loss'!K4/365),0) -> 3.140218688 | L23: =IF('Profit & Loss'!L4>0, L17/('Profit & Loss'!L4/365),0) -> 0
A24: Creditor Days | B24: =IF('Profit & Loss'!B4>0,B19/('Profit & Loss'!B4/365),0) -> 0 | C24: =IF('Profit & Loss'!C4>0,C19/('Profit & Loss'!C4/365),0) -> 0 | D24: =IF('Profit & Loss'!D4>0,D19/('Profit & Loss'!D4/365),0) -> 0 | E24: =IF('Profit & Loss'!E4>0,E19/('Profit & Loss'!E4/365),0) -> 0 | F24: =IF('Profit & Loss'!F4>0,F19/('Profit & Loss'!F4/365),0) -> 0 | G24: =IF('Profit & Loss'!G4>0,G19/('Profit & Loss'!G4/365),0) -> 0 | H24: =IF('Profit & Loss'!H4>0,H19/('Profit & Loss'!H4/365),0) -> 0 | I24: =IF('Profit & Loss'!I4>0,I19/('Profit & Loss'!I4/365),0) -> 0 | J24: =IF('Profit & Loss'!J4>0,J19/('Profit & Loss'!J4/365),0) -> 0 | K24: =IF('Profit & Loss'!K4>0,K19/('Profit & Loss'!K4/365),0) -> 0 | L24: =IF('Profit & Loss'!L4>0,L19/('Profit & Loss'!L4/365),0) -> 0
A25: Cash Conversion Cycle | B25: =IF(B19>0,B22+B23-B24,0) -> 0 | C25: =IF(C19>0,C22+C23-C24,0) -> 0 | D25: 0 | E25: 0 | F25: 0 | G25: 0 | H25: 0 | I25: 0 | J25: 0 | K25: 0 | L25: 0
A26: Working Capital/Sales | B26: =B16/'Profit & Loss'!B4 -> 0.4950515254 | C26: =C16/'Profit & Loss'!C4 -> 0.7007646804 | D26: =D16/'Profit & Loss'!D4 -> 0.4570679484 | E26: =E16/'Profit & Loss'!E4 -> 0.2483273165 | F26: =F16/'Profit & Loss'!F4 -> 0.1363717242 | G26: =G16/'Profit & Loss'!G4 -> 0.1525677427 | H26: =H16/'Profit & Loss'!H4 -> 0.09991074664 | I26: =I16/'Profit & Loss'!I4 -> 0.06909235901 | J26: =J16/'Profit & Loss'!J4 -> 0.1262157569 | K26: =K16/'Profit & Loss'!K4 -> 0.02321547503
A28: Return on Equity | B28: =IF(SUM('Balance Sheet'!B4:B5)>0,'Profit & Loss'!B12/SUM('Balance Sheet'!B4:B5),"") -> 0.01285012995 | C28: =IF(SUM('Balance Sheet'!C4:C5)>0,'Profit & Loss'!C12/SUM('Balance Sheet'!C4:C5),"") -> -0.1027900147 | D28: =IF(SUM('Balance Sheet'!D4:D5)>0,'Profit & Loss'!D12/SUM('Balance Sheet'!D4:D5),"") -> -0.01808669656 | E28: =IF(SUM('Balance Sheet'!E4:E5)>0,'Profit & Loss'!E12/SUM('Balance Sheet'!E4:E5),"") -> 0.04890678941 | F28: =IF(SUM('Balance Sheet'!F4:F5)>0,'Profit & Loss'!F12/SUM('Balance Sheet'!F4:F5),"") -> 0.2996474736 | G28: =IF(SUM('Balance Sheet'!G4:G5)>0,'Profit & Loss'!G12/SUM('Balance Sheet'!G4:G5),"") -> 0.2402078337 | H28: =IF(SUM('Balance Sheet'!H4:H5)>0,'Profit & Loss'!H12/SUM('Balance Sheet'!H4:H5),"") -> 0.392103358 | I28: =IF(SUM('Balance Sheet'!I4:I5)>0,'Profit & Loss'!I12/SUM('Balance Sheet'!I4:I5),"") -> 0.4369557842 | J28: =IF(SUM('Balance Sheet'!J4:J5)>0,'Profit & Loss'!J12/SUM('Balance Sheet'!J4:J5),"") -> 0.3725253672 | K28: =IF(SUM('Balance Sheet'!K4:K5)>0,'Profit & Loss'!K12/SUM('Balance Sheet'!K4:K5),"") -> 0.3346813228 | L28: =IF(SUM('Balance Sheet'!L4:L5)>0,'Profit & Loss'!L12/SUM('Balance Sheet'!L4:L5),"") -> 
A29: Return on Capital Emp | B29: =IF(('Balance Sheet'!B10+'Balance Sheet'!B16)>0,('Profit & Loss'!B6-'Profit & Loss'!B8-'Profit & Loss'!B11)/('Balance Sheet'!B10+'Balance Sheet'!B16),"") -> -0.03502135448 | C29: =IF(('Balance Sheet'!C10+'Balance Sheet'!C16)>0,('Profit & Loss'!C6-'Profit & Loss'!C8-'Profit & Loss'!C11)/('Balance Sheet'!C10+'Balance Sheet'!C16),"") -> -0.05316713305 | D29: =IF(('Balance Sheet'!D10+'Balance Sheet'!D16)>0,('Profit & Loss'!D6-'Profit & Loss'!D8-'Profit & Loss'!D11)/('Balance Sheet'!D10+'Balance Sheet'!D16),"") -> -0.1258249641 | E29: =IF(('Balance Sheet'!E10+'Balance Sheet'!E16)>0,('Profit & Loss'!E6-'Profit & Loss'!E8-'Profit & Loss'!E11)/('Balance Sheet'!E10+'Balance Sheet'!E16),"") -> 0.03981115223 | F29: =IF(('Balance Sheet'!F10+'Balance Sheet'!F16)>0,('Profit & Loss'!F6-'Profit & Loss'!F8-'Profit & Loss'!F11)/('Balance Sheet'!F10+'Balance Sheet'!F16),"") -> 0.2973950796 | G29: =IF(('Balance Sheet'!G10+'Balance Sheet'!G16)>0,('Profit & Loss'!G6-'Profit & Loss'!G8-'Profit & Loss'!G11)/('Balance Sheet'!G10+'Balance Sheet'!G16),"") -> 0.2105263158 | H29: =IF(('Balance Sheet'!H10+'Balance Sheet'!H16)>0,('Profit & Loss'!H6-'Profit & Loss'!H8-'Profit & Loss'!H11)/('Balance Sheet'!H10+'Balance Sheet'!H16),"") -> 0.3697853807 | I29: =IF(('Balance Sheet'!I10+'Balance Sheet'!I16)>0,('Profit & Loss'!I6-'Profit & Loss'!I8-'Profit & Loss'!I11)/('Balance Sheet'!I10+'Balance Sheet'!I16),"") -> 0.5184383819 | J29: =IF(('Balance Sheet'!J10+'Balance Sheet'!J16)>0,('Profit & Loss'!J6-'Profit & Loss'!J8-'Profit & Loss'!J11)/('Balance Sheet'!J10+'Balance Sheet'!J16),"") -> 0.3926908817 | K29: =IF(('Balance Sheet'!K10+'Balance Sheet'!K16)>0,('Profit & Loss'!K6-'Profit & Loss'!K8-'Profit & Loss'!K11)/('Balance Sheet'!K10+'Balance Sheet'!K16),"") -> 0.9367156447
A31: Book Value | B31: =B4+B5 -> 69.26 | C31: 68.1 | D31: 66.9 | E31: 69.52 | F31: 93.61 | G31: 125.1 | H31: 179.57 | I31: 265.29 | J31: 422.79 | K31: 640.46 | L31: 0
A32: BVPS | B32: =IF('Data Sheet'!B93>0,B31/'Data Sheet'!B93,0) -> 21.18042813 | C32: =IF('Data Sheet'!C93>0,C31/'Data Sheet'!C93,0) -> 17.025 | D32: =IF('Data Sheet'!D93>0,D31/'Data Sheet'!D93,0) -> 16.725 | E32: =IF('Data Sheet'!E93>0,E31/'Data Sheet'!E93,0) -> 17.38 | F32: =IF('Data Sheet'!F93>0,F31/'Data Sheet'!F93,0) -> 23.4025 | G32: =IF('Data Sheet'!G93>0,G31/'Data Sheet'!G93,0) -> 27.54583762 | H32: =IF('Data Sheet'!H93>0,H31/'Data Sheet'!H93,0) -> 39.53961679 | I32: =IF('Data Sheet'!I93>0,I31/'Data Sheet'!I93,0) -> 58.41435061 | J32: =IF('Data Sheet'!J93>0,J31/'Data Sheet'!J93,0) -> 93.094362 | K32: =IF('Data Sheet'!K93>0,K31/'Data Sheet'!K93,0) -> 141.0232387 | L32: =IF('Data Sheet'!K93>0,L31/'Data Sheet'!K93,0) -> 0
A34: Cash & Bank Balances | B34: ='Data Sheet'!B69 -> 3.99 | C34: ='Data Sheet'!C69 -> 9.01 | D34: ='Data Sheet'!D69 -> 3.42 | E34: ='Data Sheet'!E69 -> 4.56 | F34: ='Data Sheet'!F69 -> 22.05 | G34: ='Data Sheet'!G69 -> 8.59 | H34: ='Data Sheet'!H69 -> 12.86 | I34: ='Data Sheet'!I69 -> 6.16 | J34: ='Data Sheet'!J69 -> 72.57 | K34: ='Data Sheet'!K69 -> 45.12
A35: Cash/Sales | B35: =B34/'Data Sheet'!B17 -> 0.04071013162 | C35: =C34/'Data Sheet'!C17 -> 0.1299956716 | D35: =D34/'Data Sheet'!D17 -> 0.03736071663 | E35: =E34/'Data Sheet'!E17 -> 0.02194945848 | F35: =F34/'Data Sheet'!F17 -> 0.05604839735 | G35: =G34/'Data Sheet'!G17 -> 0.01325535461 | H35: =H34/'Data Sheet'!H17 -> 0.0113643393 | I35: =I34/'Data Sheet'!I17 -> 0.003459391462 | J35: =J34/'Data Sheet'!J17 -> 0.03595618073 | K35: =K34/'Data Sheet'!K17 -> 0.01651138451
A36: Working Capital/Sales
A37: Common Size Balance Sheet | B37: =B3 -> 2008-03-31 | C37: 2009-03-31 | D37: 2010-03-31 | E37: 2011-03-31 | F37: 2012-03-31 | G37: 2013-03-31 | H37: 2014-03-31 | I37: 2015-03-31 | J37: 2016-03-31 | K37: 2017-03-31 | L37: Check back how Assets are being put to use
A38: Net Block/Total Assets | B38: =B10/B$8 -> 0.2795384229 | C38: 0.2544238422 | D38: 0.2429580535 | E38: 0.1758371635 | F38: 0.2351817487 | G38: 0.2043153327 | H38: 0.1940612403 | I38: 0.1874672973 | J38: 0.1670253774 | K38: 0.1518926235 | L38: high historical Fixed Assets/Total Assets - strong correlation high Op Leverage
A39: Working Capital/Total Assets | B39: =B16/B$8 -> 0.4057195418 | C39: 0.4112268225 | D39: 0.3648731142 | E39: 0.3387393303 | F39: 0.292817378 | G39: 0.3972597236 | H39: 0.2830675246 | I39: 0.257498064 | J39: 0.4091551558 | K39: 0.06004903121
A40: Debtors/Total Assets | B40: =B17/B$8 -> 0.1132201689 | C40: 0.1342816019 | D40: 0.07787564315 | E40: 0.1497701904 | F40: 0.08465233053 | G40: 0.1596351655 | H40: 0.1127162565 | I40: 0.07024006363 | J40: 0.05616768391 | K40: 0.02225335315
A41: Inventory/Total Assets | B41: =B18/B$8 -> 0.2232628146 | C41: 0.1725510118 | D41: 0.2378128543 | E41: 0.2564018385 | F41: 0.2300513044 | G41: 0.3903889425 | H41: 0.4986104504 | I41: 0.4646811361 | J41: 0.4586411821 | K41: 0.3366872699
A42: Cash/Total Assets | B42: =B34/B$8 -> 0.03336399364 | C42: =C34/C$8 -> 0.07628481924 | D42: 0.0298247144 | E42: 0.02994090611 | F42: 0.1203471237 | G42: 0.03451462552 | H42: 0.0321974913 | I42: 0.01289269344 | J42: 0.1165595888 | K42: 0.04270826431 | L42: check for excluding excess cash (over and above historical normalised levels)
A44: Borrowings/Total Assets | B44: =B6/B$8 -> 0.3399949829 | C44: 0.3219033105 | D44: 0.2976366966 | E44: 0.3575837163 | F44: 0.2705490667 | G44: 0.2454194793 | H44: 0.1405072482 | I44: 0.1222294313 | J44: 0.01720205589 | K44: 0.01839143563

Sheet Cash Flow
A1: ='Balance Sheet'!A1 -> AVANTI FEEDS LTD | E1: =UPDATE ->  | J1: SCREENER.IN
A3: Narration | B3: ='Data Sheet'!B81 -> 2008-03-31 | C3: ='Data Sheet'!C81 -> 2009-03-31 | D3: ='Data Sheet'!D81 -> 2010-03-31 | E3: ='Data Sheet'!E81 -> 2011-03-31 | F3: ='Data Sheet'!F81 -> 2012-03-31 | G3: ='Data Sheet'!G81 -> 2013-03-31 | H3: ='Data Sheet'!H81 -> 2014-03-31 | I3: ='Data Sheet'!I81 -> 2015-03-31 | J3: ='Data Sheet'!J81 -> 2016-03-31 | K3: ='Data Sheet'!K81 -> 2017-03-31
A4: Cash from Operating Activity | B4: ='Data Sheet'!B82 -> 17.19 | C4: ='Data Sheet'!C82 -> 9.34 | D4: ='Data Sheet'!D82 -> 3.92 | E4: ='Data Sheet'!E82 -> -7.72 | F4: ='Data Sheet'!F82 -> 50.38 | G4: ='Data Sheet'!G82 -> -20.55 | H4: ='Data Sheet'!H82 -> 55.56 | I4: ='Data Sheet'!I82 -> 89.34 | J4: ='Data Sheet'!J82 -> 122 | K4: ='Data Sheet'!K82 -> 291.69
A5: Cash from Investing Activity | B5: ='Data Sheet'!B83 -> 0.47 | C5: ='Data Sheet'!C83 -> 0.65 | D5: ='Data Sheet'!D83 -> -2.19 | E5: ='Data Sheet'!E83 -> -17.6 | F5: ='Data Sheet'!F83 -> -17.44 | G5: ='Data Sheet'!G83 -> 5.43 | H5: ='Data Sheet'!H83 -> -39.1 | I5: ='Data Sheet'!I83 -> -83.52 | J5: ='Data Sheet'!J83 -> 18.13 | K5: ='Data Sheet'!K83 -> -428.3
A6: Cash from Financing Activity | B6: ='Data Sheet'!B84 -> -21.08 | C6: ='Data Sheet'!C84 -> -4.97 | D6: ='Data Sheet'!D84 -> -7.32 | E6: ='Data Sheet'!E84 -> 19.01 | F6: ='Data Sheet'!F84 -> -14.09 | G6: ='Data Sheet'!G84 -> 0.81 | H6: ='Data Sheet'!H84 -> -12.74 | I6: ='Data Sheet'!I84 -> -11.97 | J6: ='Data Sheet'!J84 -> -74.26 | K6: ='Data Sheet'!K84 -> 107.11
A7: Net Cash Flow | B7: ='Data Sheet'!B85 -> -3.42 | C7: ='Data Sheet'!C85 -> 5.02 | D7: ='Data Sheet'!D85 -> -5.59 | E7: ='Data Sheet'!E85 -> -6.31 | F7: ='Data Sheet'!F85 -> 18.85 | G7: ='Data Sheet'!G85 -> -14.31 | H7: ='Data Sheet'!H85 -> 3.72 | I7: ='Data Sheet'!I85 -> -6.15 | J7: ='Data Sheet'!J85 -> 65.86 | K7: ='Data Sheet'!K85 -> -29.5

Sheet Customization
A1: ='Data Sheet'!B1 -> AVANTI FEEDS LTD
B4: DELTA NETWORTH | C4: DELTA MKTCAP | D4: IMPACT* | F4: HISTORICAL VALUATIONS | M4: PRE-TAX BOND
A5: 10 YR | B5: ='Calculated Data'!K10-'Calculated Data'!B10 -> 571.2 | C5: ='Calculated Data'!K33-'Calculated Data'!B33 -> 3851.54522 | D5: =C5/B5 -> 6.742901295 | G5: P/E | H5: P/B | I5: EV/EBITDA | J5: P/SALES | K5: YIELD | M5: LongTerm Bond | N5: 0.09
A6: 7 YR | B6: ='Calculated Data'!K10-'Calculated Data'!E10 -> 570.94 | C6: ='Calculated Data'!K33-'Calculated Data'!E33 -> 3840.46622 | D6: =C6/B6 -> 6.7265671 | F6: MIN | G6: =MIN('Calculated Data'!B38:K38) -> -16.0661157 | H6: =MIN('Calculated Data'!B39:K39) -> 0.1926578561 | I6: =MIN('Calculated Data'!B42:K42) -> 2.242928453 | J6: =MIN('Calculated Data'!B41:K41) -> 0.1466091897 | K6: =MAX('Calculated Data'!B43:K43) -> 0.0734561753 | M6: LTB Quote | N6: =('Profit & Loss'!$L$10/'Data Sheet'!$B$61)/N5 -> 45.04464327
A7: 5 YR | B7: ='Calculated Data'!K10-'Calculated Data'!G10 -> 515.36 | C7: ='Calculated Data'!K33-'Calculated Data'!G33 -> 3777.1376 | D7: =C7/B7 -> 7.329124496 | F7: MAX | G7: =MAX('Calculated Data'!B38:K38) -> 23.14719101 | H7: =MAX('Calculated Data'!B39:K39) -> 6.04588299 | I7: =MAX('Calculated Data'!B42:K42) -> 84.26 | J7: =MAX('Calculated Data'!B41:K41) -> 1.416987924 | K7: =MIN('Calculated Data'!B43:K43) -> 0 | M7: Equity Quoting @ | N7: =('Profit & Loss'!$L$6/'Data Sheet'!$B$6)/'Data Sheet'!$B$8 -> 0.05421494909
A8: 3 YR | B8: ='Calculated Data'!K10-'Calculated Data'!I10 -> 375.17 | C8: ='Calculated Data'!K33-'Calculated Data'!I33 -> 2381.210291 | D8: =C8/B8 -> 6.347016794 | F8: TRAILING | G8: ='Data Sheet'!B8/'Profit & Loss'!L13 -> 28.35732879 | H8: ='Calculated Data'!L33/'Calculated Data'!K10 -> 13.77751928 | I8: ='Calculated Data'!K42 -> 10.87429667 | J8: ='Calculated Data'!L33/'Data Sheet'!K17 -> 3.229069844 | K8: ='Data Sheet'!K31/'Calculated Data'!L33 -> 0.003602694938
A9: 1 YR | B9: ='Calculated Data'!K10-'Calculated Data'!J10 -> 217.67 | C9: ='Calculated Data'!K33-'Calculated Data'!J33 -> 1897.356643 | D9: =C9/B9 -> 8.716665794
A10: * IMPACT – Every Rupee retained added xx.yy in incremental market value
A12: =A1 -> AVANTI FEEDS LTD | B12: SALES | C12: GROSS PROFIT | D12: EBIT | E12: PAT | F12: DIVIDEND | G12: EPA** | H12: MKTCAP | I12: CFO** | J12: FCF** | K12: NETWORTH | L12: TOTAL RETURNS
A13: 10 YR CAGR | B13: =POWER('Data Sheet'!$K17/'Data Sheet'!$B17, 1/9)-1 -> 0.4474067011 | C13: =POWER('Calculated Data'!$K3/'Calculated Data'!$B3, 1/9)-1 -> 0.4362294952 | D13: =POWER('Calculated Data'!$K4/'Calculated Data'!$B4, 1/9)-1 -> 0.5570807248 | E13: =POWER('Calculated Data'!$K7/'Calculated Data'!$B7, 1/9)-1 -> 0.8392342828 | F13: =POWER('Calculated Data'!$K8/'Calculated Data'!$B8, 1/9)-1 -> 0.5406662699 | G13: =POWER('Calculated Data'!$K26/'Calculated Data'!$B26, 1/9)-1 -> -2.48284116 | H13: =POWER('Calculated Data'!$K33/'Calculated Data'!$B33, 1/9)-1 -> 0.7892610842 | I13: =POWER('Calculated Data'!$K17/'Calculated Data'!$B17, 1/9)-1 -> 0.3697058038 | J13: =POWER('Calculated Data'!$K19/'Calculated Data'!$C19, 1/8)-1 -> 0.4486715295 | K13: =POWER('Calculated Data'!$K10/'Calculated Data'!$B10, 1/9)-1 -> 0.2803667623 | L13: =POWER('Calculated Data'!$K34/'Calculated Data'!$B34, 1/9)-1 -> 0.7847165883
A14: 5 YR CAGR | B14: =POWER('Data Sheet'!$K17/'Data Sheet'!$G17, 1/4)-1 -> 0.4329991956 | C14: =POWER('Calculated Data'!$K3/'Calculated Data'!$G3, 1/4)-1 -> 0.4801140985 | D14: =POWER('Calculated Data'!$K4/'Calculated Data'!$G4, 1/4)-1 -> 0.6309226615 | E14: =POWER('Calculated Data'!$K7/'Calculated Data'!$G7, 1/4)-1 -> 0.6342547385 | F14: =POWER('Calculated Data'!$K8/'Calculated Data'!$G8, 1/4)-1 -> 0.5235602351 | G14: =POWER('Calculated Data'!$K26/'Calculated Data'!$G26, 1/4)-1 -> 0.9052681945 | H14: =POWER('Calculated Data'!$K33/'Calculated Data'!$G33, 1/4)-1 -> 1.526662213 | I14: =POWER('Calculated Data'!$K17/'Calculated Data'!$G17, 1/4)-1 ->  | J14: =POWER('Calculated Data'!$K19/'Calculated Data'!$G19, 1/4)-1 ->  | K14: =POWER('Calculated Data'!$K10/'Calculated Data'!$G10, 1/4)-1 -> 0.5042107058 | L14: =POWER('Calculated Data'!$K34/'Calculated Data'!$G34, 1/4)-1 -> 1.49398371
A15: 3 YR CAGR | B15: =POWER('Data Sheet'!$K17/'Data Sheet'!$I17, 1/2)-1 -> 0.2388031425 | C15: =POWER('Calculated Data'!$K3/'Calculated Data'!$I3, 1/2)-1 -> 0.2608881926 | D15: =POWER('Calculated Data'!$K4/'Calculated Data'!$I4, 1/2)-1 -> 0.3649454186 | E15: =POWER('Calculated Data'!$K7/'Calculated Data'!$I7, 1/2)-1 -> 0.3598235484 | F15: =POWER('Calculated Data'!$K8/'Calculated Data'!$I8, 1/2)-1 -> 0.1281037605 | G15: =POWER('Calculated Data'!$K26/'Calculated Data'!$I26, 1/2)-1 -> 0.4450014682 | H15: =POWER('Calculated Data'!$K33/'Calculated Data'!$I33, 1/2)-1 -> 0.6115596463 | I15: =POWER('Calculated Data'!$K17/'Calculated Data'!$I17, 1/2)-1 -> 0.8069153037 | J15: =POWER('Calculated Data'!$K19/'Calculated Data'!$I19, 1/2)-1 -> 0.5873613942 | K15: =POWER('Calculated Data'!$K10/'Calculated Data'!$I10, 1/2)-1 -> 0.5537658275 | L15: =POWER('Calculated Data'!$K34/'Calculated Data'!$I34, 1/2)-1 -> 0.6047737015
A16: 1 YR GROWTH | B16: =('Data Sheet'!$K17-'Data Sheet'!$J17)/'Data Sheet'!$J17 -> 0.3539481442 | C16: =('Calculated Data'!$K3-'Calculated Data'!$J3)/'Calculated Data'!$J3 -> 0.3298830262 | D16: =('Calculated Data'!$K4-'Calculated Data'!$J4)/'Calculated Data'!$J4 -> 0.4076419937 | E16: =('Calculated Data'!$K7-'Calculated Data'!$J7)/'Calculated Data'!$J7 -> 0.360952381 | F16: =('Calculated Data'!$K8-'Calculated Data'!$J8)/'Calculated Data'!$J8 -> 0.2726180945 | G16: =('Calculated Data'!$K26-'Calculated Data'!$J26)/'Calculated Data'!$J26 -> 0.7116216753 | H16: =('Calculated Data'!$K33-'Calculated Data'!$J33)/'Calculated Data'!$J33 -> 0.960789274 | I16: =('Calculated Data'!$K17-'Calculated Data'!$J17)/'Calculated Data'!$J17 -> 1.390901639 | J16: =('Calculated Data'!$K19-'Calculated Data'!$J19)/'Calculated Data'!$J19 -> 2.313655123 | K16: =('Calculated Data'!$K10-'Calculated Data'!$J10)/'Calculated Data'!$J10 -> 0.5148418837 | L16: =('Calculated Data'!$K34-'Calculated Data'!$J34)/'Calculated Data'!$J34 -> 0.9521930255
A17: **modify (if, then) for negative values
A18: =A1 -> AVANTI FEEDS LTD | B18: ='Data Sheet'!B16 -> 2008-03-31 | C18: ='Data Sheet'!C16 -> 2009-03-31 | D18: ='Data Sheet'!D16 -> 2010-03-31 | E18: ='Data Sheet'!E16 -> 2011-03-31 | F18: ='Data Sheet'!F16 -> 2012-03-31 | G18: ='Data Sheet'!G16 -> 2013-03-31 | H18: ='Data Sheet'!H16 -> 2014-03-31 | I18: ='Data Sheet'!I16 -> 2015-03-31 | J18: ='Data Sheet'!J16 -> 2016-03-31 | K18: ='Data Sheet'!K16 -> 2017-03-31 | L18: TTM | M18: input TTM BS data in Balance Sheet from Half yearly results
A19: Total Assets/Networth= Financial Leverage | B19: ='Calculated Data'!B15/'Calculated Data'!B10 -> 1.726682068 | C19: ='Calculated Data'!C15/'Calculated Data'!C10 -> 1.734361233 | D19: ='Calculated Data'!D15/'Calculated Data'!D10 -> 1.714050822 | E19: ='Calculated Data'!E15/'Calculated Data'!E10 -> 2.190736479 | F19: ='Calculated Data'!F15/'Calculated Data'!F10 -> 1.957269522 | G19: ='Calculated Data'!G15/'Calculated Data'!G10 -> 1.989448441 | H19: ='Calculated Data'!H15/'Calculated Data'!H10 -> 2.22425795 | I19: ='Calculated Data'!I15/'Calculated Data'!I10 -> 1.801010215 | J19: ='Calculated Data'!J15/'Calculated Data'!J10 -> 1.47259869 | K19: ='Calculated Data'!K15/'Calculated Data'!K10 -> 1.649548762 | L19: ='Balance Sheet'!L8/'Calculated Data'!L10 -> 
A20: Long term debt/Earning | B20: ='Data Sheet'!B59/'Data Sheet'!B30 -> 45.68539326 | C20: ='Data Sheet'!C59/'Data Sheet'!C30 -> -5.431428571 | D20: ='Data Sheet'!D59/'Data Sheet'!D30 -> -28.20661157 | E20: ='Data Sheet'!E59/'Data Sheet'!E30 -> 16.01764706 | F20: ='Data Sheet'!F59/'Data Sheet'!F30 -> 1.767201426 | G20: ='Data Sheet'!G59/'Data Sheet'!G30 -> 2.032612313 | H20: ='Data Sheet'!H59/'Data Sheet'!H30 -> 0.7970458742 | I20: ='Data Sheet'!I59/'Data Sheet'!I30 -> 0.5037957212 | J20: ='Data Sheet'!J59/'Data Sheet'!J30 -> 0.068 | K20: ='Data Sheet'!K59/'Data Sheet'!K30 -> 0.09064613949
A21: Current liablility/Earning | B21: ='Data Sheet'!B60/'Data Sheet'!B30 -> 10.86516854 | C21: ='Data Sheet'!C60/'Data Sheet'!C30 -> -1.712857143 | D21: ='Data Sheet'!D60/'Data Sheet'!D30 -> -11.27272727 | E21: ='Data Sheet'!E60/'Data Sheet'!E30 -> 8.329411765 | F21: ='Data Sheet'!F60/'Data Sheet'!F30 -> 1.42745098 | G21: ='Data Sheet'!G60/'Data Sheet'!G30 -> 2.086522463 | H21: ='Data Sheet'!H60/'Data Sheet'!H30 -> 2.325237892 | I21: ='Data Sheet'!I60/'Data Sheet'!I30 -> 1.329365079 | J21: ='Data Sheet'!J60/'Data Sheet'!J30 -> 1.200634921 | K21: ='Data Sheet'!K60/'Data Sheet'!K30 -> 1.850151621
A22: Total liability/Earning | B22: =('Data Sheet'!B59+'Data Sheet'!B60)/'Data Sheet'!B30 -> 56.5505618 | C22: =('Data Sheet'!C59+'Data Sheet'!C60)/'Data Sheet'!C30 -> -7.144285714 | D22: =('Data Sheet'!D59+'Data Sheet'!D60)/'Data Sheet'!D30 -> -39.47933884 | E22: =('Data Sheet'!E59+'Data Sheet'!E60)/'Data Sheet'!E30 -> 24.34705882 | F22: =('Data Sheet'!F59+'Data Sheet'!F60)/'Data Sheet'!F30 -> 3.194652406 | G22: =('Data Sheet'!G59+'Data Sheet'!G60)/'Data Sheet'!G30 -> 4.119134775 | H22: =('Data Sheet'!H59+'Data Sheet'!H60)/'Data Sheet'!H30 -> 3.122283767 | I22: =('Data Sheet'!I59+'Data Sheet'!I60)/'Data Sheet'!I30 -> 1.833160801 | J22: =('Data Sheet'!J59+'Data Sheet'!J60)/'Data Sheet'!J30 -> 1.268634921 | K22: =('Data Sheet'!K59+'Data Sheet'!K60)/'Data Sheet'!K30 -> 1.940797761
A23: Debt/Equity | B23: ='Data Sheet'!B59/'Calculated Data'!B10 -> 0.58706324 | C23: ='Data Sheet'!C59/'Calculated Data'!C10 -> 0.5582966226 | D23: ='Data Sheet'!D59/'Calculated Data'!D10 -> 0.5101644245 | E23: ='Data Sheet'!E59/'Calculated Data'!E10 -> 0.7833716916 | F23: ='Data Sheet'!F59/'Calculated Data'!F10 -> 0.5295374426 | G23: ='Data Sheet'!G59/'Calculated Data'!G10 -> 0.4882494005 | H23: ='Data Sheet'!H59/'Calculated Data'!H10 -> 0.3125243638 | I23: ='Data Sheet'!I59/'Calculated Data'!I10 -> 0.2201364544 | J23: ='Data Sheet'!J59/'Calculated Data'!J10 -> 0.02533172497 | K23: ='Data Sheet'!K59/'Calculated Data'!K10 -> 0.03033756987
A24: Interest Coverage | B24: ='Calculated Data'!B4/'Data Sheet'!B27 -> 1.264 | C24: ='Calculated Data'!C4/'Data Sheet'!C27 -> -0.4005641749 | D24: ='Calculated Data'!D4/'Data Sheet'!D27 -> 0.268370607 | E24: ='Calculated Data'!E4/'Data Sheet'!E27 -> 2.15 | F24: ='Calculated Data'!F4/'Data Sheet'!F27 -> 10.83046683 | G24: ='Calculated Data'!G4/'Data Sheet'!G27 -> 12.26020408 | H24: ='Calculated Data'!H4/'Data Sheet'!H27 -> 24.95671982 | I24: ='Calculated Data'!I4/'Data Sheet'!I27 -> 68.35580524 | J24: ='Calculated Data'!J4/'Data Sheet'!J27 -> 71.46745562 | K24: ='Calculated Data'!K4/'Data Sheet'!K27 -> 70.10927835
A25: Working Capital/Sales | B25: ='Calculated Data'!B11/'Data Sheet'!B17 -> 0.4950515254 | C25: ='Calculated Data'!C11/'Data Sheet'!C17 -> 0.7007646804 | D25: ='Calculated Data'!D11/'Data Sheet'!D17 -> 0.4570679484 | E25: ='Calculated Data'!E11/'Data Sheet'!E17 -> 0.2483273165 | F25: ='Calculated Data'!F11/'Data Sheet'!F17 -> 0.1363717242 | G25: ='Calculated Data'!G11/'Data Sheet'!G17 -> 0.1525677427 | H25: ='Calculated Data'!H11/'Data Sheet'!H17 -> 0.09991074664 | I25: ='Calculated Data'!I11/'Data Sheet'!I17 -> 0.06909235901 | J25: ='Calculated Data'!J11/'Data Sheet'!J17 -> 0.1262157569 | K25: ='Calculated Data'!K11/'Data Sheet'!K17 -> 0.02321547503 | M25: Check for improving or deteriorating picture
A26: Inventory Turns | B26: =365/B27 -> 3.670786517 | C26: 3.400883219 | D26: 3.356802347 | E26: 5.320102433 | F26: 9.333570581 | G26: 6.669822972 | H26: 5.682199347 | I26: 8.020268444 | J26: 7.068079146 | K26: 7.68248524
A27: Inventory Days | B27: ='Balance Sheet'!B22 -> 99.43373125 | C27: ='Balance Sheet'!C22 -> 107.3250613 | D27: ='Balance Sheet'!D22 -> 108.734433 | E27: ='Balance Sheet'!E22 -> 68.60770156 | F27: ='Balance Sheet'!F22 -> 39.1061488 | G27: ='Balance Sheet'!G22 -> 54.72409111 | H27: ='Balance Sheet'!H22 -> 64.23569074 | I27: ='Balance Sheet'!I22 -> 45.50969865 | J27: ='Balance Sheet'!J22 -> 51.64062152 | K27: ='Balance Sheet'!K22 -> 47.51066726
A28: Debtor Days | B28: ='Balance Sheet'!B23 -> 50.42444649 | C28: ='Balance Sheet'!C23 -> 83.52185832 | D28: ='Balance Sheet'!D23 -> 35.60683854 | E28: ='Balance Sheet'!E23 -> 40.07533093 | F28: ='Balance Sheet'!F23 -> 14.38994942 | G28: ='Balance Sheet'!G23 -> 22.37739954 | H28: ='Balance Sheet'!H23 -> 14.52116895 | I28: ='Balance Sheet'!I23 -> 6.879134703 | J28: ='Balance Sheet'!J23 -> 6.32419028 | K28: ='Balance Sheet'!K23 -> 3.140218688
A29: Creditor Days | B29: ='Balance Sheet'!B24 -> 0 | C29: ='Balance Sheet'!C24 -> 0 | D29: ='Balance Sheet'!D24 -> 0 | E29: ='Balance Sheet'!E24 -> 0 | F29: ='Balance Sheet'!F24 -> 0 | G29: ='Balance Sheet'!G24 -> 0 | H29: ='Balance Sheet'!H24 -> 0 | I29: ='Balance Sheet'!I24 -> 0 | J29: ='Balance Sheet'!J24 -> 0 | K29: ='Balance Sheet'!K24 -> 0 | M29: Check back to see if Creditor policy change is impacting Working Cap cycle
A30: Cash Conversion Cycle | B30: ='Balance Sheet'!B25 -> 0 | C30: ='Balance Sheet'!C25 -> 0 | D30: ='Balance Sheet'!D25 -> 0 | E30: ='Balance Sheet'!E25 -> 0 | F30: ='Balance Sheet'!F25 -> 0 | G30: ='Balance Sheet'!G25 -> 0 | H30: ='Balance Sheet'!H25 -> 0 | I30: ='Balance Sheet'!I25 -> 0 | J30: ='Balance Sheet'!J25 -> 0 | K30: ='Balance Sheet'!K25 -> 0
A31: Cash In/Cash Out Ratio | B31: =('Data Sheet'!B67+'Data Sheet'!B69)/'Data Sheet'!B60 -> 1.812823164 | C31: =('Data Sheet'!C67+'Data Sheet'!C69)/'Data Sheet'!C60 -> 2.074228524 | D31: =('Data Sheet'!D67+'Data Sheet'!D69)/'Data Sheet'!D60 -> 0.9054252199 | E31: =('Data Sheet'!E67+'Data Sheet'!E69)/'Data Sheet'!E60 -> 0.9664548023 | F31: =('Data Sheet'!F67+'Data Sheet'!F69)/'Data Sheet'!F60 -> 0.9380619381 | G31: =('Data Sheet'!G67+'Data Sheet'!G69)/'Data Sheet'!G60 -> 0.7706539075 | H31: =('Data Sheet'!H67+'Data Sheet'!H69)/'Data Sheet'!H60 -> 0.3535304178 | I31: =('Data Sheet'!I67+'Data Sheet'!I69)/'Data Sheet'!I60 -> 0.2577547047 | J31: =('Data Sheet'!J67+'Data Sheet'!J69)/'Data Sheet'!J60 -> 0.5686938128 | K31: =('Data Sheet'!K67+'Data Sheet'!K69)/'Data Sheet'!K60 -> 0.173054617
A32: Current Ratio | B32: ='Data Sheet'!B65/'Data Sheet'!B60 -> 6.017580145 | C32: ='Data Sheet'!C65/'Data Sheet'!C60 -> 5.05087573 | D32: ='Data Sheet'!D65/'Data Sheet'!D60 -> 4.06744868 | E32: ='Data Sheet'!E65/'Data Sheet'!E60 -> 2.821680791 | F32: ='Data Sheet'!F65/'Data Sheet'!F60 -> 2.33991009 | G32: ='Data Sheet'!G65/'Data Sheet'!G60 -> 2.576874003 | H32: ='Data Sheet'!H65/'Data Sheet'!H60 -> 1.690569265 | I32: ='Data Sheet'!I65/'Data Sheet'!I60 -> 1.798377677 | J32: ='Data Sheet'!J65/'Data Sheet'!J60 -> 2.347117927 | K32: ='Data Sheet'!K65/'Data Sheet'!K60 -> 1.159967724
A33: CFO/PAT | B33: ='Calculated Data'!B17/'Calculated Data'!B7 -> 19.31460674 | C33: ='Calculated Data'!C17/'Calculated Data'!C7 -> -1.334285714 | D33: ='Calculated Data'!D17/'Calculated Data'!D7 -> -3.239669421 | E33: ='Calculated Data'!E17/'Calculated Data'!E7 -> -2.270588235 | F33: ='Calculated Data'!F17/'Calculated Data'!F7 -> 1.796078431 | G33: ='Calculated Data'!G17/'Calculated Data'!G7 -> -0.6838602329 | H33: ='Calculated Data'!H17/'Calculated Data'!H7 -> 0.7890924585 | I33: ='Calculated Data'!I17/'Calculated Data'!I7 -> 0.7707039337 | J33: ='Calculated Data'!J17/'Calculated Data'!J7 -> 0.7746031746 | K33: ='Calculated Data'!K17/'Calculated Data'!K7 -> 1.360811756
A35: Gross Margin =Gross Profit/Sales | B35: ='Calculated Data'!B3/'Data Sheet'!B17 -> 0.2480359147 | C35: ='Calculated Data'!C3/'Data Sheet'!C17 -> 0.2791804934 | D35: ='Calculated Data'!D3/'Data Sheet'!D17 -> 0.1529386061 | E35: ='Calculated Data'!E3/'Data Sheet'!E17 -> 0.1739590854 | F35: ='Calculated Data'!F3/'Data Sheet'!F17 -> 0.301161638 | G35: ='Calculated Data'!G3/'Data Sheet'!G17 -> 0.2032436269 | H35: ='Calculated Data'!H3/'Data Sheet'!H17 -> 0.2202260496 | I35: ='Calculated Data'!I3/'Data Sheet'!I17 -> 0.2232879943 | J35: ='Calculated Data'!J3/'Data Sheet'!J17 -> 0.2355062949 | K35: ='Calculated Data'!K3/'Data Sheet'!K17 -> 0.2313203984
A36: EBIT/Sales | B36: ='Calculated Data'!B4/'Data Sheet'!B17 -> 0.064483216 | C36: ='Calculated Data'!C4/'Data Sheet'!C17 -> -0.04097532824 | D36: ='Calculated Data'!D4/'Data Sheet'!D17 -> 0.009176316364 | E36: ='Calculated Data'!E4/'Data Sheet'!E17 -> 0.04760529483 | F36: ='Calculated Data'!F4/'Data Sheet'!F17 -> 0.1120459571 | G36: ='Calculated Data'!G4/'Data Sheet'!G17 -> 0.07416208876 | H36: ='Calculated Data'!H4/'Data Sheet'!H17 -> 0.09681780826 | I36: ='Calculated Data'!I4/'Data Sheet'!I17 -> 0.1024957038 | J36: ='Calculated Data'!J4/'Data Sheet'!J17 -> 0.1196854763 | K36: ='Calculated Data'!K4/'Data Sheet'!K17 -> 0.1244318722 | L36: ='Calculated Data'!L4/'Profit & Loss'!L4 -> 0.1640996675
A37: EBITDA/Sales | B37: ='Calculated Data'!B5/'Data Sheet'!B17 -> 0.1040710132 | C37: ='Calculated Data'!C5/'Data Sheet'!C17 -> 0.007213966239 | D37: ='Calculated Data'!D5/'Data Sheet'!D17 -> 0.03954555386 | E37: ='Calculated Data'!E5/'Data Sheet'!E17 -> 0.06156438026 | F37: ='Calculated Data'!F5/'Data Sheet'!F17 -> 0.1222134669 | G37: ='Calculated Data'!G5/'Data Sheet'!G17 -> 0.08184679958 | H37: ='Calculated Data'!H5/'Data Sheet'!H17 -> 0.1017134879 | I37: ='Calculated Data'!I5/'Data Sheet'!I17 -> 0.1074376916 | J37: ='Calculated Data'!J5/'Data Sheet'!J17 -> 0.1247541235 | K37: ='Calculated Data'!K5/'Data Sheet'!K17 -> 0.1294416429
A38: Op Profit (Ex Other Income)/Sales | B38: ='Calculated Data'!B6/'Data Sheet'!B17 -> 0.01469237833 | C38: ='Calculated Data'!C6/'Data Sheet'!C17 -> -0.05439330544 | D38: ='Calculated Data'!D6/'Data Sheet'!D17 -> -0.07723399607 | E38: ='Calculated Data'!E6/'Data Sheet'!E17 -> 0.04163658243 | F38: ='Calculated Data'!F6/'Data Sheet'!F17 -> 0.1136981775 | G38: ='Calculated Data'!G6/'Data Sheet'!G17 -> 0.07786556385 | H38: ='Calculated Data'!H6/'Data Sheet'!H17 -> 0.09846148408 | I38: ='Calculated Data'!I6/'Data Sheet'!I17 -> 0.1023721541 | J38: ='Calculated Data'!J6/'Data Sheet'!J17 -> 0.1141064961 | K38: ='Calculated Data'!K6/'Data Sheet'!K17 -> 0.1214384519
A39: Net Margin =PAT/Sales | B39: ='Calculated Data'!B7/'Data Sheet'!B17 -> 0.00908070605 | C39: ='Calculated Data'!C7/'Data Sheet'!C17 -> -0.1009955273 | D39: ='Calculated Data'!D7/'Data Sheet'!D17 -> -0.01321826524 | E39: ='Calculated Data'!E7/'Data Sheet'!E17 -> 0.01636582431 | F39: ='Calculated Data'!F7/'Data Sheet'!F17 -> 0.07129966193 | G39: ='Calculated Data'!G7/'Data Sheet'!G17 -> 0.04637059441 | H39: ='Calculated Data'!H7/'Data Sheet'!H17 -> 0.06222108324 | I39: ='Calculated Data'!I7/'Data Sheet'!I17 -> 0.0650994575 | J39: ='Calculated Data'!J7/'Data Sheet'!J17 -> 0.07803635751 | K39: ='Calculated Data'!K7/'Data Sheet'!K17 -> 0.07844005475 | L39: ='Calculated Data'!L7/'Profit & Loss'!L4 -> 0.1046199261
A40: Op Cash Flow/Sales | B40: ='Calculated Data'!B17/'Data Sheet'!B17 -> 0.1753902663 | C40: ='Calculated Data'!C17/'Data Sheet'!C17 -> 0.1347568893 | D40: ='Calculated Data'!D17/'Data Sheet'!D17 -> 0.0428228097 | E40: ='Calculated Data'!E17/'Data Sheet'!E17 -> -0.03716004813 | F40: ='Calculated Data'!F17/'Data Sheet'!F17 -> 0.128059785 | G40: ='Calculated Data'!G17/'Data Sheet'!G17 -> -0.03171100549 | H40: ='Calculated Data'!H17/'Data Sheet'!H17 -> 0.04909818754 | I40: ='Calculated Data'!I17/'Data Sheet'!I17 -> 0.05017240798 | J40: ='Calculated Data'!J17/'Data Sheet'!J17 -> 0.06044721026 | K40: ='Calculated Data'!K17/'Data Sheet'!K17 -> 0.1067421487
A41: Free Cash Flow/Sales | B41: ='Calculated Data'!B19/'Data Sheet'!B17 -> 0 | C41: ='Calculated Data'!C19/'Data Sheet'!C17 -> 0.1373539172 | D41: ='Calculated Data'!D19/'Data Sheet'!D17 -> 0.03637753987 | E41: ='Calculated Data'!E19/'Data Sheet'!E17 -> -0.09944645006 | F41: ='Calculated Data'!F19/'Data Sheet'!F17 -> 0.1004549961 | G41: ='Calculated Data'!G19/'Data Sheet'!G17 -> -0.05124683662 | H41: ='Calculated Data'!H19/'Data Sheet'!H17 -> 0.01779765113 | I41: ='Calculated Data'!I19/'Data Sheet'!I17 -> 0.04115889614 | J41: ='Calculated Data'!J19/'Data Sheet'!J17 -> 0.02761248384 | K41: ='Calculated Data'!K19/'Data Sheet'!K17 -> 0.06757884259
A42: EPA/Sales | B42: ='Calculated Data'!B26/'Data Sheet'!B17 -> -0.05703079154 | C42: ='Calculated Data'!C26/'Data Sheet'!C17 -> -0.1650038104 | D42: ='Calculated Data'!D26/'Data Sheet'!D17 -> -0.08652127163 | E42: ='Calculated Data'!E26/'Data Sheet'!E17 -> -0.01992411448 | F42: ='Calculated Data'!F26/'Data Sheet'!F17 -> 0.04853505035 | G42: ='Calculated Data'!G26/'Data Sheet'!G17 -> 0.02268846925 | H42: ='Calculated Data'!H26/'Data Sheet'!H17 -> 0.04349192781 | I42: ='Calculated Data'!I26/'Data Sheet'!I17 -> 0.05210913933 | J42: ='Calculated Data'!J26/'Data Sheet'!J17 -> 0.05608414892 | K42: ='Calculated Data'!K26/'Data Sheet'!K17 -> 0.07089994202
A43: EPA/Sales Increase - last 5 Years | F43: =(F42-B42) -> 0.1055658419 | G43: =(G42-C42) -> 0.1876922796 | H43: 0.1300131994 | I43: 0.0720332538 | J43: 0.007549098571 | K43: 0.04821147277
A44: EPA/Sales Increase - last 3 Years | D44: =(D42-B42) -> -0.02949048009 | E44: =(E42-C42) -> 0.1450796959 | F44: 0.135056322 | G44: 0.04261258373 | H44: -0.005043122537 | I44: 0.02942067007 | J44: 0.01259222111 | K44: 0.0187908027
A45: MktCap Cagr - last 5 years | F45: =POWER('Calculated Data'!F33/'Calculated Data'!B33, 1/4)-1 -> 0.4051861139 | G45: =POWER('Calculated Data'!G33/'Calculated Data'!C33, 1/4)-1 -> 0.6404284511 | H45: =POWER('Calculated Data'!H33/'Calculated Data'!D33, 1/4)-1 -> 1.296844279 | I45: =POWER('Calculated Data'!I33/'Calculated Data'!E33, 1/4)-1 -> 1.619198733 | J45: =POWER('Calculated Data'!J33/'Calculated Data'!F33, 1/4)-1 -> 1.226764462 | K45: =POWER('Calculated Data'!K33/'Calculated Data'!G33, 1/4)-1 -> 1.526662213
A46: MktCap Cagr - last 3 years | D46: =POWER('Calculated Data'!D33/'Calculated Data'!B33, 1/2)-1 -> -0.02858684771 | E46: =POWER('Calculated Data'!E33/'Calculated Data'!C33, 1/2)-1 -> 0.5539093108 | F46: =POWER('Calculated Data'!F33/'Calculated Data'!D33, 1/2)-1 -> 1.03265522 | G46: =POWER('Calculated Data'!G33/'Calculated Data'!E33, 1/2)-1 -> 0.7317648363 | H46: =POWER('Calculated Data'!H33/'Calculated Data'!F33, 1/2)-1 -> 1.595370622 | I46: =POWER('Calculated Data'!I33/'Calculated Data'!G33, 1/2)-1 -> 2.96139352 | J46: =POWER('Calculated Data'!J33/'Calculated Data'!H33, 1/2)-1 -> 0.9105094001 | K46: =POWER('Calculated Data'!K33/'Calculated Data'!I33, 1/2)-1 -> 0.6115596463
A49: Sales/Invested Capital =Capital Turns | B49: ='Data Sheet'!B17/'Calculated Data'!B13 -> 1.193933488 | C49: ='Data Sheet'!C17/'Calculated Data'!C13 -> 0.8815822946 | D49: ='Data Sheet'!D17/'Calculated Data'!D13 -> 1.313342898 | E49: ='Data Sheet'!E17/'Calculated Data'!E13 -> 2.321488434 | F49: ='Data Sheet'!F17/'Calculated Data'!F13 -> 3.997662839 | G49: ='Data Sheet'!G17/'Calculated Data'!G13 -> 4.282862996 | H49: ='Data Sheet'!H17/'Calculated Data'!H13 -> 5.79184154 | I49: ='Data Sheet'!I17/'Calculated Data'!I13 -> 8.375634995 | J49: ='Data Sheet'!J17/'Calculated Data'!J13 -> 5.04131385 | K49: ='Data Sheet'!K17/'Calculated Data'!K13 -> 9.037171771
A50: Sales/Fixed Assets= Fixed Asset Turns | B50: ='Data Sheet'!B17/'Data Sheet'!B62 -> 2.931797786 | C50: ='Data Sheet'!C17/'Data Sheet'!C62 -> 2.306489185 | D50: ='Data Sheet'!D17/'Data Sheet'!D62 -> 3.285714286 | E50: ='Data Sheet'!E17/'Data Sheet'!E62 -> 7.757654966 | F50: ='Data Sheet'!F17/'Data Sheet'!F62 -> 9.129960548 | G50: ='Data Sheet'!G17/'Data Sheet'!G62 -> 12.74414946 | H50: ='Data Sheet'!H17/'Data Sheet'!H62 -> 14.59953554 | I50: ='Data Sheet'!I17/'Data Sheet'!I62 -> 19.88009378 | J50: ='Data Sheet'!J17/'Data Sheet'!J62 -> 19.40850082 | K50: ='Data Sheet'!K17/'Data Sheet'!K62 -> 17.02910201
A51: Sales/Total Assets= Asset Turns | B51: ='Data Sheet'!B17/'Calculated Data'!B15 -> 0.8195501296 | C51: ='Data Sheet'!C17/'Calculated Data'!C15 -> 0.5868258403 | D51: ='Data Sheet'!D17/'Calculated Data'!D15 -> 0.7982907474 | E51: ='Data Sheet'!E17/'Calculated Data'!E15 -> 1.364084045 | F51: ='Data Sheet'!F17/'Calculated Data'!F15 -> 2.147200087 | G51: ='Data Sheet'!G17/'Calculated Data'!G15 -> 2.603825137 | H51: ='Data Sheet'!H17/'Calculated Data'!H15 -> 2.833203976 | I51: ='Data Sheet'!I17/'Calculated Data'!I15 -> 3.726867452 | J51: ='Data Sheet'!J17/'Calculated Data'!J15 -> 3.241712175 | K51: ='Data Sheet'!K17/'Calculated Data'!K15 -> 2.586594981 | L51: ='Profit & Loss'!L4/'Balance Sheet'!L8 -> 
A52: Net Margin*Asset Turns= RoA | B52: =B39*B51 -> 0.007442093821 | C52: =C39*C51 -> -0.0592667852 | D52: -0.01055201884 | E52: 0.02232435982 | F52: 0.1530946403 | G52: 0.1207409193 | H52: 0.1762850204 | I52: 0.2426170493 | J52: 0.2529714102 | K52: 0.2028926519 | L52: =L39*L51 ->  | M52: Check back what is really driving RoA (Net Margins or Asset Turns, or both)
A53: Net Margin*Asset Turn*Fin Leverage= RoE | B53: =B39*B51*B19 -> 0.01285012995 | C53: -0.1027900147 | D53: -0.01808669656 | E53: 0.04890678941 | F53: 0.2996474736 | G53: 0.2402078337 | H53: 0.392103358 | I53: 0.4369557842 | J53: 0.3725253672 | K53: 0.3346813228 | L53: =L39*L51*L19 ->  | M53: Check back what is really driving RoE (Net Margins, Asset Turns, or Financial Leverage)
A54: RoCE | B54: ='Calculated Data'!B4/'Calculated Data'!B14 -> 0.05749636099 | C54: ='Calculated Data'!C4/'Calculated Data'!C14 -> -0.02676215605 | D54: ='Calculated Data'!D4/'Calculated Data'!D14 -> 0.008314362071 | E54: ='Calculated Data'!E4/'Calculated Data'!E14 -> 0.0797709308 | F54: ='Calculated Data'!F4/'Calculated Data'!F14 -> 0.3078642268 | G54: ='Calculated Data'!G4/'Calculated Data'!G14 -> 0.2581372865 | H54: ='Calculated Data'!H4/'Calculated Data'!H14 -> 0.4648478934 | I54: ='Calculated Data'!I4/'Calculated Data'!I14 -> 0.5638419475 | J54: ='Calculated Data'!J4/'Calculated Data'!J14 -> 0.5572318339 | K54: ='Calculated Data'!K4/'Calculated Data'!K14 -> 0.5152828502
A55: EBIT Margin*Cap Turns*(1-Tax rate)= RoIC | B55: =B36*B49*(1-'Calculated Data'!B22) -> 0.05190902815 | C55: =C36*C49*(1-'Calculated Data'!C22) -> -0.02546443779 | D55: =D36*D49*(1-'Calculated Data'!D22) -> 0.006367902364 | E55: =E36*E49*(1-'Calculated Data'!E22) -> 0.07374639867 | F55: =F36*F49*(1-'Calculated Data'!F22) -> 0.3140267672 | G55: =G36*G49*(1-'Calculated Data'!G22) -> 0.2171716054 | H55: =H36*H49*(1-'Calculated Data'!H22) -> 0.3718983541 | I55: =I36*I49*(1-'Calculated Data'!I22) -> 0.5564471309 | J55: =J36*J49*(1-'Calculated Data'!J22) -> 0.4027377967 | K55: =K36*K49*(1-'Calculated Data'!K22) -> 0.7607349546 | L55: ='Business Robustness'!L14*'Business Robustness'!L16*(1-'Calculated Data'!K22) ->  | M55: Check back what is really driving RoIC (Op Margins or Capital Turns, or both)
A56: Return on Incremental Invested Cap= RoIIC | D56: ='Calculated Data'!D27 -> -0.7048578944 | E56: ='Calculated Data'!E27 -> -0.6901034106 | F56: ='Calculated Data'!F27 -> 1.228085343 | G56: ='Calculated Data'!G27 -> 0.2193790872 | H56: ='Calculated Data'!H27 -> 0.7523868585 | I56: ='Calculated Data'!I27 -> 1.035606072 | J56: ='Calculated Data'!J27 -> 2.493345928 | K56: ='Calculated Data'!K27 -> 0.3664178889
A57: ='Calculated Data'!A28 -> 3Yr Rolling RoIIC | G57: ='Calculated Data'!G28 -> 1.638018839 | H57: ='Calculated Data'!H28 -> 0.809483338 | I57: ='Calculated Data'!I28 -> 0.8253592018 | J57: ='Calculated Data'!J28 -> 1.124230154 | K57: ='Calculated Data'!K28 -> 0.6319046544 | M57: better to check when NOPLAT and/or Investments are Lumpy
A58: ='Calculated Data'!A29 -> 5Yr Rolling RoIIC | G58: ='Calculated Data'!G29 -> 0 | H58: ='Calculated Data'!H29 -> 1.078640776 | I58: ='Calculated Data'!I29 -> 1.009393776 | J58: ='Calculated Data'!J29 -> 1.082130943 | K58: ='Calculated Data'!K29 -> 0.6405702291 | M58: better to check when NOPLAT and/or Investments are Lumpy
A60: Altman Z-Score | B60: ='Calculated Data'!B50 -> 1.586977172 | C60: ='Calculated Data'!C50 -> 0.9846245026 | D60: ='Calculated Data'!D50 -> 1.347257347 | E60: ='Calculated Data'!E50 -> 2.133571898 | F60: ='Calculated Data'!F50 -> 3.72478987 | G60: ='Calculated Data'!G50 -> 4.082679089 | H60: ='Calculated Data'!H50 -> 5.08989469 | I60: ='Calculated Data'!I50 -> 7.435183988 | J60: ='Calculated Data'!J50 -> 7.214146717 | K60: ='Calculated Data'!K50 -> 6.161801785
A61: Dividend Payout | B61: ='Data Sheet'!B31/'Data Sheet'!B30 -> 0.7303370787 | C61: ='Data Sheet'!C31/'Data Sheet'!C30 -> 0 | D61: ='Data Sheet'!D31/'Data Sheet'!D30 -> 0 | E61: ='Data Sheet'!E31/'Data Sheet'!E30 -> 0.2352941176 | F61: ='Data Sheet'!F31/'Data Sheet'!F30 -> 0.2103386809 | G61: ='Data Sheet'!G31/'Data Sheet'!G30 -> 0.1963394343 | H61: ='Data Sheet'!H31/'Data Sheet'!H30 -> 0.193438432 | I61: ='Data Sheet'!I31/'Data Sheet'!I30 -> 0.2154934438 | J61: ='Data Sheet'!J31/'Data Sheet'!J30 -> 0.1586031746 | K61: ='Data Sheet'!K31/'Data Sheet'!K30 -> 0.1483088407
A62: Cash/Assets | B62: ='Data Sheet'!B69/'Data Sheet'!B61 -> 0.03336399364 | C62: ='Data Sheet'!C69/'Data Sheet'!C61 -> 0.07628481924 | D62: ='Data Sheet'!D69/'Data Sheet'!D61 -> 0.0298247144 | E62: ='Data Sheet'!E69/'Data Sheet'!E61 -> 0.02994090611 | F62: ='Data Sheet'!F69/'Data Sheet'!F61 -> 0.1203471237 | G62: ='Data Sheet'!G69/'Data Sheet'!G61 -> 0.03451462552 | H62: ='Data Sheet'!H69/'Data Sheet'!H61 -> 0.0321974913 | I62: ='Data Sheet'!I69/'Data Sheet'!I61 -> 0.01289269344 | J62: ='Data Sheet'!J69/'Data Sheet'!J61 -> 0.1165595888 | K62: ='Data Sheet'!K69/'Data Sheet'!K61 -> 0.04270826431
A63: EBIT/Invested Capital | B63: ='Calculated Data'!B4/'Calculated Data'!B13 -> 0.07698867097 | C63: ='Calculated Data'!C4/'Calculated Data'!C13 -> -0.03612312389 | D63: ='Calculated Data'!D4/'Calculated Data'!D13 -> 0.01205164993 | E63: ='Calculated Data'!E4/'Calculated Data'!E13 -> 0.1105151414 | F63: ='Calculated Data'!F4/'Calculated Data'!F13 -> 0.4479219592 | G63: ='Calculated Data'!G4/'Calculated Data'!G13 -> 0.3176260657 | H63: ='Calculated Data'!H4/'Calculated Data'!H13 -> 0.5607534036 | I63: ='Calculated Data'!I4/'Calculated Data'!I13 -> 0.858466604 | J63: ='Calculated Data'!J4/'Calculated Data'!J13 -> 0.6033720495 | K63: ='Calculated Data'!K4/'Calculated Data'!K13 -> 1.124512203 | M63: Check back the significant role of EBIT/Invested Capital
A64: EPA | B64: ='Calculated Data'!B26 -> -5.589587879 | C64: ='Calculated Data'!C26 -> -11.4364141 | D64: ='Calculated Data'!D26 -> -7.920157205 | E64: ='Calculated Data'!E26 -> -4.139234783 | F64: ='Calculated Data'!F26 -> 19.09417416 | G64: ='Calculated Data'!G26 -> 14.70303561 | H64: ='Calculated Data'!H26 -> 49.21590043 | I64: ='Calculated Data'!I26 -> 92.78866003 | J64: ='Calculated Data'!J26 -> 113.1940769 | K64: ='Calculated Data'!K26 -> 193.7454356 | M64: Check back what is really driving EPA (Invested Capital or RoIC, or both)
A65: MktCap | B65: ='Calculated Data'!B33 -> 20.601 | C65: ='Calculated Data'!C33 -> 13.12 | D65: ='Calculated Data'!D33 -> 19.44 | E65: ='Calculated Data'!E33 -> 31.68 | F65: ='Calculated Data'!F33 -> 80.32 | G65: ='Calculated Data'!G33 -> 95.00861932 | H65: ='Calculated Data'!H33 -> 541.0313967 | I65: ='Calculated Data'!I33 -> 1490.935929 | J65: ='Calculated Data'!J33 -> 1974.789576 | K65: ='Calculated Data'!K33 -> 3872.14622
A66: MktCap Change | C66: =C65-B65 -> -7.481 | D66: =D65-C65 -> 6.32 | E66: 12.24 | F66: 48.64 | G66: 14.68861932 | H66: 446.0227774 | I66: 949.9045324 | J66: 483.8536473 | K66: 1897.356643
A67: MktCap Change - EPA | C67: =C66-C64 -> 3.955414099 | D67: 14.24015721 | E67: 16.37923478 | F67: 29.54582584 | G67: -0.01441629396 | H67: 396.806877 | I67: 857.1158723 | J67: 370.6595704 | K67: 1703.611208
A69: Capex/Net Profits 10 yr | B69: =SUM('Calculated Data'!B$18:K$18)/SUM('Calculated Data'!B$7:K$7) -> 0.4272486772
A70: Capex/Net Profits 7 yr | B70: =SUM('Calculated Data'!E$18:K$18)/SUM('Calculated Data'!E$7:K$7) -> 0.4215401498
A71: Capex/Net Profits 5 yr | B71: =SUM('Calculated Data'!G$18:K$18)/SUM('Calculated Data'!G$7:K$7) -> 0.4036176326
A72: Capex/Net Profits 3 yr | B72: =SUM('Calculated Data'!I$18:K$18)/SUM('Calculated Data'!I$7:K$7) -> 0.3881747545
A73: Capex/Depreciation 10 yr | B73: =SUM('Calculated Data'!B$18:K$18)/SUM('Data Sheet'!B26:K26) -> 4.350349185

Sheet Data Sheet
A1: COMPANY NAME | B1: AVANTI FEEDS LTD | E1: =IF(B2<>B3, "A NEW VERSION OF THE WORKSHEET IS AVAILABLE", "") -> 
A2: LATEST VERSION | B2: 2.1 | E2: PLEASE DO NOT MAKE ANY CHANGES TO THIS SHEET
A3: CURRENT VERSION | B3: 2.1
A5: META
A6: Number of shares | B6: =IF(B9>0, B9/B8, 0) -> 4.541521913
A7: Face Value | B7: 2
A8: Current Price | B8: 1942.95
A9: Market Capitalization | B9: 8823.95
A15: PROFIT & LOSS
A16: Report Date | B16: 2008-03-31 | C16: 2009-03-31 | D16: 2010-03-31 | E16: 2011-03-31 | F16: 2012-03-31 | G16: 2013-03-31 | H16: 2014-03-31 | I16: 2015-03-31 | J16: 2016-03-31 | K16: 2017-03-31
A17: Sales | B17: 98.01 | C17: 69.31 | D17: 91.54 | E17: 207.75 | F17: 393.41 | G17: 648.04 | H17: 1131.61 | I17: 1780.66 | J17: 2018.29 | K17: 2732.66
A18: Raw Material Cost | B18: 73.7 | C18: 49.96 | D18: 77.54 | E18: 171.61 | F18: 274.93 | G18: 516.33 | H18: 882.4 | I18: 1383.06 | J18: 1542.97 | K18: 2100.54
A19: Change in Inventory | B19: 0.89 | C19: -3.17 | D19: 1 | E19: 9.42 | F19: -4.17 | G19: 19.36 | H19: 12.63 | I19: 15 | J19: 14.06 | K19: 29.38
A20: Power and Fuel | B20: 3.57 | C20: 3.02 | D20: 3.73 | E20: 7.05 | F20: 10.85 | G20: 19.12 | H20: 26.39 | I20: 28.83 | J20: 25.63 | K20: 33.65
A21: Other Mfr. Exp | B21: 4.74 | C21: 4.2 | D21: 4.93 | E21: 9.18 | F21: 9.07 | G21: 13.91 | H21: 20.42 | I21: 34.56 | J21: 34.87 | K21: 45.43
A22: Employee Cost | B22: 4.53 | C22: 4.31 | D22: 4.65 | E22: 6.7 | F22: 12.47 | G22: 17.42 | H22: 35.22 | I22: 47.64 | J22: 58.08 | K22: 73.35
A23: Selling and admin | B23: 7.58 | C23: 7.12 | D23: 7.98 | E23: 14.34 | F23: 29.9 | G23: 47.48 | H23: 66.4 | I23: 116.67 | J23: 133.26 | K23: 168.94
A24: Other Expenses | B24: 3.34 | C24: 1.3 | D24: 0.78 | E24: 0.51 | F24: 7.29 | G24: 2.68 | H24: 1.98 | I24: 2.61 | J24: 7.24 | K24: 8.27
A25: Other Income | B25: 8.76 | C25: 4.27 | D25: 10.69 | E25: 4.14 | F25: 3.35 | G25: 2.58 | H25: 3.68 | I25: 9.02 | J25: 21.49 | K25: 21.87
A26: Depreciation | B26: 3.88 | C26: 3.34 | D26: 2.78 | E26: 2.9 | F26: 4 | G26: 4.98 | H26: 5.54 | I26: 8.8 | J26: 10.23 | K26: 13.69
A27: Interest | B27: 5 | C27: 7.09 | D27: 3.13 | E27: 4.6 | F27: 4.07 | G27: 3.92 | H27: 4.39 | I27: 2.67 | J27: 3.38 | K27: 4.85
A28: Profit before tax | B28: 1.32 | C28: -9.93 | D28: -2.29 | E28: 5.29 | F28: 40.01 | G28: 44.14 | H28: 105.17 | I28: 179.84 | J28: 238.18 | K28: 335.18
A29: Tax | B29: 0.43 | C29: -2.93 | D29: -1.08 | E29: 1.76 | F29: 11.96 | G29: 13.96 | H29: 35.42 | I29: 63.27 | J29: 79.2 | K29: 108.43
A30: Net profit | B30: 0.89 | C30: -7 | D30: -1.21 | E30: 3.4 | F30: 28.05 | G30: 30.05 | H30: 70.41 | I30: 115.92 | J30: 157.5 | K30: 214.35
A31: Dividend Amount | B31: 0.65 | E31: 0.8 | F31: 5.9 | G31: 5.9 | H31: 13.62 | I31: 24.98 | J31: 24.98 | K31: 31.79
A40: Quarters
A41: Report Date | B41: 2015-03-31 | C41: 2015-06-30 | D41: 2015-09-30 | E41: 2015-12-31 | F41: 2016-03-31 | G41: 2016-06-30 | H41: 2016-09-30 | I41: 2016-12-31 | J41: 2017-03-31 | K41: 2017-06-30
A42: Sales | B42: 381.45 | C42: 603.4 | D42: 532.95 | E42: 413.11 | F42: 468.83 | G42: 724.38 | H42: 713.06 | I42: 558.63 | J42: 704.43 | K42: 998.17
A43: Expenses | B43: 344.57 | C43: 539.25 | D43: 470.5 | E43: 357.62 | F43: 422.44 | G43: 648.34 | H43: 656.63 | I43: 489.73 | J43: 576.34 | K43: 773.2
A44: Other Income | B44: 1.52 | C44: 7.53 | D44: 5.84 | E44: 3.5 | F44: 4.62 | G44: 1.85 | H44: 7 | I44: 3.59 | J44: 7.99 | K44: 6.18
A45: Depreciation | B45: 2.24 | C45: 2.6 | D45: 2.53 | E45: 2.58 | F45: 2.52 | G45: 2.71 | H45: 3.24 | I45: 3.93 | J45: 3.81 | K45: 4.07
A46: Interest | B46: 0.49 | C46: 0.29 | D46: 0.3 | E46: 0.19 | F46: 0.78 | G46: 0.2 | H46: 0.22 | I46: 0.24 | J46: 2.18 | K46: 0.62
A47: Profit before tax | B47: 35.67 | C47: 68.79 | D47: 65.47 | E47: 56.22 | F47: 47.7 | G47: 74.98 | H47: 59.96 | I47: 68.31 | J47: 130.09 | K47: 226.46
A48: Tax | B48: 13.39 | C48: 23.08 | D48: 21.5 | E48: 19.04 | F48: 15.58 | G48: 25.76 | H48: 19.77 | I48: 21.84 | J48: 40.41 | K48: 77.67
A49: Net profit | B49: 21.79 | C49: 45.4 | D49: 43.96 | E49: 36.54 | F49: 31.23 | G49: 49.03 | H49: 37.34 | I49: 41.11 | J49: 83.88 | K49: 148.84
A50: Operating Profit | B50: 36.88 | C50: 64.15 | D50: 62.45 | E50: 55.49 | F50: 46.39 | G50: 76.04 | H50: 56.43 | I50: 68.9 | J50: 128.09 | K50: 224.97
A55: BALANCE SHEET
A56: Report Date | B56: 2008-03-31 | C56: 2009-03-31 | D56: 2010-03-31 | E56: 2011-03-31 | F56: 2012-03-31 | G56: 2013-03-31 | H56: 2014-03-31 | I56: 2015-03-31 | J56: 2016-03-31 | K56: 2017-03-31
A57: Equity Share Capital | B57: 6.54 | C57: 8 | D57: 8 | E57: 8 | F57: 8 | G57: 9.08 | H57: 9.08 | I57: 9.08 | J57: 9.08 | K57: 9.08
A58: Reserves | B58: 62.72 | C58: 60.1 | D58: 58.9 | E58: 61.52 | F58: 85.61 | G58: 116.02 | H58: 170.49 | I58: 256.21 | J58: 413.71 | K58: 631.38
A59: Borrowings | B59: 40.66 | C59: 38.02 | D59: 34.13 | E59: 54.46 | F59: 49.57 | G59: 61.08 | H59: 56.12 | I59: 58.4 | J59: 10.71 | K59: 19.43
A60: Other Liabilities | B60: 9.67 | C60: 11.99 | D60: 13.64 | E60: 28.32 | F60: 40.04 | G60: 62.7 | H60: 163.72 | I60: 154.1 | J60: 189.1 | K60: 396.58
A61: Total | B61: 119.59 | C61: 118.11 | D61: 114.67 | E61: 152.3 | F61: 183.22 | G61: 248.88 | H61: 399.41 | I61: 477.79 | J61: 622.6 | K61: 1056.47
A62: Net Block | B62: 33.43 | C62: 30.05 | D62: 27.86 | E62: 26.78 | F62: 43.09 | G62: 50.85 | H62: 77.51 | I62: 89.57 | J62: 103.99 | K62: 160.47
A63: Capital Work in Progress | B63: 0.14 | E63: 11.12 | F63: 1.67 | G63: 1.59 | H63: 4.81 | J63: 41.62 | K63: 78.47
A64: Investments | B64: 27.83 | C64: 27.5 | D64: 31.33 | E64: 34.49 | F64: 44.77 | G64: 34.87 | H64: 40.31 | I64: 111.09 | J64: 33.15 | K64: 357.51
A65: Other Assets | B65: 58.19 | C65: 60.56 | D65: 55.48 | E65: 79.91 | F65: 93.69 | G65: 161.57 | H65: 276.78 | I65: 277.13 | J65: 443.84 | K65: 460.02
A66: Total | B66: 119.59 | C66: 118.11 | D66: 114.67 | E66: 152.3 | F66: 183.22 | G66: 248.88 | H66: 399.41 | I66: 477.79 | J66: 622.6 | K66: 1056.47
A67: Receivables | B67: 13.54 | C67: 15.86 | D67: 8.93 | E67: 22.81 | F67: 15.51 | G67: 39.73 | H67: 45.02 | I67: 33.56 | J67: 34.97 | K67: 23.51
A68: Inventory | B68: 26.7 | C68: 20.38 | D68: 27.27 | E68: 39.05 | F68: 42.15 | G68: 97.16 | H68: 199.15 | I68: 222.02 | J68: 285.55 | K68: 355.7
A69: Cash & Bank | B69: 3.99 | C69: 9.01 | D69: 3.42 | E69: 4.56 | F69: 22.05 | G69: 8.59 | H69: 12.86 | I69: 6.16 | J69: 72.57 | K69: 45.12
A70: No. of Equity Shares | B70: 6540000 | C70: 8000000 | D70: 8000000 | E70: 8000000 | F70: 8000000 | G70: 9083042 | H70: 9083042 | I70: 9083042 | J70: 45415210 | K70: 45415210
A71: New Bonus Shares
A72: Face value | B72: 10 | C72: 10 | D72: 10 | E72: 10 | F72: 10 | G72: 10 | H72: 10 | I72: 10 | J72: 2 | K72: 2
A80: CASH FLOW:
A81: Report Date | B81: 2008-03-31 | C81: 2009-03-31 | D81: 2010-03-31 | E81: 2011-03-31 | F81: 2012-03-31 | G81: 2013-03-31 | H81: 2014-03-31 | I81: 2015-03-31 | J81: 2016-03-31 | K81: 2017-03-31
A82: Cash from Operating Activity | B82: 17.19 | C82: 9.34 | D82: 3.92 | E82: -7.72 | F82: 50.38 | G82: -20.55 | H82: 55.56 | I82: 89.34 | J82: 122 | K82: 291.69
A83: Cash from Investing Activity | B83: 0.47 | C83: 0.65 | D83: -2.19 | E83: -17.6 | F83: -17.44 | G83: 5.43 | H83: -39.1 | I83: -83.52 | J83: 18.13 | K83: -428.3
A84: Cash from Financing Activity | B84: -21.08 | C84: -4.97 | D84: -7.32 | E84: 19.01 | F84: -14.09 | G84: 0.81 | H84: -12.74 | I84: -11.97 | J84: -74.26 | K84: 107.11
A85: Net Cash Flow | B85: -3.42 | C85: 5.02 | D85: -5.59 | E85: -6.31 | F85: 18.85 | G85: -14.31 | H85: 3.72 | I85: -6.15 | J85: 65.86 | K85: -29.5
A90: PRICE: | B90: 6.3 | C90: 3.28 | D90: 4.86 | E90: 7.92 | F90: 20.08 | G90: 20.92 | H90: 119.13 | I90: 328.29 | J90: 434.83 | K90: 852.61
A92: DERIVED:
A93: Adjusted Equity Shares in Cr | B93: =IF($B7>0,(B70*B72/$B7)+SUM(C71:$K71),0)/10000000 -> 3.27 | C93: =IF($B7>0,(C70*C72/$B7)+SUM(D71:$K71),0)/10000000 -> 4 | D93: =IF($B7>0,(D70*D72/$B7)+SUM(E71:$K71),0)/10000000 -> 4 | E93: =IF($B7>0,(E70*E72/$B7)+SUM(F71:$K71),0)/10000000 -> 4 | F93: =IF($B7>0,(F70*F72/$B7)+SUM(G71:$K71),0)/10000000 -> 4 | G93: =IF($B7>0,(G70*G72/$B7)+SUM(H71:$K71),0)/10000000 -> 4.541521 | H93: =IF($B7>0,(H70*H72/$B7)+SUM(I71:$K71),0)/10000000 -> 4.541521 | I93: =IF($B7>0,(I70*I72/$B7)+SUM(J71:$K71),0)/10000000 -> 4.541521 | J93: =IF($B7>0,(J70*J72/$B7)+SUM(K71:$K71),0)/10000000 -> 4.541521 | K93: =IF($B7>0,(K70*K72/$B7),0)/10000000 -> 4.541521

Sheet Calculated Data
A1: ='Data Sheet'!B1 -> AVANTI FEEDS LTD
A2: =A1 -> AVANTI FEEDS LTD | B2: ='Data Sheet'!B16 -> 2008-03-31 | C2: ='Data Sheet'!C16 -> 2009-03-31 | D2: ='Data Sheet'!D16 -> 2010-03-31 | E2: ='Data Sheet'!E16 -> 2011-03-31 | F2: ='Data Sheet'!F16 -> 2012-03-31 | G2: ='Data Sheet'!G16 -> 2013-03-31 | H2: ='Data Sheet'!H16 -> 2014-03-31 | I2: ='Data Sheet'!I16 -> 2015-03-31 | J2: ='Data Sheet'!J16 -> 2016-03-31 | K2: ='Data Sheet'!K16 -> 2017-03-31 | L2: TTM
A3: Gross Profit | B3: ='Data Sheet'!B17-'Data Sheet'!B18 -> 24.31 | C3: ='Data Sheet'!C17-'Data Sheet'!C18 -> 19.35 | D3: ='Data Sheet'!D17-'Data Sheet'!D18 -> 14 | E3: ='Data Sheet'!E17-'Data Sheet'!E18 -> 36.14 | F3: ='Data Sheet'!F17-'Data Sheet'!F18 -> 118.48 | G3: ='Data Sheet'!G17-'Data Sheet'!G18 -> 131.71 | H3: ='Data Sheet'!H17-'Data Sheet'!H18 -> 249.21 | I3: ='Data Sheet'!I17-'Data Sheet'!I18 -> 397.6 | J3: ='Data Sheet'!J17-'Data Sheet'!J18 -> 475.32 | K3: ='Data Sheet'!K17-'Data Sheet'!K18 -> 632.12
A4: EBIT | B4: ='Data Sheet'!B28+'Data Sheet'!B27 -> 6.32 | C4: ='Data Sheet'!C28+'Data Sheet'!C27 -> -2.84 | D4: ='Data Sheet'!D28+'Data Sheet'!D27 -> 0.84 | E4: ='Data Sheet'!E28+'Data Sheet'!E27 -> 9.89 | F4: ='Data Sheet'!F28+'Data Sheet'!F27 -> 44.08 | G4: ='Data Sheet'!G28+'Data Sheet'!G27 -> 48.06 | H4: ='Data Sheet'!H28+'Data Sheet'!H27 -> 109.56 | I4: ='Data Sheet'!I28+'Data Sheet'!I27 -> 182.51 | J4: ='Data Sheet'!J28+'Data Sheet'!J27 -> 241.56 | K4: ='Data Sheet'!K28+'Data Sheet'!K27 -> 340.03 | L4: ='Profit & Loss'!L17 -> 488.08
A5: EBITDA | B5: ='Calculated Data'!B4+'Data Sheet'!B26 -> 10.2 | C5: ='Calculated Data'!C4+'Data Sheet'!C26 -> 0.5 | D5: ='Calculated Data'!D4+'Data Sheet'!D26 -> 3.62 | E5: ='Calculated Data'!E4+'Data Sheet'!E26 -> 12.79 | F5: ='Calculated Data'!F4+'Data Sheet'!F26 -> 48.08 | G5: ='Calculated Data'!G4+'Data Sheet'!G26 -> 53.04 | H5: ='Calculated Data'!H4+'Data Sheet'!H26 -> 115.1 | I5: ='Calculated Data'!I4+'Data Sheet'!I26 -> 191.31 | J5: ='Calculated Data'!J4+'Data Sheet'!J26 -> 251.79 | K5: ='Calculated Data'!K4+'Data Sheet'!K26 -> 353.72 | L5: ='Profit & Loss'!L18 -> 503.13
A6: Operating Profit (excl Other Income) | B6: =B5-'Data Sheet'!B25 -> 1.44 | C6: =C5-'Data Sheet'!C25 -> -3.77 | D6: =D5-'Data Sheet'!D25 -> -7.07 | E6: =E5-'Data Sheet'!E25 -> 8.65 | F6: =F5-'Data Sheet'!F25 -> 44.73 | G6: =G5-'Data Sheet'!G25 -> 50.46 | H6: =H5-'Data Sheet'!H25 -> 111.42 | I6: =I5-'Data Sheet'!I25 -> 182.29 | J6: =J5-'Data Sheet'!J25 -> 230.3 | K6: =K5-'Data Sheet'!K25 -> 331.85 | L6: ='Profit & Loss'!L19 -> 478.37
A7: PAT | B7: ='Data Sheet'!B30 -> 0.89 | C7: ='Data Sheet'!C30 -> -7 | D7: ='Data Sheet'!D30 -> -1.21 | E7: ='Data Sheet'!E30 -> 3.4 | F7: ='Data Sheet'!F30 -> 28.05 | G7: ='Data Sheet'!G30 -> 30.05 | H7: ='Data Sheet'!H30 -> 70.41 | I7: ='Data Sheet'!I30 -> 115.92 | J7: ='Data Sheet'!J30 -> 157.5 | K7: ='Data Sheet'!K30 -> 214.35 | L7: ='Profit & Loss'!L12 -> 311.17
A8: Dividend | B8: ='Data Sheet'!B31 -> 0.65 | C8: ='Data Sheet'!C31 -> 0 | D8: ='Data Sheet'!D31 -> 0 | E8: ='Data Sheet'!E31 -> 0.8 | F8: ='Data Sheet'!F31 -> 5.9 | G8: ='Data Sheet'!G31 -> 5.9 | H8: ='Data Sheet'!H31 -> 13.62 | I8: ='Data Sheet'!I31 -> 24.98 | J8: ='Data Sheet'!J31 -> 24.98 | K8: ='Data Sheet'!K31 -> 31.79
B9: =B2 -> 2008-03-31 | C9: 2009-03-31 | D9: 2010-03-31 | E9: 2011-03-31 | F9: 2012-03-31 | G9: 2013-03-31 | H9: 2014-03-31 | I9: 2015-03-31 | J9: 2016-03-31 | K9: 2017-03-31 | L9: 1HFY17
A10: Networth | B10: ='Data Sheet'!B57+'Data Sheet'!B58 -> 69.26 | C10: ='Data Sheet'!C57+'Data Sheet'!C58 -> 68.1 | D10: ='Data Sheet'!D57+'Data Sheet'!D58 -> 66.9 | E10: ='Data Sheet'!E57+'Data Sheet'!E58 -> 69.52 | F10: ='Data Sheet'!F57+'Data Sheet'!F58 -> 93.61 | G10: ='Data Sheet'!G57+'Data Sheet'!G58 -> 125.1 | H10: ='Data Sheet'!H57+'Data Sheet'!H58 -> 179.57 | I10: ='Data Sheet'!I57+'Data Sheet'!I58 -> 265.29 | J10: ='Data Sheet'!J57+'Data Sheet'!J58 -> 422.79 | K10: ='Data Sheet'!K57+'Data Sheet'!K58 -> 640.46 | L10: ='Balance Sheet'!L4+'Balance Sheet'!L5 -> 0
A11: Working Capital | B11: ='Data Sheet'!B65-'Data Sheet'!B60 -> 48.52 | C11: ='Data Sheet'!C65-'Data Sheet'!C60 -> 48.57 | D11: ='Data Sheet'!D65-'Data Sheet'!D60 -> 41.84 | E11: ='Data Sheet'!E65-'Data Sheet'!E60 -> 51.59 | F11: ='Data Sheet'!F65-'Data Sheet'!F60 -> 53.65 | G11: ='Data Sheet'!G65-'Data Sheet'!G60 -> 98.87 | H11: ='Data Sheet'!H65-'Data Sheet'!H60 -> 113.06 | I11: ='Data Sheet'!I65-'Data Sheet'!I60 -> 123.03 | J11: ='Data Sheet'!J65-'Data Sheet'!J60 -> 254.74 | K11: ='Data Sheet'!K65-'Data Sheet'!K60 -> 63.44 | L11: ='Balance Sheet'!L16 -> 0
A12: Exclude one-off excess Cash (if any) | M12: check historical normalised levels of cash/total assets for excluding one-off excess cash for RoIC calculations
A13: Invested Capital | B13: ='Data Sheet'!B62+'Data Sheet'!B63+'Calculated Data'!B11 -> 82.09 | C13: ='Data Sheet'!C62+'Data Sheet'!C63+'Calculated Data'!C11 -> 78.62 | D13: ='Data Sheet'!D62+'Data Sheet'!D63+'Calculated Data'!D11 -> 69.7 | E13: ='Data Sheet'!E62+'Data Sheet'!E63+'Calculated Data'!E11 -> 89.49 | F13: ='Data Sheet'!F62+'Data Sheet'!F63+'Calculated Data'!F11 -> 98.41 | G13: ='Data Sheet'!G62+'Data Sheet'!G63+'Calculated Data'!G11 -> 151.31 | H13: ='Data Sheet'!H62+'Data Sheet'!H63+'Calculated Data'!H11 -> 195.38 | I13: ='Data Sheet'!I62+'Data Sheet'!I63+'Calculated Data'!I11 -> 212.6 | J13: ='Data Sheet'!J62+'Data Sheet'!J63+'Calculated Data'!J11 -> 400.35 | K13: ='Data Sheet'!K62+'Data Sheet'!K63+'Calculated Data'!K11 -> 302.38 | L13: ='Balance Sheet'!L10+'Balance Sheet'!L11+'Balance Sheet'!L16 -> 0
A14: Capital Employed | B14: =B10+'Data Sheet'!B59 -> 109.92 | C14: =C10+'Data Sheet'!C59 -> 106.12 | D14: =D10+'Data Sheet'!D59 -> 101.03 | E14: =E10+'Data Sheet'!E59 -> 123.98 | F14: =F10+'Data Sheet'!F59 -> 143.18 | G14: =G10+'Data Sheet'!G59 -> 186.18 | H14: =H10+'Data Sheet'!H59 -> 235.69 | I14: =I10+'Data Sheet'!I59 -> 323.69 | J14: =J10+'Data Sheet'!J59 -> 433.5 | K14: =K10+'Data Sheet'!K59 -> 659.89
A15: Total Assets | B15: ='Data Sheet'!B61 -> 119.59 | C15: ='Data Sheet'!C61 -> 118.11 | D15: ='Data Sheet'!D61 -> 114.67 | E15: ='Data Sheet'!E61 -> 152.3 | F15: ='Data Sheet'!F61 -> 183.22 | G15: ='Data Sheet'!G61 -> 248.88 | H15: ='Data Sheet'!H61 -> 399.41 | I15: ='Data Sheet'!I61 -> 477.79 | J15: ='Data Sheet'!J61 -> 622.6 | K15: ='Data Sheet'!K61 -> 1056.47 | L15: ='Balance Sheet'!L8 -> 0
B16: =B2 -> 2008-03-31 | C16: 2009-03-31 | D16: 2010-03-31 | E16: 2011-03-31 | F16: 2012-03-31 | G16: 2013-03-31 | H16: 2014-03-31 | I16: 2015-03-31 | J16: 2016-03-31 | K16: 2017-03-31
A17: Operating Cash Flow | B17: ='Data Sheet'!B82 -> 17.19 | C17: ='Data Sheet'!C82 -> 9.34 | D17: ='Data Sheet'!D82 -> 3.92 | E17: ='Data Sheet'!E82 -> -7.72 | F17: ='Data Sheet'!F82 -> 50.38 | G17: ='Data Sheet'!G82 -> -20.55 | H17: ='Data Sheet'!H82 -> 55.56 | I17: ='Data Sheet'!I82 -> 89.34 | J17: ='Data Sheet'!J82 -> 122 | K17: ='Data Sheet'!K82 -> 291.69
A18: Capex | C18: =('Data Sheet'!C62-'Data Sheet'!B62)+('Data Sheet'!C63-'Data Sheet'!B63)+'Data Sheet'!C26 -> -0.18 | D18: =('Data Sheet'!D62-'Data Sheet'!C62)+('Data Sheet'!D63-'Data Sheet'!C63)+'Data Sheet'!D26 -> 0.59 | E18: =('Data Sheet'!E62-'Data Sheet'!D62)+('Data Sheet'!E63-'Data Sheet'!D63)+'Data Sheet'!E26 -> 12.94 | F18: =('Data Sheet'!F62-'Data Sheet'!E62)+('Data Sheet'!F63-'Data Sheet'!E63)+'Data Sheet'!F26 -> 10.86 | G18: =('Data Sheet'!G62-'Data Sheet'!F62)+('Data Sheet'!G63-'Data Sheet'!F63)+'Data Sheet'!G26 -> 12.66 | H18: =('Data Sheet'!H62-'Data Sheet'!G62)+('Data Sheet'!H63-'Data Sheet'!G63)+'Data Sheet'!H26 -> 35.42 | I18: =('Data Sheet'!I62-'Data Sheet'!H62)+('Data Sheet'!I63-'Data Sheet'!H63)+'Data Sheet'!I26 -> 16.05 | J18: =('Data Sheet'!J62-'Data Sheet'!I62)+('Data Sheet'!J63-'Data Sheet'!I63)+'Data Sheet'!J26 -> 66.27 | K18: =('Data Sheet'!K62-'Data Sheet'!J62)+('Data Sheet'!K63-'Data Sheet'!J63)+'Data Sheet'!K26 -> 107.02 | M18: CHECK? | N18: derived from BS
A19: Free Cash Flow | C19: =C17-C18 -> 9.52 | D19: =D17-D18 -> 3.33 | E19: -20.66 | F19: 39.52 | G19: -33.21 | H19: 20.14 | I19: 73.29 | J19: 55.73 | K19: 184.67
A20: RoE | B20: =Customization!B53 -> 0.01285012995 | C20: =Customization!C53 -> -0.1027900147 | D20: =Customization!D53 -> -0.01808669656 | E20: =Customization!E53 -> 0.04890678941 | F20: =Customization!F53 -> 0.2996474736 | G20: =Customization!G53 -> 0.2402078337 | H20: =Customization!H53 -> 0.392103358 | I20: =Customization!I53 -> 0.4369557842 | J20: =Customization!J53 -> 0.3725253672 | K20: =Customization!K53 -> 0.3346813228
A21: Dividend Payout | B21: ='Profit & Loss'!B23 -> 0.7303370787 | C21: ='Profit & Loss'!C23 -> 0 | D21: ='Profit & Loss'!D23 -> 0 | E21: ='Profit & Loss'!E23 -> 0.2352941176 | F21: ='Profit & Loss'!F23 -> 0.2103386809 | G21: ='Profit & Loss'!G23 -> 0.1963394343 | H21: ='Profit & Loss'!H23 -> 0.193438432 | I21: ='Profit & Loss'!I23 -> 0.2154934438 | J21: ='Profit & Loss'!J23 -> 0.1586031746 | K21: ='Profit & Loss'!K23 -> 0.1483088407
A22: Tax Rate | B22: ='Data Sheet'!B29/'Data Sheet'!B28 -> 0.3257575758 | C22: ='Data Sheet'!C29/'Data Sheet'!C28 -> 0.2950654582 | D22: ='Data Sheet'!D29/'Data Sheet'!D28 -> 0.4716157205 | E22: ='Data Sheet'!E29/'Data Sheet'!E28 -> 0.3327032136 | F22: ='Data Sheet'!F29/'Data Sheet'!F28 -> 0.2989252687 | G22: ='Data Sheet'!G29/'Data Sheet'!G28 -> 0.316266425 | H22: ='Data Sheet'!H29/'Data Sheet'!H28 -> 0.3367880574 | I22: ='Data Sheet'!I29/'Data Sheet'!I28 -> 0.3518127224 | J22: ='Data Sheet'!J29/'Data Sheet'!J28 -> 0.3325216223 | K22: ='Data Sheet'!K29/'Data Sheet'!K28 -> 0.3234978221
A23: NOPLAT | B23: =B4*(1-B22) -> 4.261212121 | C23: -2.002014099 | D23: 0.4438427948 | E23: 6.599565217 | F23: 30.90337416 | G23: 32.86023561 | H23: 72.66150043 | I23: 118.30066 | J23: 161.2360769 | K23: 230.0310356
A24: RoIC | B24: =(B4/B13)*(1-B22) -> 0.05190902815 | C24: =(C4/C13)*(1-C22) -> -0.02546443779 | D24: 0.006367902364 | E24: 0.07374639867 | F24: 0.3140267672 | G24: 0.2171716054 | H24: 0.3718983541 | I24: 0.5564471309 | J24: 0.4027377967 | K24: 0.7607349546
A25: WACC | B25: 0.12 | C25: 0.12 | D25: 0.12 | E25: 0.12 | F25: 0.12 | G25: 0.12 | H25: 0.12 | I25: 0.12 | J25: 0.12 | K25: 0.12
A26: EPA (Economic Profit Added) | B26: =B13*(B24-B25) -> -5.589587879 | C26: =C13*(C24-C25) -> -11.4364141 | D26: -7.920157205 | E26: -4.139234783 | F26: 19.09417416 | G26: 14.70303561 | H26: 49.21590043 | I26: 92.78866003 | J26: 113.1940769 | K26: 193.7454356
A27: RoIIC | D27: =(D23-C23)/(C13-B13) -> -0.7048578944 | E27: =(E23-D23)/(D13-C13) -> -0.6901034106 | F27: 1.228085343 | G27: 0.2193790872 | H27: 0.7523868585 | I27: 1.035606072 | J27: 2.493345928 | K27: 0.3664178889
A28: 3Yr Rolling RoIIC | G28: =(G23-D23)/(F13-C13) -> 1.638018839 | H28: 0.809483338 | I28: 0.8253592018 | J28: 1.124230154 | K28: =(K23-H23)/(J13-G13) -> 0.6319046544
A29: 5Yr Rolling RoIIC | H29: =(H23-C23)/(G13-B13) -> 1.078640776 | I29: =(I23-D23)/(H13-C13) -> 1.009393776 | J29: 1.082130943 | K29: =(K23-F23)/(J13-E13) -> 0.6405702291
A30: Operating Leverage | C30: =((C4-B4)/B4)/(('Data Sheet'!C17-'Data Sheet'!B17)/'Data Sheet'!B17) -> 4.949563357 | D30: =((D4-C4)/C4)/(('Data Sheet'!D17-'Data Sheet'!C17)/'Data Sheet'!C17) -> -4.040042323 | E30: =((E4-D4)/D4)/(('Data Sheet'!E17-'Data Sheet'!D17)/'Data Sheet'!D17) -> 8.48665798 | F30: =((F4-E4)/E4)/(('Data Sheet'!F17-'Data Sheet'!E17)/'Data Sheet'!E17) -> 3.868347634 | G30: =((G4-F4)/F4)/(('Data Sheet'!G17-'Data Sheet'!F17)/'Data Sheet'!F17) -> 0.1395009969 | H30: =((H4-G4)/G4)/(('Data Sheet'!H17-'Data Sheet'!G17)/'Data Sheet'!G17) -> 1.714880305 | I30: =((I4-H4)/H4)/(('Data Sheet'!I17-'Data Sheet'!H17)/'Data Sheet'!H17) -> 1.160892205 | J30: =((J4-I4)/I4)/(('Data Sheet'!J17-'Data Sheet'!I17)/'Data Sheet'!I17) -> 2.424448548 | K30: =((K4-J4)/J4)/(('Data Sheet'!K17-'Data Sheet'!J17)/'Data Sheet'!J17) -> 1.151699763
A31: Sustainable Growth Rate | B31: =B20*(1-B21) -> 0.003465203581 | C31: =C20*(1-C21) -> -0.1027900147 | D31: -0.01808669656 | E31: 0.03739930955 | F31: 0.2366200192 | G31: 0.1930455635 | H31: 0.3162554992 | I31: 0.3427946775 | J31: 0.3134416613 | K31: 0.2850451238 | M31: coy can grow at this rate safely with internal accruals
B32: =B2 -> 2008-03-31 | C32: 2009-03-31 | D32: 2010-03-31 | E32: 2011-03-31 | F32: 2012-03-31 | G32: 2013-03-31 | H32: 2014-03-31 | I32: 2015-03-31 | J32: 2016-03-31 | K32: 2017-03-31 | L32: CURRENT
A33: MktCap | B33: ='Data Sheet'!B90*'Data Sheet'!B93 -> 20.601 | C33: ='Data Sheet'!C90*'Data Sheet'!C93 -> 13.12 | D33: ='Data Sheet'!D90*'Data Sheet'!D93 -> 19.44 | E33: ='Data Sheet'!E90*'Data Sheet'!E93 -> 31.68 | F33: ='Data Sheet'!F90*'Data Sheet'!F93 -> 80.32 | G33: ='Data Sheet'!G90*'Data Sheet'!G93 -> 95.00861932 | H33: ='Data Sheet'!H90*'Data Sheet'!H93 -> 541.0313967 | I33: ='Data Sheet'!I90*'Data Sheet'!I93 -> 1490.935929 | J33: ='Data Sheet'!J90*'Data Sheet'!J93 -> 1974.789576 | K33: ='Data Sheet'!K90*'Data Sheet'!K93 -> 3872.14622 | L33: ='Data Sheet'!B9 -> 8823.95
A34: MktCap+Dividend | B34: =B33+'Data Sheet'!B31 -> 21.251 | C34: =C33+'Data Sheet'!C31 -> 13.12 | D34: =D33+'Data Sheet'!D31 -> 19.44 | E34: =E33+'Data Sheet'!E31 -> 32.48 | F34: =F33+'Data Sheet'!F31 -> 86.22 | G34: =G33+'Data Sheet'!G31 -> 100.9086193 | H34: =H33+'Data Sheet'!H31 -> 554.6513967 | I34: =I33+'Data Sheet'!I31 -> 1515.915929 | J34: =J33+'Data Sheet'!J31 -> 1999.769576 | K34: =K33+'Data Sheet'!K31 -> 3903.93622
A35: Retained Profit | B35: ='Data Sheet'!B30-'Data Sheet'!B31 -> 0.24 | C35: ='Data Sheet'!C30-'Data Sheet'!C31 -> -7 | D35: ='Data Sheet'!D30-'Data Sheet'!D31 -> -1.21 | E35: ='Data Sheet'!E30-'Data Sheet'!E31 -> 2.6 | F35: ='Data Sheet'!F30-'Data Sheet'!F31 -> 22.15 | G35: ='Data Sheet'!G30-'Data Sheet'!G31 -> 24.15 | H35: ='Data Sheet'!H30-'Data Sheet'!H31 -> 56.79 | I35: ='Data Sheet'!I30-'Data Sheet'!I31 -> 90.94 | J35: ='Data Sheet'!J30-'Data Sheet'!J31 -> 132.52 | K35: ='Data Sheet'!K30-'Data Sheet'!K31 -> 182.56
A36: EV | B36: =B33+'Data Sheet'!B59-'Data Sheet'!B69 -> 57.271 | C36: =C33+'Data Sheet'!C59-'Data Sheet'!C69 -> 42.13 | D36: =D33+'Data Sheet'!D59-'Data Sheet'!D69 -> 50.15 | E36: =E33+'Data Sheet'!E59-'Data Sheet'!E69 -> 81.58 | F36: =F33+'Data Sheet'!F59-'Data Sheet'!F69 -> 107.84 | G36: =G33+'Data Sheet'!G59-'Data Sheet'!G69 -> 147.4986193 | H36: =H33+'Data Sheet'!H59-'Data Sheet'!H69 -> 584.2913967 | I36: =I33+'Data Sheet'!I59-'Data Sheet'!I69 -> 1543.175929 | J36: =J33+'Data Sheet'!J59-'Data Sheet'!J69 -> 1912.929576 | K36: =K33+'Data Sheet'!K59-'Data Sheet'!K69 -> 3846.45622
B37: =B2 -> 2008-03-31 | C37: 2009-03-31 | D37: 2010-03-31 | E37: 2011-03-31 | F37: 2012-03-31 | G37: 2013-03-31 | H37: 2014-03-31 | I37: 2015-03-31 | J37: 2016-03-31 | K37: 2017-03-31
A38: Price/Earnings | B38: =B33/'Data Sheet'!B30 -> 23.14719101 | C38: =C33/'Data Sheet'!C30 -> -1.874285714 | D38: =D33/'Data Sheet'!D30 -> -16.0661157 | E38: =E33/'Data Sheet'!E30 -> 9.317647059 | F38: =F33/'Data Sheet'!F30 -> 2.863458111 | G38: =G33/'Data Sheet'!G30 -> 3.161684503 | H38: =H33/'Data Sheet'!H30 -> 7.684013588 | I38: =I33/'Data Sheet'!I30 -> 12.86176612 | J38: =J33/'Data Sheet'!J30 -> 12.53834652 | K38: =K33/'Data Sheet'!K30 -> 18.06459631
A39: Price/Book | B39: =B33/B10 -> 0.2974444124 | C39: 0.1926578561 | D39: 0.2905829596 | E39: 0.4556962025 | F39: 0.8580279885 | G39: 0.7594613855 | H39: 3.012927531 | I39: 5.620023103 | J39: 4.67085214 | K39: 6.04588299
A40: Price/CashFlow | B40: =B33/B17 -> 1.198429319 | C40: 1.404710921 | D40: 4.959183673 | E40: -4.103626943 | F40: 1.594283446 | G40: -4.623290478 | H40: 9.737786118 | I40: 16.6883359 | J40: 16.18679981 | K40: 13.27486791
A41: Price/Sales | B41: =B33/'Data Sheet'!B17 -> 0.2101928375 | C41: =C33/'Data Sheet'!C17 -> 0.1892944741 | D41: =D33/'Data Sheet'!D17 -> 0.2123661787 | E41: =E33/'Data Sheet'!E17 -> 0.1524909747 | F41: =F33/'Data Sheet'!F17 -> 0.2041635952 | G41: =G33/'Data Sheet'!G17 -> 0.1466091897 | H41: =H33/'Data Sheet'!H17 -> 0.478107649 | I41: =I33/'Data Sheet'!I17 -> 0.8372939972 | J41: =J33/'Data Sheet'!J17 -> 0.9784468914 | K41: =K33/'Data Sheet'!K17 -> 1.416987924
A42: EV/EBITDA | B42: =B36/B5 -> 5.614803922 | C42: 84.26 | D42: 13.85359116 | E42: 6.378420641 | F42: 2.242928453 | G42: 2.780894029 | H42: 5.07638051 | I42: 8.066363123 | J42: 7.597321484 | K42: 10.87429667
A43: Dividend Yield | B43: ='Data Sheet'!B31/'Calculated Data'!B33 -> 0.03155186641 | C43: ='Data Sheet'!C31/'Calculated Data'!C33 -> 0 | D43: ='Data Sheet'!D31/'Calculated Data'!D33 -> 0 | E43: ='Data Sheet'!E31/'Calculated Data'!E33 -> 0.02525252525 | F43: ='Data Sheet'!F31/'Calculated Data'!F33 -> 0.0734561753 | G43: ='Data Sheet'!G31/'Calculated Data'!G33 -> 0.06209962888 | H43: ='Data Sheet'!H31/'Calculated Data'!H33 -> 0.02517413977 | I43: ='Data Sheet'!I31/'Calculated Data'!I33 -> 0.01675457645 | J43: ='Data Sheet'!J31/'Calculated Data'!J33 -> 0.01264944898 | K43: ='Data Sheet'!K31/'Calculated Data'!K33 -> 0.008209917238
B44: =B2 -> 2008-03-31 | C44: 2009-03-31 | D44: 2010-03-31 | E44: 2011-03-31 | F44: 2012-03-31 | G44: 2013-03-31 | H44: 2014-03-31 | I44: 2015-03-31 | J44: 2016-03-31 | K44: 2017-03-31 | L44: Z-Weights
A45: Working Capital/Total Assets | B45: =B11/B15 -> 0.4057195418 | C45: 0.4112268225 | D45: 0.3648731142 | E45: 0.3387393303 | F45: 0.292817378 | G45: 0.3972597236 | H45: 0.2830675246 | I45: 0.257498064 | J45: 0.4091551558 | K45: 0.06004903121 | L45: 1.2
A46: Retained Profits/Total Assets | B46: =B35/B15 -> 0.002006856761 | C46: -0.0592667852 | D46: -0.01055201884 | E46: 0.01707156927 | F46: 0.1208929156 | G46: 0.09703471553 | H46: 0.1421847225 | I46: 0.1903346659 | J46: 0.2128493415 | K46: 0.172801878 | L46: 1.4
A47: EBIT/Total Assets | B47: =B4/B15 -> 0.05284722803 | C47: -0.02404538142 | D47: 0.007325368449 | E47: 0.06493762311 | F47: 0.240585089 | G47: 0.1931051109 | H47: 0.2743045993 | I47: 0.3819879026 | J47: 0.3879858657 | K47: 0.3218548563 | L47: 3.3
A48: Market Cap/Total Liabilities | B48: =B33/B15 -> 0.1722635672 | C48: 0.1110828888 | D48: 0.1695299555 | E48: 0.2080105056 | F48: 0.4383800895 | G48: 0.3817446935 | H48: 1.354576492 | I48: 3.120483746 | J48: 3.1718432 | K48: 3.665173852 | L48: 0.6
A49: Sales/Total Assets | B49: ='Data Sheet'!B17/'Calculated Data'!B15 -> 0.8195501296 | C49: ='Data Sheet'!C17/'Calculated Data'!C15 -> 0.5868258403 | D49: ='Data Sheet'!D17/'Calculated Data'!D15 -> 0.7982907474 | E49: ='Data Sheet'!E17/'Calculated Data'!E15 -> 1.364084045 | F49: ='Data Sheet'!F17/'Calculated Data'!F15 -> 2.147200087 | G49: ='Data Sheet'!G17/'Calculated Data'!G15 -> 2.603825137 | H49: ='Data Sheet'!H17/'Calculated Data'!H15 -> 2.833203976 | I49: ='Data Sheet'!I17/'Calculated Data'!I15 -> 3.726867452 | J49: ='Data Sheet'!J17/'Calculated Data'!J15 -> 3.241712175 | K49: ='Data Sheet'!K17/'Calculated Data'!K15 -> 2.586594981 | L49: 1
A50: Altman Z-Score | B50: =$L$45*B45+$L$46*B46+$L$47*B47+$L$48*B48+$L$49*B49 -> 1.586977172 | C50: =$L$45*C45+$L$46*C46+$L$47*C47+$L$48*C48+$L$49*C49 -> 0.9846245026 | D50: 1.347257347 | E50: 2.133571898 | F50: 3.72478987 | G50: 4.082679089 | H50: 5.08989469 | I50: 7.435183988 | J50: 7.214146717 | K50: 6.161801785
A51: Z > 2.99 -“Safe” Zones
A52: 1.81 < Z < 2.99 -“Grey” Zones
A53: Z < 1.81 -“Distress” Zones

Sheet Cost Analysis
A1: ='Data Sheet'!B1 -> AVANTI FEEDS LTD | B1: =B7 -> 2008-03-31 | C1: 2009-03-31 | D1: 2010-03-31 | E1: 2011-03-31 | F1: 2012-03-31 | G1: 2013-03-31 | H1: 2014-03-31 | I1: 2015-03-31 | J1: 2016-03-31 | K1: 2017-03-31
A2: ='Data Sheet'!A17 -> Sales | B2: ='Data Sheet'!B17 -> 98.01 | C2: ='Data Sheet'!C17 -> 69.31 | D2: ='Data Sheet'!D17 -> 91.54 | E2: ='Data Sheet'!E17 -> 207.75 | F2: ='Data Sheet'!F17 -> 393.41 | G2: ='Data Sheet'!G17 -> 648.04 | H2: ='Data Sheet'!H17 -> 1131.61 | I2: ='Data Sheet'!I17 -> 1780.66 | J2: ='Data Sheet'!J17 -> 2018.29 | K2: ='Data Sheet'!K17 -> 2732.66
A3: ='Data Sheet'!A25 -> Other Income | B3: ='Data Sheet'!B25 -> 8.76 | C3: ='Data Sheet'!C25 -> 4.27 | D3: ='Data Sheet'!D25 -> 10.69 | E3: ='Data Sheet'!E25 -> 4.14 | F3: ='Data Sheet'!F25 -> 3.35 | G3: ='Data Sheet'!G25 -> 2.58 | H3: ='Data Sheet'!H25 -> 3.68 | I3: ='Data Sheet'!I25 -> 9.02 | J3: ='Data Sheet'!J25 -> 21.49 | K3: ='Data Sheet'!K25 -> 21.87
A4: Sales Increase | C4: =(C2-B2)/B2 -> -0.2928272625 | D4: 0.320732939 | E4: 1.269499672 | F4: 0.8936702768 | G4: 0.6472382502 | H4: 0.746203938 | I4: 0.5735633301 | J4: 0.1334505183 | K4: 0.3539481442
A5: EBIT | B5: ='Calculated Data'!B4 -> 6.32 | C5: ='Calculated Data'!C4 -> -2.84 | D5: ='Calculated Data'!D4 -> 0.84 | E5: ='Calculated Data'!E4 -> 9.89 | F5: ='Calculated Data'!F4 -> 44.08 | G5: ='Calculated Data'!G4 -> 48.06 | H5: ='Calculated Data'!H4 -> 109.56 | I5: ='Calculated Data'!I4 -> 182.51 | J5: ='Calculated Data'!J4 -> 241.56 | K5: ='Calculated Data'!K4 -> 340.03
A6: EBIT Increase | C6: =(C5-B5)/B5 -> -1.449367089 | D6: =(D5-C5)/C5 -> -1.295774648 | E6: 10.77380952 | F6: 3.4570273 | G6: 0.09029038113 | H6: 1.279650437 | I6: 0.665845199 | J6: 0.3235439154 | K6: 0.4076419937
A7: Operating Expenses | B7: ='Data Sheet'!B16 -> 2008-03-31 | C7: ='Data Sheet'!C16 -> 2009-03-31 | D7: ='Data Sheet'!D16 -> 2010-03-31 | E7: ='Data Sheet'!E16 -> 2011-03-31 | F7: ='Data Sheet'!F16 -> 2012-03-31 | G7: ='Data Sheet'!G16 -> 2013-03-31 | H7: ='Data Sheet'!H16 -> 2014-03-31 | I7: ='Data Sheet'!I16 -> 2015-03-31 | J7: ='Data Sheet'!J16 -> 2016-03-31 | K7: ='Data Sheet'!K16 -> 2017-03-31
A8: ='Data Sheet'!A18 -> Raw Material Cost | B8: ='Data Sheet'!B18 -> 73.7 | C8: ='Data Sheet'!C18 -> 49.96 | D8: ='Data Sheet'!D18 -> 77.54 | E8: ='Data Sheet'!E18 -> 171.61 | F8: ='Data Sheet'!F18 -> 274.93 | G8: ='Data Sheet'!G18 -> 516.33 | H8: ='Data Sheet'!H18 -> 882.4 | I8: ='Data Sheet'!I18 -> 1383.06 | J8: ='Data Sheet'!J18 -> 1542.97 | K8: ='Data Sheet'!K18 -> 2100.54
A9: ='Data Sheet'!A19 -> Change in Inventory | B9: ='Data Sheet'!B19 -> 0.89 | C9: ='Data Sheet'!C19 -> -3.17 | D9: ='Data Sheet'!D19 -> 1 | E9: ='Data Sheet'!E19 -> 9.42 | F9: ='Data Sheet'!F19 -> -4.17 | G9: ='Data Sheet'!G19 -> 19.36 | H9: ='Data Sheet'!H19 -> 12.63 | I9: ='Data Sheet'!I19 -> 15 | J9: ='Data Sheet'!J19 -> 14.06 | K9: ='Data Sheet'!K19 -> 29.38
A10: ='Data Sheet'!A20 -> Power and Fuel | B10: ='Data Sheet'!B20 -> 3.57 | C10: ='Data Sheet'!C20 -> 3.02 | D10: ='Data Sheet'!D20 -> 3.73 | E10: ='Data Sheet'!E20 -> 7.05 | F10: ='Data Sheet'!F20 -> 10.85 | G10: ='Data Sheet'!G20 -> 19.12 | H10: ='Data Sheet'!H20 -> 26.39 | I10: ='Data Sheet'!I20 -> 28.83 | J10: ='Data Sheet'!J20 -> 25.63 | K10: ='Data Sheet'!K20 -> 33.65
A11: ='Data Sheet'!A21 -> Other Mfr. Exp | B11: ='Data Sheet'!B21 -> 4.74 | C11: ='Data Sheet'!C21 -> 4.2 | D11: ='Data Sheet'!D21 -> 4.93 | E11: ='Data Sheet'!E21 -> 9.18 | F11: ='Data Sheet'!F21 -> 9.07 | G11: ='Data Sheet'!G21 -> 13.91 | H11: ='Data Sheet'!H21 -> 20.42 | I11: ='Data Sheet'!I21 -> 34.56 | J11: ='Data Sheet'!J21 -> 34.87 | K11: ='Data Sheet'!K21 -> 45.43
A12: ='Data Sheet'!A22 -> Employee Cost | B12: ='Data Sheet'!B22 -> 4.53 | C12: ='Data Sheet'!C22 -> 4.31 | D12: ='Data Sheet'!D22 -> 4.65 | E12: ='Data Sheet'!E22 -> 6.7 | F12: ='Data Sheet'!F22 -> 12.47 | G12: ='Data Sheet'!G22 -> 17.42 | H12: ='Data Sheet'!H22 -> 35.22 | I12: ='Data Sheet'!I22 -> 47.64 | J12: ='Data Sheet'!J22 -> 58.08 | K12: ='Data Sheet'!K22 -> 73.35
A13: ='Data Sheet'!A23 -> Selling and admin | B13: ='Data Sheet'!B23 -> 7.58 | C13: ='Data Sheet'!C23 -> 7.12 | D13: ='Data Sheet'!D23 -> 7.98 | E13: ='Data Sheet'!E23 -> 14.34 | F13: ='Data Sheet'!F23 -> 29.9 | G13: ='Data Sheet'!G23 -> 47.48 | H13: ='Data Sheet'!H23 -> 66.4 | I13: ='Data Sheet'!I23 -> 116.67 | J13: ='Data Sheet'!J23 -> 133.26 | K13: ='Data Sheet'!K23 -> 168.94
A14: ='Data Sheet'!A24 -> Other Expenses | B14: ='Data Sheet'!B24 -> 3.34 | C14: ='Data Sheet'!C24 -> 1.3 | D14: ='Data Sheet'!D24 -> 0.78 | E14: ='Data Sheet'!E24 -> 0.51 | F14: ='Data Sheet'!F24 -> 7.29 | G14: ='Data Sheet'!G24 -> 2.68 | H14: ='Data Sheet'!H24 -> 1.98 | I14: ='Data Sheet'!I24 -> 2.61 | J14: ='Data Sheet'!J24 -> 7.24 | K14: ='Data Sheet'!K24 -> 8.27
A15: Interest Expense | B15: ='Profit & Loss'!B9 -> 5 | C15: ='Profit & Loss'!C9 -> 7.09 | D15: ='Profit & Loss'!D9 -> 3.13 | E15: ='Profit & Loss'!E9 -> 4.6 | F15: ='Profit & Loss'!F9 -> 4.07 | G15: ='Profit & Loss'!G9 -> 3.92 | H15: ='Profit & Loss'!H9 -> 4.39 | I15: ='Profit & Loss'!I9 -> 2.67 | J15: ='Profit & Loss'!J9 -> 3.38 | K15: ='Profit & Loss'!K9 -> 4.85
A16: Coomon Size Expenses | B16: =B1 -> 2008-03-31 | C16: 2009-03-31 | D16: 2010-03-31 | E16: 2011-03-31 | F16: 2012-03-31 | G16: 2013-03-31 | H16: 2014-03-31 | I16: 2015-03-31 | J16: 2016-03-31 | K16: 2017-03-31
A17: =A8 -> Raw Material Cost | B17: =B8/B$2 -> 0.7519640853 | C17: 0.7208195066 | D17: 0.8470613939 | E17: 0.8260409146 | F17: 0.698838362 | G17: 0.7967563731 | H17: 0.7797739504 | I17: 0.7767120057 | J17: 0.7644937051 | K17: 0.7686796016 | L17: check lower RM/Sales - high correlation with Op Leverage
A18: Change in Inventory | B18: =B9/B$2 -> 0.00908070605 | C18: -0.04573654595 | D18: 0.01092418615 | E18: 0.04534296029 | F18: -0.01059962889 | G18: 0.02987469909 | H18: 0.01116108907 | I18: 0.008423842845 | J18: 0.006966293248 | K18: 0.01075142901
A19: Power and Fuel | B19: =B10/B$2 -> 0.03642485461 | C19: 0.04357235608 | D19: 0.04074721433 | E19: 0.03393501805 | F19: 0.02757937012 | G19: 0.02950435158 | H19: 0.02332075538 | I19: 0.01619062595 | J19: 0.01269886884 | K19: 0.01231400906
A20: Other Mfr. Exp | B20: =B11/B$2 -> 0.048362412 | C20: 0.0605973164 | D20: 0.05385623771 | E20: 0.04418772563 | F20: 0.0230548283 | G20: 0.0214647244 | H20: 0.0180450862 | I20: 0.01940853391 | J20: 0.01727700182 | K20: 0.01662482709
A21: Employee Cost | B21: =B12/B$2 -> 0.04621977349 | C21: 0.06218438898 | D21: 0.05079746559 | E21: 0.03225030084 | F21: 0.03169721156 | G21: 0.02688105672 | H21: 0.03112379707 | I21: 0.02675412488 | J21: 0.02877683584 | K21: 0.02684197815 | L21: check high Emp Cost/Sales - high correlation with Op Leverage
A22: Selling and admin | B22: =B13/B$2 -> 0.07733904704 | C22: 0.1027268792 | D22: 0.08717500546 | E22: 0.06902527076 | F22: 0.07600213518 | G22: 0.07326708228 | H22: 0.05867745955 | I22: 0.06552064965 | J22: 0.06602619049 | K22: 0.06182254653
A23: Other Expenses | B23: =B14/B$2 -> 0.03407815529 | C23: 0.01875631222 | D23: 0.008520865196 | E23: 0.002454873646 | F23: 0.01853028647 | G23: 0.004135547188 | H23: 0.001749719426 | I23: 0.001465748655 | J23: 0.003587195101 | K23: 0.003026355273
A24: Interest Expense | B24: =B15/B2 -> 0.05101520253 | C24: 0.1022940413 | D24: 0.03419270264 | E24: 0.02214199759 | F24: 0.01034544114 | G24: 0.00604900932 | H24: 0.003879428425 | I24: 0.001499444026 | J24: 0.001674685006 | K24: 0.001774827457
A25: Interest Expense Capitalised | L25: Add back from AR - any interest costs capitalised
A26: Year on Year Escalation | B26: =B16 -> 2008-03-31 | C26: =C16 -> 2009-03-31 | D26: 2010-03-31 | E26: 2011-03-31 | F26: 2012-03-31 | G26: 2013-03-31 | H26: 2014-03-31 | I26: 2015-03-31 | J26: 2016-03-31 | K26: 2017-03-31
A27: Raw Material Increase/Sales Increase | C27: =((C8-B8)/B8)/C$4 -> 1.100022882 | D27: 1.721187836 | E27: 0.9556365555 | F27: 0.6736968125 | G27: 1.356597332 | H27: 0.9501217134 | I27: 0.9892271287 | J27: 0.8663918078 | K27: 1.020944836
A28: Change in Inventory Increase/Sales Increase | C28: =((C9-B9)/B9)/C$4 -> 15.57845985 | D28: -4.101410405 | E28: 6.632534205 | F28: -1.614325996 | G28: -8.718097007 | H28: -0.4658565162 | I28: 0.3271625751 | J28: -0.4695872856 | K28: 3.078462056
A29: Power & Fuel Increase/Sales Increase | C29: =((C10-B10)/B10)/C$4 -> 0.5261177642 | D29: 0.7330065272 | E29: 0.7011269466 | F29: 0.6031386589 | G29: 1.177637418 | H29: 0.5095525581 | I29: 0.1612014925 | J29: -0.8317351793 | K29: 0.884068919
A30: Other Mfg Increase/Sales Increase | C30: =((C11-B11)/B11)/C$4 -> 0.3890486482 | D30: 0.5419135445 | E30: 0.6790619835 | F30: -0.01340826826 | G30: 0.8244681811 | H30: 0.6271859515 | I30: 1.20729192 | J30: 0.06721523092 | K30: 0.8556030641
A31: Employee Cost Increase/Sales Increase | C31: =((C12-B12)/B12)/C$4 -> 0.1658490435 | D31: 0.2459563747 | E31: 0.347270838 | F31: 0.9636596989 | G31: 0.6133022675 | H31: 1.369349523 | I31: 0.6148240772 | J31: 1.642133575 | K31: 0.7428015302
A32: Selling & Admin Cost Increase/Sales Increase | C32: =((C13-B13)/B13)/C$4 -> 0.2072416868 | D32: 0.3765952984 | E32: 0.6278004623 | F32: 1.214180148 | G32: 0.9084133487 | H32: 0.5340142979 | I32: 1.31995592 | J32: 1.065533046 | K32: 0.756459005
A33: Other Expenses Increase/Sales Increase | C33: =((C14-B14)/B14)/C$4 -> 2.085797742 | D33: -1.2471435 | E33: -0.2726695041 | F33: 14.87586417 | G33: -0.9770329762 | H33: -0.3500303557 | I33: 0.5547457473 | J33: 13.29291472 | K33: 0.4019379553
A34: Year on Year Escalation | B34: =B26 -> 2008-03-31 | C34: =C26 -> 2009-03-31 | D34: 2010-03-31 | E34: 2011-03-31 | F34: 2012-03-31 | G34: 2013-03-31 | H34: 2014-03-31 | I34: 2015-03-31 | J34: 2016-03-31 | K34: 2017-03-31
A35: Working Capital Increase/Sales Increase | C35: =(('Calculated Data'!C11-'Calculated Data'!B11)/'Calculated Data'!B11)/'Cost Analysis'!C$4 -> -0.003519149401 | D35: =(('Calculated Data'!D11-'Calculated Data'!C11)/'Calculated Data'!C11)/'Cost Analysis'!D$4 -> -0.4320195467 | E35: =(('Calculated Data'!E11-'Calculated Data'!D11)/'Calculated Data'!D11)/'Cost Analysis'!E$4 -> 0.1835609712 | F35: =(('Calculated Data'!F11-'Calculated Data'!E11)/'Calculated Data'!E11)/'Cost Analysis'!F$4 -> 0.04468115375 | G35: =(('Calculated Data'!G11-'Calculated Data'!F11)/'Calculated Data'!F11)/'Cost Analysis'!G$4 -> 1.302256868 | H35: =(('Calculated Data'!H11-'Calculated Data'!G11)/'Calculated Data'!G11)/'Cost Analysis'!H$4 -> 0.192335887 | I35: =(('Calculated Data'!I11-'Calculated Data'!H11)/'Calculated Data'!H11)/'Cost Analysis'!I$4 -> 0.1537463448 | J35: =(('Calculated Data'!J11-'Calculated Data'!I11)/'Calculated Data'!I11)/'Cost Analysis'!J$4 -> 8.02208872 | K35: =(('Calculated Data'!K11-'Calculated Data'!J11)/'Calculated Data'!J11)/'Cost Analysis'!K$4 -> -2.121671712
A36: Debtors Increase/Sales Increase | C36: =('Balance Sheet'!C17-'Balance Sheet'!B17)/'Balance Sheet'!B17/'Cost Analysis'!C$4 -> -0.5851373399 | D36: =('Balance Sheet'!D17-'Balance Sheet'!C17)/'Balance Sheet'!C17/'Cost Analysis'!D$4 -> -1.362343073 | E36: =('Balance Sheet'!E17-'Balance Sheet'!D17)/'Balance Sheet'!D17/'Cost Analysis'!E$4 -> 1.224349517 | F36: =('Balance Sheet'!F17-'Balance Sheet'!E17)/'Balance Sheet'!E17/'Cost Analysis'!F$4 -> -0.3581131438 | G36: =('Balance Sheet'!G17-'Balance Sheet'!F17)/'Balance Sheet'!F17/'Cost Analysis'!G$4 -> 2.412671343 | H36: =('Balance Sheet'!H17-'Balance Sheet'!G17)/'Balance Sheet'!G17/'Cost Analysis'!H$4 -> 0.1784348049 | I36: =('Balance Sheet'!I17-'Balance Sheet'!H17)/'Balance Sheet'!H17/'Cost Analysis'!I$4 -> -0.4438106803 | J36: =('Balance Sheet'!J17-'Balance Sheet'!I17)/'Balance Sheet'!I17/'Cost Analysis'!J$4 -> 0.3148305699 | K36: =('Balance Sheet'!K17-'Balance Sheet'!J17)/'Balance Sheet'!J17/'Cost Analysis'!K$4 -> -0.9258685788
A37: Inventory Increase/Sales Increase | C37: =(('Balance Sheet'!C18-'Balance Sheet'!B18)/'Balance Sheet'!B18)/'Cost Analysis'!C$4 -> 0.8083404455 | D37: =(('Balance Sheet'!D18-'Balance Sheet'!C18)/'Balance Sheet'!C18)/'Cost Analysis'!D$4 -> 1.054074916 | E37: =(('Balance Sheet'!E18-'Balance Sheet'!D18)/'Balance Sheet'!D18)/'Cost Analysis'!E$4 -> 0.3402730544 | F37: =(('Balance Sheet'!F18-'Balance Sheet'!E18)/'Balance Sheet'!E18)/'Cost Analysis'!F$4 -> 0.08883075267 | G37: =(('Balance Sheet'!G18-'Balance Sheet'!F18)/'Balance Sheet'!F18)/'Cost Analysis'!G$4 -> 2.016414867 | H37: =(('Balance Sheet'!H18-'Balance Sheet'!G18)/'Balance Sheet'!G18)/'Cost Analysis'!H$4 -> 1.406735829 | I37: =(('Balance Sheet'!I18-'Balance Sheet'!H18)/'Balance Sheet'!H18)/'Cost Analysis'!I$4 -> 0.2002186258 | J37: =(('Balance Sheet'!J18-'Balance Sheet'!I18)/'Balance Sheet'!I18)/'Cost Analysis'!J$4 -> 2.144205926 | K37: =(('Balance Sheet'!K18-'Balance Sheet'!J18)/'Balance Sheet'!J18)/'Cost Analysis'!K$4 -> 0.6940741521
A38: Creditors Increase/Sales Increase | C38: =IF('Balance Sheet'!C19>0,(('Balance Sheet'!C19-'Balance Sheet'!B19)/'Balance Sheet'!B19)/'Cost Analysis'!C$4,0) -> 0 | D38: =IF('Balance Sheet'!D19>0,(('Balance Sheet'!D19-'Balance Sheet'!C19)/'Balance Sheet'!C19)/'Cost Analysis'!D$4,0) -> 0 | E38: =IF('Balance Sheet'!E19>0,(('Balance Sheet'!E19-'Balance Sheet'!D19)/'Balance Sheet'!D19)/'Cost Analysis'!E$4,0) -> 0 | F38: =IF('Balance Sheet'!F19>0,(('Balance Sheet'!F19-'Balance Sheet'!E19)/'Balance Sheet'!E19)/'Cost Analysis'!F$4,0) -> 0 | G38: =IF('Balance Sheet'!G19>0,(('Balance Sheet'!G19-'Balance Sheet'!F19)/'Balance Sheet'!F19)/'Cost Analysis'!G$4,0) -> 0 | H38: =IF('Balance Sheet'!H19>0,(('Balance Sheet'!H19-'Balance Sheet'!G19)/'Balance Sheet'!G19)/'Cost Analysis'!H$4,0) -> 0 | I38: =IF('Balance Sheet'!I19>0,(('Balance Sheet'!I19-'Balance Sheet'!H19)/'Balance Sheet'!H19)/'Cost Analysis'!I$4,0) -> 0 | J38: =IF('Balance Sheet'!J19>0,(('Balance Sheet'!J19-'Balance Sheet'!I19)/'Balance Sheet'!I19)/'Cost Analysis'!J$4,0) -> 0 | K38: =IF('Balance Sheet'!K19>0,(('Balance Sheet'!K19-'Balance Sheet'!J19)/'Balance Sheet'!J19)/'Cost Analysis'!K$4,0) -> 0
A39: Invested Capital Increase/Sales Increase | C39: =(('Calculated Data'!C13-'Calculated Data'!B13)/'Calculated Data'!B13)/'Cost Analysis'!C$4 -> 0.1443536307 | D39: =(('Calculated Data'!D13-'Calculated Data'!C13)/'Calculated Data'!C13)/'Cost Analysis'!D$4 -> -0.3537433229 | E39: =(('Calculated Data'!E13-'Calculated Data'!D13)/'Calculated Data'!D13)/'Cost Analysis'!E$4 -> 0.2236559328 | F39: =(('Calculated Data'!F13-'Calculated Data'!E13)/'Calculated Data'!E13)/'Cost Analysis'!F$4 -> 0.1115354779 | G39: =(('Calculated Data'!G13-'Calculated Data'!F13)/'Calculated Data'!F13)/'Cost Analysis'!G$4 -> 0.8305241495 | H39: =(('Calculated Data'!H13-'Calculated Data'!G13)/'Calculated Data'!G13)/'Cost Analysis'!H$4 -> 0.3903173734 | I39: =(('Calculated Data'!I13-'Calculated Data'!H13)/'Calculated Data'!H13)/'Cost Analysis'!I$4 -> 0.1536638338 | J39: =(('Calculated Data'!J13-'Calculated Data'!I13)/'Calculated Data'!I13)/'Cost Analysis'!J$4 -> 6.617537644 | K39: =(('Calculated Data'!K13-'Calculated Data'!J13)/'Calculated Data'!J13)/'Cost Analysis'!K$4 -> -0.6913749428
A40: Dilution | B40: =B1 -> 2008-03-31 | C40: 2009-03-31 | D40: 2010-03-31 | E40: 2011-03-31 | F40: 2012-03-31 | G40: 2013-03-31 | H40: 2014-03-31 | I40: 2015-03-31 | J40: 2016-03-31 | K40: 2017-03-31
A41: Equity Capital Increase/Decrease | C41: =('Data Sheet'!C57-'Data Sheet'!B57)/'Data Sheet'!B57 -> 0.2232415902 | D41: =('Data Sheet'!D57-'Data Sheet'!C57)/'Data Sheet'!C57 -> 0 | E41: =('Data Sheet'!E57-'Data Sheet'!D57)/'Data Sheet'!D57 -> 0 | F41: =('Data Sheet'!F57-'Data Sheet'!E57)/'Data Sheet'!E57 -> 0 | G41: =('Data Sheet'!G57-'Data Sheet'!F57)/'Data Sheet'!F57 -> 0.135 | H41: =('Data Sheet'!H57-'Data Sheet'!G57)/'Data Sheet'!G57 -> 0 | I41: =('Data Sheet'!I57-'Data Sheet'!H57)/'Data Sheet'!H57 -> 0 | J41: =('Data Sheet'!J57-'Data Sheet'!I57)/'Data Sheet'!I57 -> 0 | K41: =('Data Sheet'!K57-'Data Sheet'!J57)/'Data Sheet'!J57 -> 0

Sheet Price Implied Expectations
A1: ='Data Sheet'!B1 -> AVANTI FEEDS LTD
A2: (CONSOLIDATED) | B2: ='Data Sheet'!B16 -> 2008-03-31 | C2: ='Data Sheet'!C16 -> 2009-03-31 | D2: ='Data Sheet'!D16 -> 2010-03-31 | E2: ='Data Sheet'!E16 -> 2011-03-31 | F2: ='Data Sheet'!F16 -> 2012-03-31 | G2: ='Data Sheet'!G16 -> 2013-03-31 | H2: ='Data Sheet'!H16 -> 2014-03-31 | I2: ='Data Sheet'!I16 -> 2015-03-31 | J2: ='Data Sheet'!J16 -> 2016-03-31 | K2: ='Data Sheet'!K16 -> 2017-03-31 | M2: Consensus Forecasts | P2: 5 Yr Avg | Q2: Inputs | R2: TTM
A3: Sales | B3: ='Data Sheet'!B17 -> 98.01 | C3: ='Data Sheet'!C17 -> 69.31 | D3: ='Data Sheet'!D17 -> 91.54 | E3: ='Data Sheet'!E17 -> 207.75 | F3: ='Data Sheet'!F17 -> 393.41 | G3: ='Data Sheet'!G17 -> 648.04 | H3: ='Data Sheet'!H17 -> 1131.61 | I3: ='Data Sheet'!I17 -> 1780.66 | J3: ='Data Sheet'!J17 -> 2018.29 | K3: ='Data Sheet'!K17 -> 2732.66 | M3: Sales Growth Rate | P3: =Customization!B14 -> 0.4329991956 | Q3: 0.25 | R3: ='Profit & Loss'!L31 -> 0.08842300176
A4: Capex | C4: ='Calculated Data'!C18 -> -0.18 | D4: ='Calculated Data'!D18 -> 0.59 | E4: ='Calculated Data'!E18 -> 12.94 | F4: ='Calculated Data'!F18 -> 10.86 | G4: ='Calculated Data'!G18 -> 12.66 | H4: ='Calculated Data'!H18 -> 35.42 | I4: ='Calculated Data'!I18 -> 16.05 | J4: ='Calculated Data'!J18 -> 66.27 | K4: ='Calculated Data'!K18 -> 107.02 | M4: EBIT Margin | P4: =AVERAGE(Customization!G36:K36) -> 0.1035185899 | Q4: 0.13 | R4: ='Calculated Data'!L4/Annual[[#This Row],[Column12]] -> 0.1640996675
A5: Depreciation | C5: ='Data Sheet'!C26 -> 3.34 | D5: ='Data Sheet'!D26 -> 2.78 | E5: ='Data Sheet'!E26 -> 2.9 | F5: ='Data Sheet'!F26 -> 4 | G5: ='Data Sheet'!G26 -> 4.98 | H5: ='Data Sheet'!H26 -> 5.54 | I5: ='Data Sheet'!I26 -> 8.8 | J5: ='Data Sheet'!J26 -> 10.23 | K5: ='Data Sheet'!K26 -> 13.69 | M5: Tax Rate | P5: =AVERAGE('Calculated Data'!G22:K22) -> 0.3321773298 | Q5: 0.33
A6: Incremental Fixed Capital Investment | C6: =C4-C5 -> -3.52 | D6: =D4-D5 -> -2.19 | E6: 10.04 | F6: 6.86 | G6: 7.68 | H6: 29.88 | I6: 7.25 | J6: 56.04 | K6: 93.33 | M6: Inc Fixed Capital Rate | P6: =AVERAGE(G9:K9) -> 0.0545544595 | Q6: 0.1
A7: Incremental Sales | C7: =C3-B3 -> -28.7 | D7: =D3-C3 -> 22.23 | E7: 116.21 | F7: 185.66 | G7: 254.63 | H7: 483.57 | I7: 649.05 | J7: 237.63 | K7: 714.37 | M7: Inc Working Capital Rate | P7: =AVERAGE(G15:K15) -> 0.08238139177 | Q7: 0.15
A8: Incremental Fixed Capital Investment Rate | C8: =C6/C7 -> 0.1226480836 | D8: =D6/D7 -> -0.09851551957 | E8: 0.08639531882 | F8: 0.03694926209 | G8: 0.03016141067 | H8: 0.06179043365 | I8: 0.01117017179 | J8: 0.2358288095 | K8: 0.1306465837 | M8: Cost of Capital | Q8: 0.12
A9: 5 Yr Avg | G9: =SUMIF(C6:G6,">0")/SUMIF(C7:G7,">0") -> 0.04247231006 | H9: 0.05126612068 | I9: 0.03653381643 | J9: 0.05949053873 | K9: =SUMIF(G6:K6,">0")/SUMIF(G7:K7,">0") -> 0.0830095116 | M9: Inflation Rate | Q9: 0.05
A10: 9 Yr Avg | K10: =SUMIF(C6:K6,">0")/SUMIF(C7:K7,">0") -> 0.07925357163 | M10: Cash & Bank Balance | Q10: ='Balance Sheet'!K34 -> 45.12
M11: Investments | Q11: ='Balance Sheet'!K12 -> 357.51
A12: Working Capital | B12: ='Calculated Data'!B11 -> 48.52 | C12: ='Calculated Data'!C11 -> 48.57 | D12: ='Calculated Data'!D11 -> 41.84 | E12: ='Calculated Data'!E11 -> 51.59 | F12: ='Calculated Data'!F11 -> 53.65 | G12: ='Calculated Data'!G11 -> 98.87 | H12: ='Calculated Data'!H11 -> 113.06 | I12: ='Calculated Data'!I11 -> 123.03 | J12: ='Calculated Data'!J11 -> 254.74 | K12: ='Calculated Data'!K11 -> 63.44 | M12: Non-Operative Assets | Q12: =Q10+Q11 -> 402.63
A13: Incremental Working Capital | C13: =C12-B12 -> 0.05 | D13: =D12-C12 -> -6.73 | E13: 9.75 | F13: 2.06 | G13: 45.22 | H13: 14.19 | I13: 9.97 | J13: 131.71 | K13: -191.3 | M13: Debt | Q13: ='Balance Sheet'!K6 -> 19.43
A14: Incremental Working Capital Investment Rate | C14: =C13/C7 -> -0.001742160279 | D14: =D13/D7 -> -0.3027440396 | E14: 0.0838998365 | F14: 0.01109555101 | G14: 0.1775910144 | H14: 0.02934425212 | I14: 0.0153609121 | J14: 0.5542650339 | K14: -0.267788401 | M14: # Shares Outstanding | Q14: ='Data Sheet'!B6 -> 4.541521913
A15: 5 Yr Avg | G15: =SUMIF(C13:G13,">0")/SUMIF(C7:G7,">0") -> 0.09862975826 | H15: 0.06704320813 | I15: 0.0480664488 | J15: 0.1122040938 | K15: =SUMIF(G13:K13,">0")/SUMIF(G7:K7,">0") -> 0.08596344982 | M15: CMP | Q15: ='Data Sheet'!B8 -> 1942.95
A16: 9 Yr Avg | K16: =SUMIF(C13:K13,">0")/SUMIF(C7:K7,">0") -> 0.0799556949
A17: Years in Future | B17: 0 | C17: 1 | D17: 2 | E17: 3 | F17: 4 | G17: 5 | H17: 6 | I17: 7 | J17: 8 | K17: 9 | L17: 10 | M17: 11 | N17: 12 | O17: 13 | P17: 14 | Q17: 15
A18: Year | B18: 2016-03-01 | C18: 2017-03-01 | D18: 2018-03-01 | E18: 2019-03-01 | F18: 2020-03-01 | G18: 2021-03-01 | H18: 2022-03-01 | I18: 2023-03-01 | J18: 2024-03-01 | K18: 2025-03-01 | L18: 2026-03-01 | M18: 2027-03-01 | N18: 2028-03-01 | O18: 2029-03-01 | P18: 1930-03-01 | Q18: 1931-03-01
A19: Sales | B19: ='Data Sheet'!K17 -> 2732.66 | C19: =B19*(1+R3) -> 2974.29 | D19: =C19*(1+$Q$3) -> 3717.8625 | E19: =D19*(1+$Q$3) -> 4647.328125 | F19: 5809.160156 | G19: 7261.450195 | H19: 9076.812744 | I19: 11346.01593 | J19: 14182.51991 | K19: 17728.14989 | L19: 22160.18736 | M19: 27700.2342 | N19: 34625.29276 | O19: 43281.61594 | P19: 54102.01993 | Q19: 67627.52491
A20: EBIT | B20: ='Calculated Data'!K4 -> 340.03 | C20: =R4*C19 -> 488.08 | D20: =D19*$Q$4 -> 483.322125 | E20: =E19*$Q$4 -> 604.1526563 | F20: 755.1908203 | G20: 943.9885254 | H20: 1179.985657 | I20: 1474.982071 | J20: 1843.727589 | K20: 2304.659486 | L20: 2880.824357 | M20: 3601.030447 | N20: 4501.288058 | O20: 5626.610073 | P20: 7033.262591 | Q20: 8791.578239
A21: NOPAT | B21: ='Calculated Data'!K23 -> 230.0310356 | C21: =C20*(1-$Q$5) -> 327.0136 | D21: =D20*(1-$Q$5) -> 323.8258237 | E21: 404.7822797 | F21: 505.9778496 | G21: 632.472312 | H21: 790.59039 | I21: 988.2379875 | J21: 1235.297484 | K21: 1544.121855 | L21: 1930.152319 | M21: 2412.690399 | N21: 3015.862999 | O21: 3769.828749 | P21: 4712.285936 | Q21: 5890.35742
A22: Incremental Fixed Capital Investment | C22: =(C19-B19)*$Q$6 -> 24.163 | D22: =(D19-C19)*$Q$6 -> 74.35725 | E22: 92.9465625 | F22: 116.1832031 | G22: 145.2290039 | H22: 181.5362549 | I22: 226.9203186 | J22: 283.6503983 | K22: 354.5629978 | L22: 443.2037473 | M22: 554.0046841 | N22: 692.5058551 | O22: 865.6323189 | P22: 1082.040399 | Q22: 1352.550498
A23: Incremental Working Capital Investment | C23: =(C19-B19)*$Q$7 -> 36.2445 | D23: =(D19-C19)*$Q$7 -> 111.535875 | E23: 139.4198437 | F23: 174.2748047 | G23: 217.8435059 | H23: 272.3043823 | I23: 340.3804779 | J23: 425.4755974 | K23: 531.8444967 | L23: 664.8056209 | M23: 831.0070261 | N23: 1038.758783 | O23: 1298.448478 | P23: 1623.060598 | Q23: 2028.825747
A24: Free Cash Flow | C24: =C21-(C22+C23) -> 266.6061 | D24: =D21-(D22+D23) -> 137.9326987 | E24: 172.4158734 | F24: 215.5198418 | G24: 269.3998022 | H24: 336.7497528 | I24: 420.937191 | J24: 526.1714888 | K24: 657.714361 | L24: 822.1429512 | M24: 1027.678689 | N24: 1284.598361 | O24: 1605.747952 | P24: 2007.184939 | Q24: 2508.981174
A25: Present Value of Free Cash Flow | C25: =C24/((1+$Q$8)^C17) -> 238.0411607 | D25: =D24/((1+$Q$8)^D17) -> 109.959103 | E25: 122.7222131 | F25: 136.9667557 | G25: 152.8646827 | H25: 170.6079048 | I25: 190.4106081 | J25: 212.5118394 | K25: 237.1783921 | L25: 264.7080269 | M25: 295.4330658 | N25: 329.7244038 | O25: 367.9959863 | P25: 410.7098062 | Q25: 458.3814801
A26: Cumulative Present Value of Free Cash Flow | C26: =C25 -> 238.0411607 | D26: =D25+C26 -> 348.0002637 | E26: =E25+D26 -> 470.7224768 | F26: 607.6892325 | G26: 760.5539152 | H26: 931.1618201 | I26: 1121.572428 | J26: 1334.084267 | K26: 1571.26266 | L26: 1835.970687 | M26: 2131.403752 | N26: 2461.128156 | O26: 2829.124142 | P26: 3239.833949 | Q26: 3698.215429
A27: Present Value of Residual Value | C27: =((C21*(1+$Q$9))/($Q$8-$Q$9))/((1+$Q$8)^C17) -> 4379.646429 | D27: =((D21*(1+$Q$9))/($Q$8-$Q$9))/((1+$Q$8)^D17) -> 3872.279461 | E27: 4321.74047 | F27: 4823.37106 | G27: 5383.22663 | H27: 6008.065435 | I27: 6705.430173 | J27: 7483.739033 | K27: 8352.387313 | L27: 9321.860841 | M27: 10403.86255 | N27: 11611.45373 | O27: 12959.21176 | P27: 14463.40598 | Q27: 16142.19417
A29: Corporate Value | C29: =C27+C26 -> 4617.687589 | D29: =D27+D26 -> 4220.279725 | E29: 4792.462947 | F29: 5431.060293 | G29: 6143.780545 | H29: 6939.227255 | I29: 7827.002601 | J29: 8817.8233 | K29: 9923.649973 | L29: 11157.83153 | M29: 12535.2663 | N29: 14072.58189 | O29: 15788.3359 | P29: 17703.23993 | Q29: 19840.4096
A30: Add: Non-Operative Assets | C30: =$Q$12 -> 402.63 | D30: =$Q$12 -> 402.63 | E30: 402.63 | F30: 402.63 | G30: 402.63 | H30: 402.63 | I30: 402.63 | J30: 402.63 | K30: 402.63 | L30: 402.63 | M30: 402.63 | N30: 402.63 | O30: 402.63 | P30: 402.63 | Q30: 402.63
A31: Less: Debt | C31: =$Q$13 -> 19.43 | D31: =$Q$13 -> 19.43 | E31: 19.43 | F31: 19.43 | G31: 19.43 | H31: 19.43 | I31: 19.43 | J31: 19.43 | K31: 19.43 | L31: 19.43 | M31: 19.43 | N31: 19.43 | O31: 19.43 | P31: 19.43 | Q31: 19.43
A32: Shareholder Value | C32: =C29+C30-C31 -> 5000.887589 | D32: =D29+D30-D31 -> 4603.479725 | E32: 5175.662947 | F32: 5814.260293 | G32: 6526.980545 | H32: 7322.427255 | I32: 8210.202601 | J32: 9201.0233 | K32: 10306.84997 | L32: 11541.03153 | M32: 12918.4663 | N32: 14455.78189 | O32: 16171.5359 | P32: 18086.43993 | Q32: 20223.6096
A34: Shareholder Value/Share | C34: =C32/$Q$14 -> 1101.14796 | D34: =D32/$Q$14 -> 1013.642522 | E34: 1139.631834 | F34: 1280.244906 | G34: 1437.179138 | H34: 1612.32895 | I34: 1807.808651 | J34: 2025.97796 | K34: 2269.470493 | L34: 2541.225552 | M34: 2844.523608 | N34: 3183.025904 | O34: 3560.818644 | P34: 3982.462328 | Q34: 4453.046796
A35: Market-Implied-Forecast-Period | C35: =IF(Q15>Q34,"15+",IF(Q15<C34,"<1",LOOKUP(Q15,C34:Q34,C17:Q17))) -> 7

Sheet Business Robustness
A1: Business Robustness Snapshot (Annual) | B1: Annual Historical Performance
A2: ='Data Sheet'!B1 -> AVANTI FEEDS LTD | B2: ='Data Sheet'!B16 -> 2008-03-31 | C2: ='Data Sheet'!C16 -> 2009-03-31 | D2: ='Data Sheet'!D16 -> 2010-03-31 | E2: ='Data Sheet'!E16 -> 2011-03-31 | F2: ='Data Sheet'!F16 -> 2012-03-31 | G2: ='Data Sheet'!G16 -> 2013-03-31 | H2: ='Data Sheet'!H16 -> 2014-03-31 | I2: ='Data Sheet'!I16 -> 2015-03-31 | J2: ='Data Sheet'!J16 -> 2016-03-31 | K2: ='Data Sheet'!K16 -> 2017-03-31 | L2: TTM
A3: Sales | B3: ='Data Sheet'!B17 -> 98.01 | C3: ='Data Sheet'!C17 -> 69.31 | D3: ='Data Sheet'!D17 -> 91.54 | E3: ='Data Sheet'!E17 -> 207.75 | F3: ='Data Sheet'!F17 -> 393.41 | G3: ='Data Sheet'!G17 -> 648.04 | H3: ='Data Sheet'!H17 -> 1131.61 | I3: ='Data Sheet'!I17 -> 1780.66 | J3: ='Data Sheet'!J17 -> 2018.29 | K3: ='Data Sheet'!K17 -> 2732.66 | L3: ='Profit & Loss'!L4 -> 2974.29
A4: EBIT | B4: ='Profit & Loss'!B10+'Profit & Loss'!B9 -> 6.32 | C4: ='Profit & Loss'!C10+'Profit & Loss'!C9 -> -2.84 | D4: ='Profit & Loss'!D10+'Profit & Loss'!D9 -> 0.84 | E4: ='Profit & Loss'!E10+'Profit & Loss'!E9 -> 9.89 | F4: ='Profit & Loss'!F10+'Profit & Loss'!F9 -> 44.08 | G4: ='Profit & Loss'!G10+'Profit & Loss'!G9 -> 48.06 | H4: ='Profit & Loss'!H10+'Profit & Loss'!H9 -> 109.56 | I4: ='Profit & Loss'!I10+'Profit & Loss'!I9 -> 182.51 | J4: ='Profit & Loss'!J10+'Profit & Loss'!J9 -> 241.56 | K4: ='Profit & Loss'!K10+'Profit & Loss'!K9 -> 340.03 | L4: ='Profit & Loss'!L10+'Profit & Loss'!L9 -> 488.08
A5: Operating Profit (ex Other Income) | B5: ='Calculated Data'!B6 -> 1.44 | C5: ='Calculated Data'!C6 -> -3.77 | D5: ='Calculated Data'!D6 -> -7.07 | E5: ='Calculated Data'!E6 -> 8.65 | F5: ='Calculated Data'!F6 -> 44.73 | G5: ='Calculated Data'!G6 -> 50.46 | H5: ='Calculated Data'!H6 -> 111.42 | I5: ='Calculated Data'!I6 -> 182.29 | J5: ='Calculated Data'!J6 -> 230.3 | K5: ='Calculated Data'!K6 -> 331.85 | L5: ='Profit & Loss'!L6 -> 478.39
A6: Operating Profit Margin (ex Other Income) | B6: =B5/B3 -> 0.01469237833 | C6: -0.05439330544 | D6: -0.07723399607 | E6: 0.04163658243 | F6: 0.1136981775 | G6: 0.07786556385 | H6: 0.09846148408 | I6: 0.1023721541 | J6: 0.1141064961 | K6: 0.1214384519 | L6: 0.1608417471
A7: 1Yr Sales Increase | C7: =(C3-B3)/B3 -> -0.2928272625 | D7: 0.320732939 | E7: 1.269499672 | F7: 0.8936702768 | G7: 0.6472382502 | H7: 0.746203938 | I7: 0.5735633301 | J7: 0.1334505183 | K7: 0.3539481442 | L7: 0.08842300176
A8: 1Yr EBIT Increase | C8: =(C4-B4)/B4 -> -1.449367089 | D8: -1.295774648 | E8: 10.77380952 | F8: 3.4570273 | G8: 0.09029038113 | H8: 1.279650437 | I8: 0.665845199 | J8: 0.3235439154 | K8: 0.4076419937 | L8: 0.4354027586
A9: 3Yr Sales Increase | E9: =(E3-B3)/B3 -> 1.119681665 | F9: =(F3-C3)/C3 -> 4.676092916 | G9: 6.079309591 | H9: 4.446979543 | I9: 3.526219466 | J9: 2.114452812 | K9: 1.414842569 | L9: 0.6703301023
A10: 3Yr EBIT Increase | E10: =(E4-B4)/B4 -> 0.5648734177 | F10: =(F4-C4)/C4 -> -16.52112676 | G10: =(G4-D4)/D4 -> 56.21428571 | H10: =(H4-E4)/E4 -> 10.07785642 | I10: =(I4-F4)/F4 -> 3.140426497 | J10: =(J4-G4)/G4 -> 4.026217228 | K10: =(K4-H4)/H4 -> 2.103596203 | L10: =(L4-I4)/I4 -> 1.674264424
A11: Abnormal margin exclusion (RM cycle)
A12: 1 Yr Operating Leverage | C12: =IF((C3-B3)>0,(C8/C7),0) -> 0 | D12: -4.040042323 | E12: 8.48665798 | F12: 3.868347634 | G12: 0.1395009969 | H12: 1.714880305 | I12: 1.160892205 | J12: 2.424448548 | K12: 1.151699763 | L12: 4.924089319
A13: 3Yr Operating Leverage | E13: =IF((E3-B3)>0,E10/E9,0) -> 0.5044946571 | F13: =IF((F3-C3)>0,F10/F9,0) -> -3.533104893 | G13: 9.246820691 | H13: 2.266225046 | I13: 0.8905930354 | J13: 1.904141443 | K13: 1.486805846 | L13: 2.497671547
A14: EBIT Margin | B14: =B4/B3 -> 0.064483216 | C14: -0.04097532824 | D14: 0.009176316364 | E14: 0.04760529483 | F14: 0.1120459571 | G14: 0.07416208876 | H14: 0.09681780826 | I14: 0.1024957038 | J14: 0.1196854763 | K14: 0.1244318722 | L14: 0.1640996675
A15: Invested Capital | B15: ='Calculated Data'!B13 -> 82.09 | C15: ='Calculated Data'!C13 -> 78.62 | D15: ='Calculated Data'!D13 -> 69.7 | E15: ='Calculated Data'!E13 -> 89.49 | F15: ='Calculated Data'!F13 -> 98.41 | G15: ='Calculated Data'!G13 -> 151.31 | H15: ='Calculated Data'!H13 -> 195.38 | I15: ='Calculated Data'!I13 -> 212.6 | J15: ='Calculated Data'!J13 -> 400.35 | K15: ='Calculated Data'!K13 -> 302.38 | L15: ='Balance Sheet'!L10+'Balance Sheet'!L11+'Balance Sheet'!L16 -> 0
A16: Capital Turns | B16: =B3/B15 -> 1.193933488 | C16: 0.8815822946 | D16: 1.313342898 | E16: 2.321488434 | F16: 3.997662839 | G16: 4.282862996 | H16: 5.79184154 | I16: 8.375634995 | J16: 5.04131385 | K16: 9.037171771
A17: RoIC | B17: ='Calculated Data'!B24 -> 0.05190902815 | C17: ='Calculated Data'!C24 -> -0.02546443779 | D17: ='Calculated Data'!D24 -> 0.006367902364 | E17: ='Calculated Data'!E24 -> 0.07374639867 | F17: ='Calculated Data'!F24 -> 0.3140267672 | G17: ='Calculated Data'!G24 -> 0.2171716054 | H17: ='Calculated Data'!H24 -> 0.3718983541 | I17: ='Calculated Data'!I24 -> 0.5564471309 | J17: ='Calculated Data'!J24 -> 0.4027377967 | K17: ='Calculated Data'!K24 -> 0.7607349546 | L17: =(L4/L15)*(1-'Calculated Data'!K22) -> 
A18: 5Yr Rolling RoIIC | B18: =Customization!B58 -> 0 | C18: =Customization!C58 -> 0 | D18: =Customization!D58 -> 0 | E18: =Customization!E58 -> 0 | F18: =Customization!F58 -> 0 | G18: =Customization!G58 -> 0 | H18: =Customization!H58 -> 1.078640776 | I18: =Customization!I58 -> 1.009393776 | J18: =Customization!J58 -> 1.082130943 | K18: =Customization!K58 -> 0.6405702291
A19: EPA | B19: ='Calculated Data'!B26 -> -5.589587879 | C19: ='Calculated Data'!C26 -> -11.4364141 | D19: ='Calculated Data'!D26 -> -7.920157205 | E19: ='Calculated Data'!E26 -> -4.139234783 | F19: ='Calculated Data'!F26 -> 19.09417416 | G19: ='Calculated Data'!G26 -> 14.70303561 | H19: ='Calculated Data'!H26 -> 49.21590043 | I19: ='Calculated Data'!I26 -> 92.78866003 | J19: ='Calculated Data'!J26 -> 113.1940769 | K19: ='Calculated Data'!K26 -> 193.7454356 | L19: =L15*(L17-'Calculated Data'!K25) -> 
A20: EPA/Sales | B20: =B19/B3 -> -0.05703079154 | C20: -0.1650038104 | D20: -0.08652127163 | E20: -0.01992411448 | F20: 0.04853505035 | G20: 0.02268846925 | H20: 0.04349192781 | I20: 0.05210913933 | J20: 0.05608414892 | K20: 0.07089994202
A21: Sustainable Growth Rate (without addl financing?) | B21: ='Calculated Data'!B31 -> 0.003465203581 | C21: ='Calculated Data'!C31 -> -0.1027900147 | D21: ='Calculated Data'!D31 -> -0.01808669656 | E21: ='Calculated Data'!E31 -> 0.03739930955 | F21: ='Calculated Data'!F31 -> 0.2366200192 | G21: ='Calculated Data'!G31 -> 0.1930455635 | H21: ='Calculated Data'!H31 -> 0.3162554992 | I21: ='Calculated Data'!I31 -> 0.3427946775 | J21: ='Calculated Data'!J31 -> 0.3134416613 | K21: ='Calculated Data'!K31 -> 0.2850451238
A22: Business Robustness Snapshot (Quarterly) | B22: Latest 10 Quarters Performance
A23: =A2 -> AVANTI FEEDS LTD | B23: ='Data Sheet'!B41 -> 2015-03-31 | C23: ='Data Sheet'!C41 -> 2015-06-30 | D23: ='Data Sheet'!D41 -> 2015-09-30 | E23: ='Data Sheet'!E41 -> 2015-12-31 | F23: ='Data Sheet'!F41 -> 2016-03-31 | G23: ='Data Sheet'!G41 -> 2016-06-30 | H23: ='Data Sheet'!H41 -> 2016-09-30 | I23: ='Data Sheet'!I41 -> 2016-12-31 | J23: ='Data Sheet'!J41 -> 2017-03-31 | K23: ='Data Sheet'!K41 -> 2017-06-30
A24: Sales | B24: ='Data Sheet'!B42 -> 381.45 | C24: ='Data Sheet'!C42 -> 603.4 | D24: ='Data Sheet'!D42 -> 532.95 | E24: ='Data Sheet'!E42 -> 413.11 | F24: ='Data Sheet'!F42 -> 468.83 | G24: ='Data Sheet'!G42 -> 724.38 | H24: ='Data Sheet'!H42 -> 713.06 | I24: ='Data Sheet'!I42 -> 558.63 | J24: ='Data Sheet'!J42 -> 704.43 | K24: ='Data Sheet'!K42 -> 998.17
A25: EBIT | B25: =Quarters!B16 -> 36.16 | C25: =Quarters!C16 -> 69.08 | D25: =Quarters!D16 -> 65.77 | E25: =Quarters!E16 -> 56.41 | F25: =Quarters!F16 -> 48.48 | G25: =Quarters!G16 -> 75.18 | H25: =Quarters!H16 -> 60.18 | I25: =Quarters!I16 -> 68.55 | J25: =Quarters!J16 -> 132.27 | K25: =Quarters!K16 -> 227.08
A26: Operating Profit (ex Other Income) | B26: =Quarters!B6 -> 36.88 | C26: =Quarters!C6 -> 64.15 | D26: =Quarters!D6 -> 62.45 | E26: =Quarters!E6 -> 55.49 | F26: =Quarters!F6 -> 46.39 | G26: =Quarters!G6 -> 76.04 | H26: =Quarters!H6 -> 56.43 | I26: =Quarters!I6 -> 68.9 | J26: =Quarters!J6 -> 128.09 | K26: =Quarters!K6 -> 224.97
A27: EBIT Margin | B27: =B25/B24 -> 0.0947961725 | C27: =C25/C24 -> 0.1144845873 | D27: 0.1234074491 | E27: 0.1365495873 | F27: 0.103406352 | G27: 0.1037853061 | H27: 0.08439682495 | I27: 0.1227109178 | J27: 0.1877688344 | K27: 0.2274963183
A28: Operating Profit Margin (ex Other Income) | B28: =B26/B24 -> 0.09668370691 | C28: =C26/C24 -> 0.1063142194 | D28: 0.1171779717 | E28: 0.1343225775 | F28: 0.09894844613 | G28: 0.1049725282 | H28: 0.07913780047 | I28: 0.1233374505 | J28: 0.1818349588 | K28: 0.2253824499
A29: Threshold Margin Snapshot | B29: =B2 -> 2008-03-31 | C29: =C2 -> 2009-03-31 | D29: 2010-03-31 | E29: 2011-03-31 | F29: 2012-03-31 | G29: 2013-03-31 | H29: 2014-03-31 | I29: 2015-03-31 | J29: 2016-03-31 | K29: 2017-03-31 | L29: TTM
A30: Incremental Fixed Capital Investment Rate | C30: =('Calculated Data'!C18-'Data Sheet'!C26)/('Business Robustness'!C3-'Business Robustness'!B3) -> 0.1226480836 | D30: =('Calculated Data'!D18-'Data Sheet'!D26)/('Business Robustness'!D3-'Business Robustness'!C3) -> -0.09851551957 | E30: =('Calculated Data'!E18-'Data Sheet'!E26)/('Business Robustness'!E3-'Business Robustness'!D3) -> 0.08639531882 | F30: =('Calculated Data'!F18-'Data Sheet'!F26)/('Business Robustness'!F3-'Business Robustness'!E3) -> 0.03694926209 | G30: =('Calculated Data'!G18-'Data Sheet'!G26)/('Business Robustness'!G3-'Business Robustness'!F3) -> 0.03016141067 | H30: =('Calculated Data'!H18-'Data Sheet'!H26)/('Business Robustness'!H3-'Business Robustness'!G3) -> 0.06179043365 | I30: =('Calculated Data'!I18-'Data Sheet'!I26)/('Business Robustness'!I3-'Business Robustness'!H3) -> 0.01117017179 | J30: =('Calculated Data'!J18-'Data Sheet'!J26)/('Business Robustness'!J3-'Business Robustness'!I3) -> 0.2358288095 | K30: =('Calculated Data'!K18-'Data Sheet'!K26)/('Business Robustness'!K3-'Business Robustness'!J3) -> 0.1306465837
A31: Incremental Working Capital Investment Rate | C31: =('Calculated Data'!C11-'Calculated Data'!B11)/('Business Robustness'!C3-'Business Robustness'!B3) -> -0.001742160279 | D31: =('Calculated Data'!D11-'Calculated Data'!C11)/('Business Robustness'!D3-'Business Robustness'!C3) -> -0.3027440396 | E31: =('Calculated Data'!E11-'Calculated Data'!D11)/('Business Robustness'!E3-'Business Robustness'!D3) -> 0.0838998365 | F31: =('Calculated Data'!F11-'Calculated Data'!E11)/('Business Robustness'!F3-'Business Robustness'!E3) -> 0.01109555101 | G31: =('Calculated Data'!G11-'Calculated Data'!F11)/('Business Robustness'!G3-'Business Robustness'!F3) -> 0.1775910144 | H31: =('Calculated Data'!H11-'Calculated Data'!G11)/('Business Robustness'!H3-'Business Robustness'!G3) -> 0.02934425212 | I31: =('Calculated Data'!I11-'Calculated Data'!H11)/('Business Robustness'!I3-'Business Robustness'!H3) -> 0.0153609121 | J31: =('Calculated Data'!J11-'Calculated Data'!I11)/('Business Robustness'!J3-'Business Robustness'!I3) -> 0.5542650339 | K31: =('Calculated Data'!K11-'Calculated Data'!J11)/('Business Robustness'!K3-'Business Robustness'!J3) -> -0.267788401
A32: Incremental Threshold Margin | C32: =((C30+C31)*'Calculated Data'!C25)/((1+'Calculated Data'!C25)*(1-'Calculated Data'!C22)) -> 0.01837646661 | D32: =((D30+D31)*'Calculated Data'!D25)/((1+'Calculated Data'!D25)*(1-'Calculated Data'!D22)) -> -0.08136520577 | E32: =((E30+E31)*'Calculated Data'!E25)/((1+'Calculated Data'!E25)*(1-'Calculated Data'!E22)) -> 0.02734302018 | F32: =((F30+F31)*'Calculated Data'!F25)/((1+'Calculated Data'!F25)*(1-'Calculated Data'!F22)) -> 0.007342524722 | G32: =((G30+G31)*'Calculated Data'!G25)/((1+'Calculated Data'!G25)*(1-'Calculated Data'!G22)) -> 0.03255535375 | H32: =((H30+H31)*'Calculated Data'!H25)/((1+'Calculated Data'!H25)*(1-'Calculated Data'!H22)) -> 0.01472294148 | I32: =((I30+I31)*'Calculated Data'!I25)/((1+'Calculated Data'!I25)*(1-'Calculated Data'!I22)) -> 0.004385485846 | J32: =((J30+J31)*'Calculated Data'!J25)/((1+'Calculated Data'!J25)*(1-'Calculated Data'!J22)) -> 0.1268249499 | K32: =((K30+K31)*'Calculated Data'!K25)/((1+'Calculated Data'!K25)*(1-'Calculated Data'!K22)) -> -0.02172020522
A33: Threshold Margin (Value Neutral Operating Margin) | C33: =(B4+(C32*(C3-B3)))/C3 -> 0.08357517542 | D33: =(C4+(D32*(D3-C3)))/D3 -> -0.05078379423 | E33: 0.01933830265 | F33: 0.0286042885 | G33: 0.08081224882 | H33: 0.04876200529 | I33: 0.06312625633 | J33: 0.1053601875 | K33: 0.08271930536 | L33: higher capital intensity business demands higher threshold margin (to break even) than lower cap intensive
A34: Threshold Exceed Rate | C34: =C14-C33 -> -0.1245505037 | D34: =D14-D33 -> 0.0599601106 | E34: 0.02826699218 | F34: 0.08344166864 | G34: -0.006650160059 | H34: 0.04805580296 | I34: 0.03936944751 | J34: 0.01432528882 | K34: 0.04171256688

Sheet Buffet-Valuation
A1: ='Data Sheet'!B1 -> AVANTI FEEDS LTD | D1: (adapted from the methodology described in the book "Buffetology" by Mary Buffet - using current Visibility aided by Historicals)
A2: Current Data | D2: 10 yr Projected Company data using historical earnings growth rate/current visibility | O2: 10yr Sales Projection
A3: Price | B3: ='Data Sheet'!B8 -> 1942.95 | D3: Year | E3: EPS | F3: DPS | O3: Year | P3: Sales
A4: EPS: | B4: ='Profit & Loss'!L13 -> 68.51667921 | D4: Current | E4: =B4 -> 68.51667921 | F4: =B5 -> 6.999857537 | H4: =E14 -> 68.51667921 | I4: Earnings after 10 years | O4: Current | P4: ='Profit & Loss'!K4 -> 2732.66
A5: DPS: | B5: ='Profit & Loss'!K22 -> 6.999857537 | D5: Year 1 | E5: =E4*(1+$B$21) -> 68.51667921 | F5: =E5*$B$36 -> 0 | H5: =SUM(F5:F14) -> 0 | I5: Dividends paid over 10 years | O5: Year 1 | P5: =P4*(1+$B$14) -> 2732.66
A6: BVPS: | B6: ='Balance Sheet'!K32 -> 141.0232387 | D6: Year 2 | E6: 68.51667921 | F6: 0 | O6: Year 2 | P6: 2732.66
A7: P/E: | B7: =B3/B4 -> 28.35732879 | D7: Year 3 | E7: 68.51667921 | F7: 0 | H7: =$B$33*H4 -> 0 | I7: Projected price [Avg Sustainable P/E*EPS] | O7: Year 3 | P7: 2732.66
A8: Earnings Yield: | B8: =B4/B3 -> 0.0352642524 | D8: Year 4 | E8: 68.51667921 | F8: 0 | H8: =H7+H5 -> 0 | I8: Total Gain [Projected Price+Dividends] | O8: Year 4 | P8: 2732.66
A9: Dividend Yield: | B9: =B5/B3 -> 0.003602695662 | D9: Year 5 | E9: 68.51667921 | F9: 0 | O9: Year 5 | P9: 2732.66
A10: P/BV: | B10: =B3/B6 -> 13.77751651 | D10: Year 6 | E10: 68.51667921 | F10: 0 | H10: =POWER(H8/$B$3,1/9)-1 -> -1 | I10: Projected annual return using current EPS growth visibility | O10: Year 6 | P10: 2732.66
D11: Year 7 | E11: 68.51667921 | F11: 0 | I11: [(Total Gain/Current Price)^1/9)-1] | O11: Year 7 | P11: 2732.66
A12: Input Visibility data | B12: below | D12: Year 8 | E12: 68.51667921 | F12: 0 | O12: Year 8 | P12: 2732.66
A13: Sales | D13: Year 9 | E13: 68.51667921 | F13: 0 | O13: Year 9 | P13: 2732.66
A14: Med Term Visibility | D14: Year 10 | E14: 68.51667921 | F14: 0 | O14: Year 10 | P14: 2732.66
A15: Sales 10 Yr CAGR | B15: =POWER('Profit & Loss'!K4/'Profit & Loss'!B4, 1/9)-1 -> 0.4474067011
A16: Sales 5yr CAGR | B16: =POWER('Profit & Loss'!K4/'Profit & Loss'!G4, 1/4)-1 -> 0.4329991956 | D16: 10 yr Projected Company data using sustainable growth rate based on current visibility
A17: Sales 3yr CAGR | B17: =POWER('Profit & Loss'!K4/'Profit & Loss'!I4, 1/2)-1 -> 0.2388031425 | D17: Year | E17: BVPS | F17: EPS | G17: DPS
A18: Sales Y-o-Y growth | B18: =('Profit & Loss'!K4-'Profit & Loss'!J4)/'Profit & Loss'!J4 -> 0.3539481442 | D18: Current | E18: =B6 -> 141.0232387 | F18: =B4 -> 68.51667921 | G18: =B5 -> 6.999857537 | H18: =F28 -> 0 | I18: Earnings after 10 years
A19: Sales TTM Growth | B19: =('Profit & Loss'!L4-'Profit & Loss'!K4)/'Profit & Loss'!K4 -> 0.08842300176 | D19: Year 1 | E19: =E18+F18-G18 -> 202.5400604 | F19: =E19*$B$37 -> 0 | G19: =F19*$B$36 -> 0 | H19: =SUM(G19:G28) -> 0 | I19: Dividends paid over 10 years
A20: EPS | D20: Year 2 | E20: =E19+F19-G19 -> 202.5400604 | F20: 0 | G20: 0
A21: Med Term Visibility | D21: Year 3 | E21: 202.5400604 | F21: 0 | G21: 0 | H21: =$B$33*H18 -> 0 | I21: Projected price [Avg Sustainable P/E*EPS]
A22: EPS 10 Yr CAGR | B22: =POWER('Profit & Loss'!K13/'Profit & Loss'!B13, 1/9)-1 -> 0.7733181387 | D22: Year 4 | E22: 202.5400604 | F22: 0 | G22: 0 | H22: =H21+H19 -> 0 | I22: Total Gain [Projected Price+Dividends]
A23: EPS 5yr CAGR | B23: =POWER('Profit & Loss'!K13/'Profit & Loss'!G13, 1/4)-1 -> 0.6342547385 | D23: Year 5 | E23: 202.5400604 | F23: 0 | G23: 0
A24: EPS 3yr CAGR | B24: =POWER('Profit & Loss'!K13/'Profit & Loss'!I13, 1/2)-1 -> 0.3598235484 | D24: Year 6 | E24: 202.5400604 | F24: 0 | G24: 0 | H24: =POWER(H22/$B$3,1/9)-1 -> -1 | I24: Projected annual return using sustainable growth visbility*
A25: EPS Y-o-Y growth | B25: =('Profit & Loss'!K13-'Profit & Loss'!J13)/'Profit & Loss'!J13 -> 0.360952381 | D25: Year 7 | E25: =E24+F24-G24 -> 202.5400604 | F25: 0 | G25: 0 | I25: [(Total Gain/Current Price)^1/9)-1]
A26: EPS TTM Growth | B26: =('Profit & Loss'!L13-'Profit & Loss'!K13)/'Profit & Loss'!K13 -> 0.4516908676 | D26: Year 8 | E26: =E25+F25-G25 -> 202.5400604 | F26: 0 | G26: 0
A27: 5Yr Averages | D27: Year 9 | E27: =E26+F26-G26 -> 202.5400604 | F27: 0 | G27: 0
A28: Return on Equity: | B28: =AVERAGE(Customization!G53:K53) -> 0.3552947332 | D28: Year 10 | E28: =E27+F27-G27 -> 202.5400604 | F28: 0 | G28: 0
A29: Payout Ratio: | B29: =AVERAGE('Profit & Loss'!G23:K23) -> 0.1824366651 | D29: *Assuming current capital structure is maintained - business's inherent ability to grow with internal accruals from here
A30: P/E Ratio-High: | B30: =MAX('Calculated Data'!G38:K38) -> 18.06459631
A31: P/E Ratio-Low: | B31: =MIN('Calculated Data'!G38:K38) -> 3.161684503
A32: Avg. P/E Ratio: | B32: =AVERAGE('Calculated Data'!G38:K39) -> 7.44195542
A33: Avg Sustainable P/E
A34: RoE/Payout Visibility
A35: RoE Visibility
A36: Payout Visbility
A37: Sustainable Growth | B37: =B35*(1-B36) -> 0
